{"text_format":"1","workbook":"xlsx","n_sheets":5,"sheets":["Instructions","Index","Price List","Websites","Changes"],"not_rendered":{"charts":0,"images":2,"macros":1,"external_links":0,"defined_names":18,"comments":0,"pivot_tables":0},"unopened":[],"bounds":{"document_bytes":16777216,"sheet_cells":100000,"rows_first":2000,"rows_last":500,"rows_between":2000,"halvings":0,"cell_chars":16384,"cell_head_chars":4096},"cells_cut":0,"cells_raw":0,"read":"whole","date_system":"1900"}

{"sheet":"Instructions","index":0,"n_rows":58,"n_cols":9,"rows_kept":58,"cut":false,"hidden":false,"merged":[[7,2,7,7],[36,3,36,4]]}
["Manufacturer","Fiandre"]
["File as","F"]
["Product Code","D"]
["CCTD Effective Date","10/1/22 (Updated)"]
[]
[]
[]
["Enter your Company Name"]
[]
[null,"Click on \"Index\" to set the print area for the price list index"]
[null,"Then you can send it to print"]
[]
[]
[null,"Click on \"Suggested Price List\" to set the print area for Conestoga Tile's suggested price list."]
[null,"Then you can send it to print"]
[]
[]
[null,"Enter your discount codes if you want a personal net cost sheet."]
[]
[null,"Product"]
[null,"Code","Disc. %"]
[null,{"$f":"+B3","v":"D"}]
[]
[null,"Click on \"Your Cost\" to set the print area for your personal cost report."]
[null,"Then you can send it to print"]
[]
[]
["Discount: ","To help establish your price list, enter the gross profit percent for each type of product."]
[null,"If you want to use Conestoga Tile's list price, leave them blank."]
[]
["Round Nickel: ","If you always want your price to round to the nearest nickel, enter \"YES\"."]
[null,"If you enter \"NO\", it will NOT round to the nearest nickel."]
[]
["Ending Cents: ","If you always want your price to end with a certain cents, enter that cent value."]
[null,"If you leave it \"blank\" will NOT round to this cent value."]
[]
[null,"Group","GP Margin","GP Margin % for",null,"Round Nickel","add/subtract","Ending Cents"]
[null,1,null,"Field Tile",null,"No",0,null," "]
[null,2,null,"Trim",null,"No",0]
[null,3,null,"Decos",null,"No",0]
[null,4,null,"Stock - Field Tile",null,"No",0]
[null,5,null,"Stock - Trim",null,"No",0]
[null,6,null,"Stock - Decos",null,"No",0]
[null,7,null,"Import - Field Tile",null,"No",0]
[]
["If you want to manually adjust your price list, hit \"F5\" and go to \"Customer_Cost\" to manually adjust pricing."]
["You can enter a value in the column labeled \"Adj.\" to change your price manually."]
[]
[null,"Click on \"Your Price Calculation\" to set the print area for your personal cost calculation report."]
[null,"Then you can send it to print"]
[]
[]
[null,"Click on \"Your Price List\" to set the print area for your personal price list."]
[null,"Then you can send it to print"]
[null,null,null,null,null,null,null,"Yes"]
[]
["If you have any questions on how to best use this spreadsheet, please feel free to contact"]
["Jim Vogel at (800) 422-6860, ext. 4201 or via e-mail at jimvogel@cctd.com"]

{"sheet":"Index","index":1,"n_rows":50,"n_cols":11,"rows_kept":50,"cut":false,"hidden":false,"merged":[[5,0,5,10],[47,0,47,10],[49,0,49,10],[2,5,2,10]]}
[]
[]
[null,null,null,null,null,{"$f":"\"File '\"&Instructions!B2&\"' - \"&Instructions!B1","v":"File 'F' - Fiandre"}]
[]
[]
[{"$f":"\"Price List Index - \"&Instructions!B4","v":"Price List Index - 10/1/22 (Updated)"}]
[]
[]
[]
[]
["Page",null,"Series",null,"Product Type",null,"Page",null,"Series",null,"Product Type"]
[1,null,"Core Shade",null,"Glazed Porcelain"]
[1,null,"Fahrenheit",null,"Glazed Porcelain"]
[1,null,"French Clay",null,"Glazed Porcelain Floor"]
[1,null,"French Clay (Discontinued 1/17/23)",null,"Glazed Ceramic Wall"]
[1,null,"LOL",null,"Glazed Ceramic Wall"]
[2,null,"Marble Lab",null,"Glazed Porcelain"]
["2-6",null,"Maximum",null,"Large Panel Porcelain"]
[6,null,"May",null,"Glazed Ceramic Wall"]
[6,null,"Royal Marble",null,"Glazed Porcelain"]
[6,null,"Shellstone",null,"Glazed Porcelain"]
[7,null,"Shen",null,"Glazed Porcelain"]
[7,null,"Unicolor (Discontinued 1/17/23)",null,"Glazed Porcelain"]
[]
[]
[]
[]
[]
[]
[]
[]
[]
[]
[]
[]
[]
[]
[]
[]
[]
[]
[]
[]
[]
[]
[]
[]
["This price list is available electronically on an Excel spreadsheet at www.conestogatile.com/pricelists."]
[]
["The spreadsheet has many special features to assist you.  Apply your discount to generate your net costs for your purchasing department.  Apply your standard gross margin percentage or custom prices to generate your own custom price list for your showroom.  Print out individual price list for each series that can be attached to the back of your sample boards for easy reference."]

{"sheet":"Price List","index":2,"n_rows":629,"n_cols":42,"rows_kept":629,"cut":false,"hidden":false,"merged":[[11,14,11,15],[10,14,10,19],[618,3,618,4],[19,2,19,19],[18,14,18,15],[615,2,615,18],[185,3,185,18],[374,3,374,18],[613,2,613,19],[13,14,13,19],[15,13,16,19],[14,31,14,33],[13,23,13,24],[204,3,204,18],[453,3,453,18],[292,3,292,18],[10,23,10,24],[10,26,10,33]]}
[null,"Field Tile",null,null,"Size",null,"Field",null,null,null,null,null,null,null,null,"SF/CTN",null,null,{"$f":"IF(Suggested=\"Yes\",AB1,AH1)","v":0.05},"SF",{"$f":"+Instructions!$B$3","v":"D"},null,null,{"$f":"+Instructions!$C$22","v":0},{"$f":"ROUND($AB1*(1-X1)+0.004999,2)","v":0.05},null,"new",0.05,{"$f":"+X1","v":0},0.05,{"$f":"(AH1-AD1)/AH1","v":0},null,1,{"$f":"SUM(AK1:AM1)+AF1","v":0.05},null,null,{"$f":"ROUND(AD1/(1-VLOOKUP(AG1,Group,2,FALSE)),2)","v":0.05},{"$f":"IF(VLOOKUP(AG1,Group,5,FALSE)=\"YES\",VLOOKUP(ROUND(ROUND(AK1,1)-AK1,2),Round,2,FALSE)+VLOOKUP(AG1,Group,6,FALSE),0)","v":0},{"$f":"IF(VLOOKUP(AG1,Group,7,FALSE)=\"\",0,ROUND(AK1-0.04999,1)-AK1+AN1)","v":0},{"$f":"IF(VLOOKUP(AG1,Group,7,FALSE)=\"\",\"\",VLOOKUP(AG1,Group,7,FALSE))","v":""},null,"X"]
[null,"Trim",null,null,"Size",null,"Shape",null,"Description",null,null,null,null,null,null,null,null,null,0.05,"EA",{"$f":"+Instructions!$B$3","v":"D"},null,null,{"$f":"+Instructions!$C$22","v":0},0.05,null,"new",0.05,0,0.05,0,null,2,0.05,null,null,0.05,0,0,"",null,"X"]
[null,"Decos",null,null,"Size",null,"Shape",null,"Description",null,null,null,null,null,null,null,null,null,0.05,"EA",{"$f":"+Instructions!$B$3","v":"D"},null,null,{"$f":"+Instructions!$C$22","v":0},0.05,null,"new",0.05,0,0.05,0,null,3,0.05,null,null,0.05,0,0,"",null,"X"]
[null,"Stock - Field Tile",null,null,"Size",null,"Shape",null,"Description",null,null,null,null,null,null,"SF/CTN",null,null,0.05,"SF",{"$f":"+Instructions!$B$3","v":"D"},null,null,{"$f":"+Instructions!$C$22","v":0},0.05,null,"new",0.05,0,0.05,0,null,4,0.05,null,null,0.05,0,0,"",null,"X"]
[null,"Stock - Trim",null,null,"Size",null,"Shape",null,"Description",null,null,null,null,null,null,null,null,null,0.05,"EA",{"$f":"+Instructions!$B$3","v":"D"},null,null,{"$f":"+Instructions!$C$22","v":0},0.05,null,"new",0.05,0,0.05,0,null,5,0.05,null,null,0.05,0,0,"",null,"X"]
[null,"Stock - Decos",null,null,"Size",null,"Shape",null,"Description",null,null,null,null,null,null,null,null,null,0.05,"EA",{"$f":"+Instructions!$B$3","v":"D"},null,null,{"$f":"+Instructions!$C$22","v":0},0.05,null,"new",0.05,0,0.05,0,null,6,0.05,null,null,0.05,0,0,"",null,"X"]
[null,"Import - Field Tile",null,null,"Size",null,"Shape",null,"Description",null,null,null,null,null,null,null,null,null,{"$f":"IF(Suggested=\"Yes\",'Price List'!AB7,'Price List'!AH7)","v":0.05},"SF",{"$f":"+Instructions!$B$3","v":"D"},null,null,{"$f":"+Instructions!$C$22","v":0},0.05,null,"new",0.05,0,0.05,0,null,7,0.05,null,null,0.05,0,0,"",null,"X"]
[null,"Import - Deco & Trim",null,null,"Size",null,"Shape",null,"Description",null,null,null,null,null,null,null,null,null,{"$f":"IF(Suggested=\"Yes\",'Price List'!AB8,'Price List'!AH8)","v":0.05},"EA",{"$f":"+Instructions!$B$3","v":"D"},null,null,{"$f":"+Instructions!$C$22","v":0},{"$f":"ROUND($AB8*(1-X8)+0.004999,2)","v":0.05},null,"new",0.05,{"$f":"+X8","v":0},{"$f":"+Y8","v":0.05},{"$f":"(AH8-AD8)/AH8","v":0},null,7,{"$f":"SUM(AK8:AM8)+AF8","v":0.05},null,null,{"$f":"ROUND(AD8/(1-VLOOKUP(AG8,Group,2,FALSE)),2)","v":0.05},{"$f":"IF(VLOOKUP(AG8,Group,5,FALSE)=\"YES\",VLOOKUP(ROUND(ROUND(AK8,1)-AK8,2),Round,2,FALSE)+VLOOKUP(AG8,Group,6,FALSE),0)","v":0},{"$f":"IF(VLOOKUP(AG8,Group,7,FALSE)=\"\",0,ROUND(AK8-0.04999,1)-AK8+AN8)","v":0},{"$f":"IF(VLOOKUP(AG8,Group,7,FALSE)=\"\",\"\",VLOOKUP(AG8,Group,7,FALSE))","v":""},null,"X"]
[null,"Format",null,null,null,null,null,null,null,null,null,null,null,null,null,null,"Stock","a",1000,"ABC",null,null,null,0.1,1000,null,"ABC",1000,0.1,1000,0.1,10,null,1000,null,null,null,null,null,null,null,"X"]
[null,null,null,null,null,null,null,null,null,null,null,null,null,null,null,null,null,null,null,null,null,null,null,null,null,null,null,null,null,null,null,null,null,null,null,null,null,null,null,null,null,"X"]
[null,null,null,null,null,null,null,null,null,null,null,null,null,null,"Price List",null,null,null,null,null,null,null,null,"Cust. Cost",null,null,"Customer Cost Calculation",null,null,null,null,null,null,null,null,null,null,null,null,null,null,"X"]
[null,null,null,"Sizes & Shapes",null,null,null,null,null,null,null,null,null,null,"Full Carton",null,"Stock","Note",{"$f":"IF(Suggested=\"Yes\",AB12,AH12)","v":"List Price"},"U/M","Code",null,null,"Disc.","Net",null,"Chg","List Price","Disc","Act. Cost","GP%","Adj.","Group","Price",null,null,"Calc Price",".05 Round","Cents","Round to",null,"X"]
[null,null,null,null,null,null,null,null,null,null,null,null,null,null,null,null,null,null,null,null,null,null,null,null,null,null,null,null,null,null,null,null,null,null,null,null,null,null,null,null,null,"X"]
[null,null,null,null,null,null,null,null,null,null,null,null,null,null,{"$f":"\"File '\"&Instructions!B2&\"' - \"&Instructions!B1","v":"File 'F' - Fiandre"},null,null,null,null,null,null,null,null,"Cost",null,null,null,null,null,null,null,null,null,"Retail Price Calculations",null,null,null,null,null,null,null,"X"]
[null,null,null,null,null,null,null,null,null,null,null,null,null,null,null,null,null,null,null,{"$f":"+Instructions!B4","v":"10/1/22 (Updated)"},null,null,null,null,null,null,null,null,null,null,null,{"$f":"TODAY()","v":"2023-01-17"},null,null,null,null,null,null,null,null,null,"X"]
[null,null,null,null,null,null,null,null,null,null,null,null,null,{"$f":"IF(Instructions!C8=\"\",\"\",+Instructions!C8)","v":""},null,null,null,null,null,null,null,null,null,null,null,null,null,null,null,null,null,null,null,null,null,null,null,null,null,null,null,"X"]
[null,null,{"$f":"\"Product Code '\"&Instructions!B3&\"'\"","v":"Product Code 'D'"},null,null,null,null,null,null,null,null,null,null,null,null,null,null,null,null,null,null,null,null,null,null,null,null,null,null,null,null,null,null,{"$f":"IF(Instructions!$C$8=\"\",\"\",Instructions!$C$8)","v":""},null,null,null,null,null,null,null,"X"]
[null,null,null,null,null,null,null,null,null,null,null,null,null,null,null,null,null,null,null,null,null,null,null,null,null,null,null,null,null,null,null,null,null,null,null,null,null,null,null,null,null,"X"]
[null,null,"Sizes & Shapes",null,null,null,null,null,null,null,null,null,null,null,"Full Carton",null,"Stock","Note",{"$f":"+S$12","v":"List Price"},"U/M",{"$f":"+U$12","v":"Code"},null,null,"Disc.","Net",null,"Chg","List Price",{"$f":"+AC$12","v":"Disc"},"Act. Cost","GP%","Adj.",{"$f":"+AG$12","v":"Group"},"Price",null,null,"Calc Price",".05 Round","Cents","Round to",null,"X"]
[null,null,"ALL ITEMS MARKED WITH PACKAGING QUANTITY ARE SOLD IN MULTIPLES OF THAT QUANTITY ONLY",null,null,null,null,null,null,null,null,null,null,null,null,null,null,null,null,null,null,null,null,null,null,null,null,null,null,null,null,null,null,null,null,null,null,null,null,null,null,"X"]
[null,null,null,null,null,null,null,null,null,null,null," ",null,null,null,null,null,null,null,null,null,null,null,null,null,null,null,null,null,null,null,null,null,null,null,null,null,null,null,null,null,"X"]
[null,null,"CORE SHADE - Glazed Porcelain",null,null,null,null,null,null,null,null,null,null," ",null,null,null,"Item # Lookup:","FICS",null,null,null,null,null,null,null,null,null,null,null,null,null,null,null,null,null,null,null,null,null,null,"X"]
[]
[null,null,null,"Colors:","Ashy Core",null,"  Fawn Core",null,null,"Sharp Core",null,null,null,null,null,null,null,null,null,null,null,null,null,null,null,null,null,null,null,null,null,null,null,null,null,null,null,null,null,null,null,"X"]
[null,null,null,null,"Cloudy Core",null,"  Plain Core",null,null,"Snug Core",null,null,null,null,null,null,null,null,null,null,null,null,null,null,null,null,null,null,null,null,null,null,null,null,null,null,null,null,null,null,null,"X"]
[]
[null,"Stock - Field Tile",null,null,"12\" x 24\"",null,"Field",null,null,"Honed",null,null,null,null,null,"9.69 SF/CTN",null,"a",{"$f":"IF(Suggested=\"Yes\",AB27,AH27)","v":16.399999999999999},"SF",{"$f":"+Instructions!$B$3","v":"D"},null,null,{"$f":"+Instructions!$C$22","v":0},{"$f":"ROUND($AB27*(1-X27)+0.004999,2)","v":16.399999999999999},null,"",16.399999999999999,{"$f":"+X27","v":0},16.399999999999999,{"$f":"(AH27-AD27)/AH27","v":0},null,4,{"$f":"SUM(AK27:AM27)+AF27","v":16.399999999999999},null,null,{"$f":"ROUND(AD27/(1-VLOOKUP(AG27,Group,2,FALSE)),2)","v":16.399999999999999},{"$f":"IF(VLOOKUP(AG27,Group,5,FALSE)=\"YES\",VLOOKUP(ROUND(ROUND(AK27,1)-AK27,2),Round,2,FALSE)+VLOOKUP(AG27,Group,6,FALSE),0)","v":0},{"$f":"IF(VLOOKUP(AG27,Group,7,FALSE)=\"\",0,ROUND(AK27-0.04999,1)-AK27+AN27)","v":0},{"$f":"IF(VLOOKUP(AG27,Group,7,FALSE)=\"\",\"\",VLOOKUP(AG27,Group,7,FALSE))","v":""},null,"X"]
[null,"Field Tile",null,null,"24\" x 24\"",null,"Field",null,null,"Honed",null,null,null,null,null,"11.63 SF/CTN",null,"b",{"$f":"IF(Suggested=\"Yes\",AB28,AH28)","v":17.350000000000001},"SF",{"$f":"+Instructions!$B$3","v":"D"},null,null,{"$f":"+Instructions!$C$22","v":0},{"$f":"ROUND($AB28*(1-X28)+0.004999,2)","v":17.350000000000001},null,"",17.350000000000001,0,17.350000000000001,{"$f":"(AH28-AD28)/AH28","v":0},null,1,{"$f":"SUM(AK28:AM28)+AF28","v":17.350000000000001},null,null,{"$f":"ROUND(AD28/(1-VLOOKUP(AG28,Group,2,FALSE)),2)","v":17.350000000000001},{"$f":"IF(VLOOKUP(AG28,Group,5,FALSE)=\"YES\",VLOOKUP(ROUND(ROUND(AK28,1)-AK28,2),Round,2,FALSE)+VLOOKUP(AG28,Group,6,FALSE),0)","v":0},{"$f":"IF(VLOOKUP(AG28,Group,7,FALSE)=\"\",0,ROUND(AK28-0.04999,1)-AK28+AN28)","v":0},{"$f":"IF(VLOOKUP(AG28,Group,7,FALSE)=\"\",\"\",VLOOKUP(AG28,Group,7,FALSE))","v":""},null,"X"]
[null,"Field Tile",null,null,"24\" x 48\"",null,"Field",null,null,"Honed",null,null,null,null,null,"15.50 SF/CTN",null,"b",{"$f":"IF(Suggested=\"Yes\",AB29,AH29)","v":20.3},"SF",{"$f":"+Instructions!$B$3","v":"D"},null,null,{"$f":"+Instructions!$C$22","v":0},{"$f":"ROUND($AB29*(1-X29)+0.004999,2)","v":20.3},null,"",20.3,0,20.3,{"$f":"(AH29-AD29)/AH29","v":0},null,1,{"$f":"SUM(AK29:AM29)+AF29","v":20.3},null,null,{"$f":"ROUND(AD29/(1-VLOOKUP(AG29,Group,2,FALSE)),2)","v":20.3},{"$f":"IF(VLOOKUP(AG29,Group,5,FALSE)=\"YES\",VLOOKUP(ROUND(ROUND(AK29,1)-AK29,2),Round,2,FALSE)+VLOOKUP(AG29,Group,6,FALSE),0)","v":0},{"$f":"IF(VLOOKUP(AG29,Group,7,FALSE)=\"\",0,ROUND(AK29-0.04999,1)-AK29+AN29)","v":0},{"$f":"IF(VLOOKUP(AG29,Group,7,FALSE)=\"\",\"\",VLOOKUP(AG29,Group,7,FALSE))","v":""},null,"X"]
[]
[null,"Trim",null,null,"4\" x 24\"",null,"Bullnose",null,null,"Honed",null,null,null,null,null,"6 PCS/CTN",null,"a",{"$f":"IF(Suggested=\"Yes\",AB31,AH31)","v":38.9},"EA",{"$f":"+Instructions!$B$3","v":"D"},null,null,{"$f":"+Instructions!$C$22","v":0},{"$f":"ROUND($AB31*(1-X31)+0.004999,2)","v":38.9},null,"",38.9,{"$f":"+X31","v":0},{"$f":"+Y31","v":38.9},{"$f":"(AH31-AD31)/AH31","v":0},null,2,{"$f":"SUM(AK31:AM31)+AF31","v":38.9},null,null,{"$f":"ROUND(AD31/(1-VLOOKUP(AG31,Group,2,FALSE)),2)","v":38.9},{"$f":"IF(VLOOKUP(AG31,Group,5,FALSE)=\"YES\",VLOOKUP(ROUND(ROUND(AK31,1)-AK31,2),Round,2,FALSE)+VLOOKUP(AG31,Group,6,FALSE),0)","v":0},{"$f":"IF(VLOOKUP(AG31,Group,7,FALSE)=\"\",0,ROUND(AK31-0.04999,1)-AK31+AN31)","v":0},{"$f":"IF(VLOOKUP(AG31,Group,7,FALSE)=\"\",\"\",VLOOKUP(AG31,Group,7,FALSE))","v":""},null,"X"]
[]
[null,"Trim",null,null,"12\" x 24\"",null,"Stair Tread",null,null,"Honed",null,null,null,null,null,"5 PCS/CTN",null,"b",{"$f":"IF(Suggested=\"Yes\",AB33,AH33)","v":133.55000000000001},"EA",{"$f":"+Instructions!$B$3","v":"D"},null,null,{"$f":"+Instructions!$C$22","v":0},{"$f":"ROUND($AB33*(1-X33)+0.004999,2)","v":133.55000000000001},null,"",133.55000000000001,0,133.55000000000001,{"$f":"(AH33-AD33)/AH33","v":0},null,2,{"$f":"SUM(AK33:AM33)+AF33","v":133.55000000000001},null,null,{"$f":"ROUND(AD33/(1-VLOOKUP(AG33,Group,2,FALSE)),2)","v":133.55000000000001},{"$f":"IF(VLOOKUP(AG33,Group,5,FALSE)=\"YES\",VLOOKUP(ROUND(ROUND(AK33,1)-AK33,2),Round,2,FALSE)+VLOOKUP(AG33,Group,6,FALSE),0)","v":0},{"$f":"IF(VLOOKUP(AG33,Group,7,FALSE)=\"\",0,ROUND(AK33-0.04999,1)-AK33+AN33)","v":0},{"$f":"IF(VLOOKUP(AG33,Group,7,FALSE)=\"\",\"\",VLOOKUP(AG33,Group,7,FALSE))","v":""},null,"X"]
[]
[null,"Field Tile",null,null,"12\" x 24\"",null,"Field",null,null,"Slate",null,null,null,null,null,"9.69 SF/CTN",null,"b",{"$f":"IF(Suggested=\"Yes\",AB35,AH35)","v":17.899999999999999},"SF",{"$f":"+Instructions!$B$3","v":"D"},null,null,{"$f":"+Instructions!$C$22","v":0},{"$f":"ROUND($AB35*(1-X35)+0.004999,2)","v":17.899999999999999},null,"",17.899999999999999,{"$f":"+X35","v":0},17.899999999999999,{"$f":"(AH35-AD35)/AH35","v":0},null,1,{"$f":"SUM(AK35:AM35)+AF35","v":17.899999999999999},null,null,{"$f":"ROUND(AD35/(1-VLOOKUP(AG35,Group,2,FALSE)),2)","v":17.899999999999999},{"$f":"IF(VLOOKUP(AG35,Group,5,FALSE)=\"YES\",VLOOKUP(ROUND(ROUND(AK35,1)-AK35,2),Round,2,FALSE)+VLOOKUP(AG35,Group,6,FALSE),0)","v":0},{"$f":"IF(VLOOKUP(AG35,Group,7,FALSE)=\"\",0,ROUND(AK35-0.04999,1)-AK35+AN35)","v":0},{"$f":"IF(VLOOKUP(AG35,Group,7,FALSE)=\"\",\"\",VLOOKUP(AG35,Group,7,FALSE))","v":""},null,"X"]
[null,"Field Tile",null,null,"24\" x 24\"",null,"Field",null,null,"Slate",null,null,null,null,null,"11.63 SF/CTN",null,"b",{"$f":"IF(Suggested=\"Yes\",AB36,AH36)","v":18.8},"SF",{"$f":"+Instructions!$B$3","v":"D"},null,null,{"$f":"+Instructions!$C$22","v":0},{"$f":"ROUND($AB36*(1-X36)+0.004999,2)","v":18.8},null,"",18.8,0,18.8,{"$f":"(AH36-AD36)/AH36","v":0},null,1,{"$f":"SUM(AK36:AM36)+AF36","v":18.8},null,null,{"$f":"ROUND(AD36/(1-VLOOKUP(AG36,Group,2,FALSE)),2)","v":18.8},{"$f":"IF(VLOOKUP(AG36,Group,5,FALSE)=\"YES\",VLOOKUP(ROUND(ROUND(AK36,1)-AK36,2),Round,2,FALSE)+VLOOKUP(AG36,Group,6,FALSE),0)","v":0},{"$f":"IF(VLOOKUP(AG36,Group,7,FALSE)=\"\",0,ROUND(AK36-0.04999,1)-AK36+AN36)","v":0},{"$f":"IF(VLOOKUP(AG36,Group,7,FALSE)=\"\",\"\",VLOOKUP(AG36,Group,7,FALSE))","v":""},null,"X"]
[null,"Field Tile",null,null,"24\" x 48\"",null,"Field",null,null,"Slate",null,null,null,null,null,"15.50 SF/CTN",null,"b",{"$f":"IF(Suggested=\"Yes\",AB37,AH37)","v":21.7},"SF",{"$f":"+Instructions!$B$3","v":"D"},null,null,{"$f":"+Instructions!$C$22","v":0},{"$f":"ROUND($AB37*(1-X37)+0.004999,2)","v":21.7},null,"",21.7,0,21.7,{"$f":"(AH37-AD37)/AH37","v":0},null,1,{"$f":"SUM(AK37:AM37)+AF37","v":21.7},null,null,{"$f":"ROUND(AD37/(1-VLOOKUP(AG37,Group,2,FALSE)),2)","v":21.7},{"$f":"IF(VLOOKUP(AG37,Group,5,FALSE)=\"YES\",VLOOKUP(ROUND(ROUND(AK37,1)-AK37,2),Round,2,FALSE)+VLOOKUP(AG37,Group,6,FALSE),0)","v":0},{"$f":"IF(VLOOKUP(AG37,Group,7,FALSE)=\"\",0,ROUND(AK37-0.04999,1)-AK37+AN37)","v":0},{"$f":"IF(VLOOKUP(AG37,Group,7,FALSE)=\"\",\"\",VLOOKUP(AG37,Group,7,FALSE))","v":""},null,"X"]
[]
[null,"Trim",null,null,"4\" x 24\"",null,"Bullnose",null,null,"Slate",null,null,null,null,null,"6 PCS/CTN",null,"b",{"$f":"IF(Suggested=\"Yes\",AB39,AH39)","v":40.15},"EA",{"$f":"+Instructions!$B$3","v":"D"},null,null,{"$f":"+Instructions!$C$22","v":0},{"$f":"ROUND($AB39*(1-X39)+0.004999,2)","v":40.15},null,"",40.15,{"$f":"+X39","v":0},{"$f":"+Y39","v":40.15},{"$f":"(AH39-AD39)/AH39","v":0},null,2,{"$f":"SUM(AK39:AM39)+AF39","v":40.15},null,null,{"$f":"ROUND(AD39/(1-VLOOKUP(AG39,Group,2,FALSE)),2)","v":40.15},{"$f":"IF(VLOOKUP(AG39,Group,5,FALSE)=\"YES\",VLOOKUP(ROUND(ROUND(AK39,1)-AK39,2),Round,2,FALSE)+VLOOKUP(AG39,Group,6,FALSE),0)","v":0},{"$f":"IF(VLOOKUP(AG39,Group,7,FALSE)=\"\",0,ROUND(AK39-0.04999,1)-AK39+AN39)","v":0},{"$f":"IF(VLOOKUP(AG39,Group,7,FALSE)=\"\",\"\",VLOOKUP(AG39,Group,7,FALSE))","v":""},null,"X"]
[]
[null,"Trim",null,null,"12\" x 24\"",null,"Stair Tread",null,null,"Slate",null,null,null,null,null,"5 PCS/CTN",null,"b",{"$f":"IF(Suggested=\"Yes\",AB41,AH41)","v":137.55000000000001},"EA",{"$f":"+Instructions!$B$3","v":"D"},null,null,{"$f":"+Instructions!$C$22","v":0},{"$f":"ROUND($AB41*(1-X41)+0.004999,2)","v":137.55000000000001},null,"",137.55000000000001,{"$f":"+X41","v":0},{"$f":"+Y41","v":137.55000000000001},{"$f":"(AH41-AD41)/AH41","v":0},null,2,{"$f":"SUM(AK41:AM41)+AF41","v":137.55000000000001},null,null,{"$f":"ROUND(AD41/(1-VLOOKUP(AG41,Group,2,FALSE)),2)","v":137.55000000000001},{"$f":"IF(VLOOKUP(AG41,Group,5,FALSE)=\"YES\",VLOOKUP(ROUND(ROUND(AK41,1)-AK41,2),Round,2,FALSE)+VLOOKUP(AG41,Group,6,FALSE),0)","v":0},{"$f":"IF(VLOOKUP(AG41,Group,7,FALSE)=\"\",0,ROUND(AK41-0.04999,1)-AK41+AN41)","v":0},{"$f":"IF(VLOOKUP(AG41,Group,7,FALSE)=\"\",\"\",VLOOKUP(AG41,Group,7,FALSE))","v":""},null,"X"]
[]
[null,null,null,"Notes:","a) Colors Plain Core, Sharp Core and Snug Core are Special Order Only.  Extended Lead Time of approximately 8-10 weeks."]
[null,null,null,null,"b) Special Order Only.  Extended Lead Time of approximately 8-10 weeks."]
[]
[null,null,"FAHRENHEIT - Glazed Porcelain",null,null,null,null,null,null,null,null,null,null," ",null,null,null,"Item # Lookup:","FIFA",null,null,null,null,null,null,null,null,null,null,null,null,null,null,null,null,null,null,null,null,null,null,"X"]
[]
[null,null,null,"Colors:","0F Cool",null," 300F Frost",null,null,"400F Heat",null,"  500F Heat",null," ",null,null,null,null,null,null,null,null,null,null,null,null,null,null,null,null,null,null,null,null,null,null,null,null,null,null,null,"X"]
[null,null,null,null,"250F Frost",null," 350F Frost",null,null,"450F Heat",null,null,null,null,null,null,null,null,null,null,null,null,null,null,null,null,null,null,null,null,null,null,null,null,null,null,null,null,null,null,null,"X"]
[]
[null,"Field Tile",null,null,"4\" x 24\" x 8mm",null,"Field",null,null,"Honed",null,null,null,null,null,"7.75 SF/CTN",null,"a",{"$f":"IF(Suggested=\"Yes\",AB51,AH51)","v":19.3},"SF",{"$f":"+Instructions!$B$3","v":"D"},null,null,{"$f":"+Instructions!$C$22","v":0},{"$f":"ROUND($AB51*(1-X51)+0.004999,2)","v":19.3},null,"",19.3,{"$f":"+X51","v":0},19.3,{"$f":"(AH51-AD51)/AH51","v":0},null,1,{"$f":"SUM(AK51:AM51)+AF51","v":19.3},null,null,{"$f":"ROUND(AD51/(1-VLOOKUP(AG51,Group,2,FALSE)),2)","v":19.3},{"$f":"IF(VLOOKUP(AG51,Group,5,FALSE)=\"YES\",VLOOKUP(ROUND(ROUND(AK51,1)-AK51,2),Round,2,FALSE)+VLOOKUP(AG51,Group,6,FALSE),0)","v":0},{"$f":"IF(VLOOKUP(AG51,Group,7,FALSE)=\"\",0,ROUND(AK51-0.04999,1)-AK51+AN51)","v":0},{"$f":"IF(VLOOKUP(AG51,Group,7,FALSE)=\"\",\"\",VLOOKUP(AG51,Group,7,FALSE))","v":""},null,"X"]
[null,"Field Tile",null,null,"6\" x 24\" x 8mm",null,"Field",null,null,"Honed",null,null,null,null,null,"11.63 SF/CTN",null,"a",{"$f":"IF(Suggested=\"Yes\",AB52,AH52)","v":18.5},"SF",{"$f":"+Instructions!$B$3","v":"D"},null,null,{"$f":"+Instructions!$C$22","v":0},{"$f":"ROUND($AB52*(1-X52)+0.004999,2)","v":18.5},null,"",18.5,0,18.5,{"$f":"(AH52-AD52)/AH52","v":0},null,1,{"$f":"SUM(AK52:AM52)+AF52","v":18.5},null,null,{"$f":"ROUND(AD52/(1-VLOOKUP(AG52,Group,2,FALSE)),2)","v":18.5},{"$f":"IF(VLOOKUP(AG52,Group,5,FALSE)=\"YES\",VLOOKUP(ROUND(ROUND(AK52,1)-AK52,2),Round,2,FALSE)+VLOOKUP(AG52,Group,6,FALSE),0)","v":0},{"$f":"IF(VLOOKUP(AG52,Group,7,FALSE)=\"\",0,ROUND(AK52-0.04999,1)-AK52+AN52)","v":0},{"$f":"IF(VLOOKUP(AG52,Group,7,FALSE)=\"\",\"\",VLOOKUP(AG52,Group,7,FALSE))","v":""},null,"X"]
[null,"Stock - Field Tile",null,null,"12\" x 24\" x 8mm",null,"Field",null,null,"Honed",null,null,null,null,null,"15.50 SF/CTN",null,null,{"$f":"IF(Suggested=\"Yes\",AB53,AH53)","v":14.65},"SF",{"$f":"+Instructions!$B$3","v":"D"},null,null,{"$f":"+Instructions!$C$22","v":0},{"$f":"ROUND($AB53*(1-X53)+0.004999,2)","v":14.65},null,"",14.65,0,14.65,{"$f":"(AH53-AD53)/AH53","v":0},null,4,{"$f":"SUM(AK53:AM53)+AF53","v":14.65},null,null,{"$f":"ROUND(AD53/(1-VLOOKUP(AG53,Group,2,FALSE)),2)","v":14.65},{"$f":"IF(VLOOKUP(AG53,Group,5,FALSE)=\"YES\",VLOOKUP(ROUND(ROUND(AK53,1)-AK53,2),Round,2,FALSE)+VLOOKUP(AG53,Group,6,FALSE),0)","v":0},{"$f":"IF(VLOOKUP(AG53,Group,7,FALSE)=\"\",0,ROUND(AK53-0.04999,1)-AK53+AN53)","v":0},{"$f":"IF(VLOOKUP(AG53,Group,7,FALSE)=\"\",\"\",VLOOKUP(AG53,Group,7,FALSE))","v":""},null,"X"]
[null,"Field Tile",null,null,"24\" x 24\" x 8mm",null,"Field",null,null,"Honed",null,null,null,null,null,"15.50 SF/CTN",null,"a",{"$f":"IF(Suggested=\"Yes\",AB54,AH54)","v":15.5},"SF",{"$f":"+Instructions!$B$3","v":"D"},null,null,{"$f":"+Instructions!$C$22","v":0},{"$f":"ROUND($AB54*(1-X54)+0.004999,2)","v":15.5},null,"",15.5,0,15.5,{"$f":"(AH54-AD54)/AH54","v":0},null,1,{"$f":"SUM(AK54:AM54)+AF54","v":15.5},null,null,{"$f":"ROUND(AD54/(1-VLOOKUP(AG54,Group,2,FALSE)),2)","v":15.5},{"$f":"IF(VLOOKUP(AG54,Group,5,FALSE)=\"YES\",VLOOKUP(ROUND(ROUND(AK54,1)-AK54,2),Round,2,FALSE)+VLOOKUP(AG54,Group,6,FALSE),0)","v":0},{"$f":"IF(VLOOKUP(AG54,Group,7,FALSE)=\"\",0,ROUND(AK54-0.04999,1)-AK54+AN54)","v":0},{"$f":"IF(VLOOKUP(AG54,Group,7,FALSE)=\"\",\"\",VLOOKUP(AG54,Group,7,FALSE))","v":""},null,"X"]
[null,"Stock - Field Tile",null,null,"24\" x 48\" x 8mm",null,"Field",null,null,"Honed",null,null,null,null,null,"15.50 SF/CTN",null,null,{"$f":"IF(Suggested=\"Yes\",AB55,AH55)","v":18.850000000000001},"SF",{"$f":"+Instructions!$B$3","v":"D"},null,null,{"$f":"+Instructions!$C$22","v":0},{"$f":"ROUND($AB55*(1-X55)+0.004999,2)","v":18.850000000000001},null,"",18.850000000000001,0,18.850000000000001,{"$f":"(AH55-AD55)/AH55","v":0},null,4,{"$f":"SUM(AK55:AM55)+AF55","v":18.850000000000001},null,null,{"$f":"ROUND(AD55/(1-VLOOKUP(AG55,Group,2,FALSE)),2)","v":18.850000000000001},{"$f":"IF(VLOOKUP(AG55,Group,5,FALSE)=\"YES\",VLOOKUP(ROUND(ROUND(AK55,1)-AK55,2),Round,2,FALSE)+VLOOKUP(AG55,Group,6,FALSE),0)","v":0},{"$f":"IF(VLOOKUP(AG55,Group,7,FALSE)=\"\",0,ROUND(AK55-0.04999,1)-AK55+AN55)","v":0},{"$f":"IF(VLOOKUP(AG55,Group,7,FALSE)=\"\",\"\",VLOOKUP(AG55,Group,7,FALSE))","v":""},null,"X"]
[]
[null,"Decos",null,null,"12\" x 12\" x 8mm",null,"Mosaic",null,"2\" x 2\"","Honed",null,null,null,null,null,"6 PCS/CTN",null,null,{"$f":"IF(Suggested=\"Yes\",AB57,AH57)","v":52.1},"EA",{"$f":"+Instructions!$B$3","v":"D"},null,null,{"$f":"+Instructions!$C$22","v":0},{"$f":"ROUND($AB57*(1-X57)+0.004999,2)","v":52.1},null,"",52.1,{"$f":"+X57","v":0},{"$f":"+Y57","v":52.1},{"$f":"(AH57-AD57)/AH57","v":0},null,3,{"$f":"SUM(AK57:AM57)+AF57","v":52.1},null,null,{"$f":"ROUND(AD57/(1-VLOOKUP(AG57,Group,2,FALSE)),2)","v":52.1},{"$f":"IF(VLOOKUP(AG57,Group,5,FALSE)=\"YES\",VLOOKUP(ROUND(ROUND(AK57,1)-AK57,2),Round,2,FALSE)+VLOOKUP(AG57,Group,6,FALSE),0)","v":0},{"$f":"IF(VLOOKUP(AG57,Group,7,FALSE)=\"\",0,ROUND(AK57-0.04999,1)-AK57+AN57)","v":0},{"$f":"IF(VLOOKUP(AG57,Group,7,FALSE)=\"\",\"\",VLOOKUP(AG57,Group,7,FALSE))","v":""},null,"X"]
[]
[null,"Trim",null,null,"4\" x 24\" x 8mm",null,"Bullnose",null,null,"Honed",null,null,null,null,null,"14 PCS/CTN",null,null,{"$f":"IF(Suggested=\"Yes\",AB59,AH59)","v":38.65},"EA",{"$f":"+Instructions!$B$3","v":"D"},null,null,{"$f":"+Instructions!$C$22","v":0},{"$f":"ROUND($AB59*(1-X59)+0.004999,2)","v":38.65},null,"",38.65,{"$f":"+X59","v":0},{"$f":"+Y59","v":38.65},{"$f":"(AH59-AD59)/AH59","v":0},null,2,{"$f":"SUM(AK59:AM59)+AF59","v":38.65},null,null,{"$f":"ROUND(AD59/(1-VLOOKUP(AG59,Group,2,FALSE)),2)","v":38.65},{"$f":"IF(VLOOKUP(AG59,Group,5,FALSE)=\"YES\",VLOOKUP(ROUND(ROUND(AK59,1)-AK59,2),Round,2,FALSE)+VLOOKUP(AG59,Group,6,FALSE),0)","v":0},{"$f":"IF(VLOOKUP(AG59,Group,7,FALSE)=\"\",0,ROUND(AK59-0.04999,1)-AK59+AN59)","v":0},{"$f":"IF(VLOOKUP(AG59,Group,7,FALSE)=\"\",\"\",VLOOKUP(AG59,Group,7,FALSE))","v":""},null,"X"]
[]
[null,"Trim",null,null,"12\" x 24\" x 8mm",null,"Stair Tread",null,null,"Honed",null,null,null,null,null,"8 PCS/CTN",null,"a",{"$f":"IF(Suggested=\"Yes\",AB61,AH61)","v":132.65},"EA",{"$f":"+Instructions!$B$3","v":"D"},null,null,{"$f":"+Instructions!$C$22","v":0},{"$f":"ROUND($AB61*(1-X61)+0.004999,2)","v":132.65},null,"",132.65,{"$f":"+X61","v":0},{"$f":"+Y61","v":132.65},{"$f":"(AH61-AD61)/AH61","v":0},null,2,{"$f":"SUM(AK61:AM61)+AF61","v":132.65},null,null,{"$f":"ROUND(AD61/(1-VLOOKUP(AG61,Group,2,FALSE)),2)","v":132.65},{"$f":"IF(VLOOKUP(AG61,Group,5,FALSE)=\"YES\",VLOOKUP(ROUND(ROUND(AK61,1)-AK61,2),Round,2,FALSE)+VLOOKUP(AG61,Group,6,FALSE),0)","v":0},{"$f":"IF(VLOOKUP(AG61,Group,7,FALSE)=\"\",0,ROUND(AK61-0.04999,1)-AK61+AN61)","v":0},{"$f":"IF(VLOOKUP(AG61,Group,7,FALSE)=\"\",\"\",VLOOKUP(AG61,Group,7,FALSE))","v":""},null,"X"]
[]
[null,"Field Tile",null,null,"4\" x 24\" x 8mm",null,"Field",null,null,"Slate",null,null,null,null,null,"7.75 SF/CTN",null,"a",{"$f":"IF(Suggested=\"Yes\",AB63,AH63)","v":20.399999999999999},"SF",{"$f":"+Instructions!$B$3","v":"D"},null,null,{"$f":"+Instructions!$C$22","v":0},{"$f":"ROUND($AB63*(1-X63)+0.004999,2)","v":20.399999999999999},null,"",20.399999999999999,{"$f":"+X63","v":0},20.399999999999999,{"$f":"(AH63-AD63)/AH63","v":0},null,1,{"$f":"SUM(AK63:AM63)+AF63","v":20.399999999999999},null,null,{"$f":"ROUND(AD63/(1-VLOOKUP(AG63,Group,2,FALSE)),2)","v":20.399999999999999},{"$f":"IF(VLOOKUP(AG63,Group,5,FALSE)=\"YES\",VLOOKUP(ROUND(ROUND(AK63,1)-AK63,2),Round,2,FALSE)+VLOOKUP(AG63,Group,6,FALSE),0)","v":0},{"$f":"IF(VLOOKUP(AG63,Group,7,FALSE)=\"\",0,ROUND(AK63-0.04999,1)-AK63+AN63)","v":0},{"$f":"IF(VLOOKUP(AG63,Group,7,FALSE)=\"\",\"\",VLOOKUP(AG63,Group,7,FALSE))","v":""},null,"X"]
[null,"Field Tile",null,null,"6\" x 24\" x 8mm",null,"Field",null,null,"Slate",null,null,null,null,null,"11.63 SF/CTN",null,"a",{"$f":"IF(Suggested=\"Yes\",AB64,AH64)","v":19.55},"SF",{"$f":"+Instructions!$B$3","v":"D"},null,null,{"$f":"+Instructions!$C$22","v":0},{"$f":"ROUND($AB64*(1-X64)+0.004999,2)","v":19.55},null,"",19.55,0,19.55,{"$f":"(AH64-AD64)/AH64","v":0},null,1,{"$f":"SUM(AK64:AM64)+AF64","v":19.55},null,null,{"$f":"ROUND(AD64/(1-VLOOKUP(AG64,Group,2,FALSE)),2)","v":19.55},{"$f":"IF(VLOOKUP(AG64,Group,5,FALSE)=\"YES\",VLOOKUP(ROUND(ROUND(AK64,1)-AK64,2),Round,2,FALSE)+VLOOKUP(AG64,Group,6,FALSE),0)","v":0},{"$f":"IF(VLOOKUP(AG64,Group,7,FALSE)=\"\",0,ROUND(AK64-0.04999,1)-AK64+AN64)","v":0},{"$f":"IF(VLOOKUP(AG64,Group,7,FALSE)=\"\",\"\",VLOOKUP(AG64,Group,7,FALSE))","v":""},null,"X"]
[null,"Field Tile",null,null,"12\" x 24\" x 8mm",null,"Field",null,null,"Slate",null,null,null,null,null,"15.50 SF/CTN",null,"a",{"$f":"IF(Suggested=\"Yes\",AB65,AH65)","v":15.5},"SF",{"$f":"+Instructions!$B$3","v":"D"},null,null,{"$f":"+Instructions!$C$22","v":0},{"$f":"ROUND($AB65*(1-X65)+0.004999,2)","v":15.5},null,"",15.5,0,15.5,{"$f":"(AH65-AD65)/AH65","v":0},null,1,{"$f":"SUM(AK65:AM65)+AF65","v":15.5},null,null,{"$f":"ROUND(AD65/(1-VLOOKUP(AG65,Group,2,FALSE)),2)","v":15.5},{"$f":"IF(VLOOKUP(AG65,Group,5,FALSE)=\"YES\",VLOOKUP(ROUND(ROUND(AK65,1)-AK65,2),Round,2,FALSE)+VLOOKUP(AG65,Group,6,FALSE),0)","v":0},{"$f":"IF(VLOOKUP(AG65,Group,7,FALSE)=\"\",0,ROUND(AK65-0.04999,1)-AK65+AN65)","v":0},{"$f":"IF(VLOOKUP(AG65,Group,7,FALSE)=\"\",\"\",VLOOKUP(AG65,Group,7,FALSE))","v":""},null,"X"]
[null,"Field Tile",null,null,"24\" x 24\" x 8mm",null,"Field",null,null,"Slate",null,null,null,null,null,"15.50 SF/CTN",null,"a",{"$f":"IF(Suggested=\"Yes\",AB66,AH66)","v":16.55},"SF",{"$f":"+Instructions!$B$3","v":"D"},null,null,{"$f":"+Instructions!$C$22","v":0},{"$f":"ROUND($AB66*(1-X66)+0.004999,2)","v":16.55},null,"",16.55,0,16.55,{"$f":"(AH66-AD66)/AH66","v":0},null,1,{"$f":"SUM(AK66:AM66)+AF66","v":16.55},null,null,{"$f":"ROUND(AD66/(1-VLOOKUP(AG66,Group,2,FALSE)),2)","v":16.55},{"$f":"IF(VLOOKUP(AG66,Group,5,FALSE)=\"YES\",VLOOKUP(ROUND(ROUND(AK66,1)-AK66,2),Round,2,FALSE)+VLOOKUP(AG66,Group,6,FALSE),0)","v":0},{"$f":"IF(VLOOKUP(AG66,Group,7,FALSE)=\"\",0,ROUND(AK66-0.04999,1)-AK66+AN66)","v":0},{"$f":"IF(VLOOKUP(AG66,Group,7,FALSE)=\"\",\"\",VLOOKUP(AG66,Group,7,FALSE))","v":""},null,"X"]
[null,"Field Tile",null,null,"24\" x 48\" x 8mm",null,"Field",null,null,"Slate",null,null,null,null,null,"15.50 SF/CTN",null,"a",{"$f":"IF(Suggested=\"Yes\",AB67,AH67)","v":19.850000000000001},"SF",{"$f":"+Instructions!$B$3","v":"D"},null,null,{"$f":"+Instructions!$C$22","v":0},{"$f":"ROUND($AB67*(1-X67)+0.004999,2)","v":19.850000000000001},null,"",19.850000000000001,0,19.850000000000001,{"$f":"(AH67-AD67)/AH67","v":0},null,1,{"$f":"SUM(AK67:AM67)+AF67","v":19.850000000000001},null,null,{"$f":"ROUND(AD67/(1-VLOOKUP(AG67,Group,2,FALSE)),2)","v":19.850000000000001},{"$f":"IF(VLOOKUP(AG67,Group,5,FALSE)=\"YES\",VLOOKUP(ROUND(ROUND(AK67,1)-AK67,2),Round,2,FALSE)+VLOOKUP(AG67,Group,6,FALSE),0)","v":0},{"$f":"IF(VLOOKUP(AG67,Group,7,FALSE)=\"\",0,ROUND(AK67-0.04999,1)-AK67+AN67)","v":0},{"$f":"IF(VLOOKUP(AG67,Group,7,FALSE)=\"\",\"\",VLOOKUP(AG67,Group,7,FALSE))","v":""},null,"X"]
[]
[null,"Trim",null,null,"4\" x 24\" x 8mm",null,"Bullnose",null,null,"Slate",null,null,null,null,null,"14 PCS/CTN",null,"a",{"$f":"IF(Suggested=\"Yes\",AB69,AH69)","v":39.85},"EA",{"$f":"+Instructions!$B$3","v":"D"},null,null,{"$f":"+Instructions!$C$22","v":0},{"$f":"ROUND($AB69*(1-X69)+0.004999,2)","v":39.85},null,"",39.85,{"$f":"+X69","v":0},{"$f":"+Y69","v":39.85},{"$f":"(AH69-AD69)/AH69","v":0},null,2,{"$f":"SUM(AK69:AM69)+AF69","v":39.85},null,null,{"$f":"ROUND(AD69/(1-VLOOKUP(AG69,Group,2,FALSE)),2)","v":39.85},{"$f":"IF(VLOOKUP(AG69,Group,5,FALSE)=\"YES\",VLOOKUP(ROUND(ROUND(AK69,1)-AK69,2),Round,2,FALSE)+VLOOKUP(AG69,Group,6,FALSE),0)","v":0},{"$f":"IF(VLOOKUP(AG69,Group,7,FALSE)=\"\",0,ROUND(AK69-0.04999,1)-AK69+AN69)","v":0},{"$f":"IF(VLOOKUP(AG69,Group,7,FALSE)=\"\",\"\",VLOOKUP(AG69,Group,7,FALSE))","v":""},null,"X"]
[]
[null,"Trim",null,null,"12\" x 24\" x 8mm",null,"Stair Tread",null,null,"Slate",null,null,null,null,null,"8 PCS/CTN",null,"a",{"$f":"IF(Suggested=\"Yes\",AB71,AH71)","v":136.6},"EA",{"$f":"+Instructions!$B$3","v":"D"},null,null,{"$f":"+Instructions!$C$22","v":0},{"$f":"ROUND($AB71*(1-X71)+0.004999,2)","v":136.6},null,"",136.6,{"$f":"+X71","v":0},{"$f":"+Y71","v":136.6},{"$f":"(AH71-AD71)/AH71","v":0},null,2,{"$f":"SUM(AK71:AM71)+AF71","v":136.6},null,null,{"$f":"ROUND(AD71/(1-VLOOKUP(AG71,Group,2,FALSE)),2)","v":136.6},{"$f":"IF(VLOOKUP(AG71,Group,5,FALSE)=\"YES\",VLOOKUP(ROUND(ROUND(AK71,1)-AK71,2),Round,2,FALSE)+VLOOKUP(AG71,Group,6,FALSE),0)","v":0},{"$f":"IF(VLOOKUP(AG71,Group,7,FALSE)=\"\",0,ROUND(AK71-0.04999,1)-AK71+AN71)","v":0},{"$f":"IF(VLOOKUP(AG71,Group,7,FALSE)=\"\",\"\",VLOOKUP(AG71,Group,7,FALSE))","v":""},null,"X"]
[]
[null,null,null,"Note:","a) Special Order Only.  Extended Lead Time of approximately 8-10 weeks."]
[]
[null,null,"FRENCH CLAY - Glazed Porcelain Floor & Glazed Ceramic Wall",null,null,null,null,null,null,null,null,null,null,null,null,null,null,"Item # Lookup:","FIFC",null,null,null,null,null,null,null,null,null,null,null,null,null,null,null,null,null,null,null,null,null,null,"X"]
[]
[null,null,null,"Colors:","Bronzage          Café          Fume          Lumiere          Sombre",null,null,null,null,null,null,null,null,null,null,null,null,null,null,null,null,null,null,null,null,null,null,null,null,null,null,null,null,null,null,null,null,null,null,null,null,"X"]
[]
[null,"Field Tile",null,"Floor:","12\" x 24\"",null,"Field",null,null,"Matte Rectified ",null,null,null,null,null,"15.75 SF/CTN",null,null,{"$f":"IF(Suggested=\"Yes\",AB79,AH79)","v":8.5500000000000007},"SF",{"$f":"+Instructions!$B$3","v":"D"},null,null,{"$f":"+Instructions!$C$22","v":0},{"$f":"ROUND($AB79*(1-X79)+0.004999,2)","v":8.5500000000000007},null,"",8.5500000000000007,{"$f":"+X79","v":0},{"$f":"+Y79","v":8.5500000000000007},{"$f":"(AH79-AD79)/AH79","v":0},null,1,{"$f":"SUM(AK79:AM79)+AF79","v":8.5500000000000007},null,null,{"$f":"ROUND(AD79/(1-VLOOKUP(AG79,Group,2,FALSE)),2)","v":8.5500000000000007},{"$f":"IF(VLOOKUP(AG79,Group,5,FALSE)=\"YES\",VLOOKUP(ROUND(ROUND(AK79,1)-AK79,2),Round,2,FALSE)+VLOOKUP(AG79,Group,6,FALSE),0)","v":0},{"$f":"IF(VLOOKUP(AG79,Group,7,FALSE)=\"\",0,ROUND(AK79-0.04999,1)-AK79+AN79)","v":0},{"$f":"IF(VLOOKUP(AG79,Group,7,FALSE)=\"\",\"\",VLOOKUP(AG79,Group,7,FALSE))","v":""},null,"X"]
[]
[null,"Decos",null,null,"12\" x 12\"",null,"Mosaic",null,"3\" x 6\"","Matte",null,null,null,null,null,"5 PCS/CTN",null,null,{"$f":"IF(Suggested=\"Yes\",AB81,AH81)","v":30.55},"EA",{"$f":"+Instructions!$B$3","v":"D"},null,null,{"$f":"+Instructions!$C$22","v":0},{"$f":"ROUND($AB81*(1-X81)+0.004999,2)","v":30.55},null,"",30.55,{"$f":"+X81","v":0},{"$f":"+Y81","v":30.55},{"$f":"(AH81-AD81)/AH81","v":0},null,3,{"$f":"SUM(AK81:AM81)+AF81","v":30.55},null,null,{"$f":"ROUND(AD81/(1-VLOOKUP(AG81,Group,2,FALSE)),2)","v":30.55},{"$f":"IF(VLOOKUP(AG81,Group,5,FALSE)=\"YES\",VLOOKUP(ROUND(ROUND(AK81,1)-AK81,2),Round,2,FALSE)+VLOOKUP(AG81,Group,6,FALSE),0)","v":0},{"$f":"IF(VLOOKUP(AG81,Group,7,FALSE)=\"\",0,ROUND(AK81-0.04999,1)-AK81+AN81)","v":0},{"$f":"IF(VLOOKUP(AG81,Group,7,FALSE)=\"\",\"\",VLOOKUP(AG81,Group,7,FALSE))","v":""},null,"X"]
[]
[null,"Trim",null,null,"3\" x 24\"",null,"Bullnose",null,null,"Matte",null,null,null,null,null,"16 PCS/CTN",null,null,{"$f":"IF(Suggested=\"Yes\",AB83,AH83)","v":18.399999999999999},"EA",{"$f":"+Instructions!$B$3","v":"D"},null,null,{"$f":"+Instructions!$C$22","v":0},{"$f":"ROUND($AB83*(1-X83)+0.004999,2)","v":18.399999999999999},null,"",18.399999999999999,{"$f":"+X83","v":0},{"$f":"+Y83","v":18.399999999999999},{"$f":"(AH83-AD83)/AH83","v":0},null,2,{"$f":"SUM(AK83:AM83)+AF83","v":18.399999999999999},null,null,{"$f":"ROUND(AD83/(1-VLOOKUP(AG83,Group,2,FALSE)),2)","v":18.399999999999999},{"$f":"IF(VLOOKUP(AG83,Group,5,FALSE)=\"YES\",VLOOKUP(ROUND(ROUND(AK83,1)-AK83,2),Round,2,FALSE)+VLOOKUP(AG83,Group,6,FALSE),0)","v":0},{"$f":"IF(VLOOKUP(AG83,Group,7,FALSE)=\"\",0,ROUND(AK83-0.04999,1)-AK83+AN83)","v":0},{"$f":"IF(VLOOKUP(AG83,Group,7,FALSE)=\"\",\"\",VLOOKUP(AG83,Group,7,FALSE))","v":""},null,"X"]
[null,"Trim",null,null,"6\" x 12\"",null,"Cove Base",null,null,"Matte",null,null,null,null,null,"8 PCS/CTN",null,null,{"$f":"IF(Suggested=\"Yes\",AB84,AH84)","v":25.2},"EA",{"$f":"+Instructions!$B$3","v":"D"},null,null,{"$f":"+Instructions!$C$22","v":0},{"$f":"ROUND($AB84*(1-X84)+0.004999,2)","v":25.2},null,"",25.2,{"$f":"+X84","v":0},{"$f":"+Y84","v":25.2},{"$f":"(AH84-AD84)/AH84","v":0},null,2,{"$f":"SUM(AK84:AM84)+AF84","v":25.2},null,null,{"$f":"ROUND(AD84/(1-VLOOKUP(AG84,Group,2,FALSE)),2)","v":25.2},{"$f":"IF(VLOOKUP(AG84,Group,5,FALSE)=\"YES\",VLOOKUP(ROUND(ROUND(AK84,1)-AK84,2),Round,2,FALSE)+VLOOKUP(AG84,Group,6,FALSE),0)","v":0},{"$f":"IF(VLOOKUP(AG84,Group,7,FALSE)=\"\",0,ROUND(AK84-0.04999,1)-AK84+AN84)","v":0},{"$f":"IF(VLOOKUP(AG84,Group,7,FALSE)=\"\",\"\",VLOOKUP(AG84,Group,7,FALSE))","v":""},null,"X"]
[]
[null,null,null,"Colors:","Automne",null,"Café",null,"     Glace",null,"    Sombre",null,null,null,null,null,null,null,null,null,null,null,null,null,null,null,null,null,null,null,null,null,null,null,null,null,null,null,null,null,null,"X"]
[null,null,null,null,"Bronzage",null,"Fume",null,"     Lumiere"]
[]
[null,"Field Tile",null,"Wall:","4\" x 12\"",null,"Field",null,"Glossy",null,"DISCONTINUED 1/17/23",null,null,null,null,"10.98 SF/CTN",null,null,{"$f":"IF(Suggested=\"Yes\",AB89,AH89)","v":13.2},"SF",{"$f":"+Instructions!$B$3","v":"D"},null,null,{"$f":"+Instructions!$C$22","v":0},{"$f":"ROUND($AB89*(1-X89)+0.004999,2)","v":13.2},null,"",13.2,{"$f":"+X89","v":0},{"$f":"+Y89","v":13.2},{"$f":"(AH89-AD89)/AH89","v":0},null,1,{"$f":"SUM(AK89:AM89)+AF89","v":13.2},null,null,{"$f":"ROUND(AD89/(1-VLOOKUP(AG89,Group,2,FALSE)),2)","v":13.2},{"$f":"IF(VLOOKUP(AG89,Group,5,FALSE)=\"YES\",VLOOKUP(ROUND(ROUND(AK89,1)-AK89,2),Round,2,FALSE)+VLOOKUP(AG89,Group,6,FALSE),0)","v":0},{"$f":"IF(VLOOKUP(AG89,Group,7,FALSE)=\"\",0,ROUND(AK89-0.04999,1)-AK89+AN89)","v":0},{"$f":"IF(VLOOKUP(AG89,Group,7,FALSE)=\"\",\"\",VLOOKUP(AG89,Group,7,FALSE))","v":""},null,"X"]
[]
[null,"Trim",null,null,"4\" x 12\"",null,"Bullnose",null,"Glossy",null,"DISCONTINUED 1/17/23",null,null,null,null,"12 PCS/CTN",null,null,{"$f":"IF(Suggested=\"Yes\",AB91,AH91)","v":11.6},"EA",{"$f":"+Instructions!$B$3","v":"D"},null,null,{"$f":"+Instructions!$C$22","v":0},{"$f":"ROUND($AB91*(1-X91)+0.004999,2)","v":11.6},null,"",11.6,{"$f":"+X91","v":0},{"$f":"+Y91","v":11.6},{"$f":"(AH91-AD91)/AH91","v":0},null,2,{"$f":"SUM(AK91:AM91)+AF91","v":11.6},null,null,{"$f":"ROUND(AD91/(1-VLOOKUP(AG91,Group,2,FALSE)),2)","v":11.6},{"$f":"IF(VLOOKUP(AG91,Group,5,FALSE)=\"YES\",VLOOKUP(ROUND(ROUND(AK91,1)-AK91,2),Round,2,FALSE)+VLOOKUP(AG91,Group,6,FALSE),0)","v":0},{"$f":"IF(VLOOKUP(AG91,Group,7,FALSE)=\"\",0,ROUND(AK91-0.04999,1)-AK91+AN91)","v":0},{"$f":"IF(VLOOKUP(AG91,Group,7,FALSE)=\"\",\"\",VLOOKUP(AG91,Group,7,FALSE))","v":""},null,"X"]
[]
[null,null,"LOL - Glazed Ceramic Wall",null,null,null,null,null,null,null,null,null,null," ",null,null,null,"Item # Lookup:","FILO",null,null,null,null,null,null,null,null,null,null,null,null,null,null,null,null,null,null,null,null,null,null,"X"]
[]
[null,null,null,"Colors:","Acquamarine          Grey          White",null,null,null,null,null,null,null,null,null,null,null,null,null,null,null,null,null,null,null,null,null,null,null,null,null,null,null,null,null,null,null,null,null,null,null,null,"X"]
[]
[null,"Field Tile",null,null,"4\" x 8\"",null,"Field",null,null,null,null,null,null,null,null,"6.89 SF/CTN",null,null,{"$f":"IF(Suggested=\"Yes\",AB97,AH97)","v":14.7},"SF",{"$f":"+Instructions!$B$3","v":"D"},null,null,{"$f":"+Instructions!$C$22","v":0},{"$f":"ROUND($AB97*(1-X97)+0.004999,2)","v":14.7},null,"",14.7,{"$f":"+X97","v":0},{"$f":"+Y97","v":14.7},{"$f":"(AH97-AD97)/AH97","v":0},null,1,{"$f":"SUM(AK97:AM97)+AF97","v":14.7},null,null,{"$f":"ROUND(AD97/(1-VLOOKUP(AG97,Group,2,FALSE)),2)","v":14.7},{"$f":"IF(VLOOKUP(AG97,Group,5,FALSE)=\"YES\",VLOOKUP(ROUND(ROUND(AK97,1)-AK97,2),Round,2,FALSE)+VLOOKUP(AG97,Group,6,FALSE),0)","v":0},{"$f":"IF(VLOOKUP(AG97,Group,7,FALSE)=\"\",0,ROUND(AK97-0.04999,1)-AK97+AN97)","v":0},{"$f":"IF(VLOOKUP(AG97,Group,7,FALSE)=\"\",\"\",VLOOKUP(AG97,Group,7,FALSE))","v":""},null,"X"]
[]
[null,null,null,"Colors:","Blue          Red          Yellow",null,null,null,null,null,null,null,null,null,null,null,null,null,null,null,null,null,null,null,null,null,null,null,null,null,null,null,null,null,null,null,null,null,null,null,null,"X"]
[]
[null,"Field Tile",null,null,"4\" x 8\"",null,"Field",null,null,null,null,null,null,null,null,"6.89 SF/CTN",null,null,{"$f":"IF(Suggested=\"Yes\",AB101,AH101)","v":15.45},"SF",{"$f":"+Instructions!$B$3","v":"D"},null,null,{"$f":"+Instructions!$C$22","v":0},{"$f":"ROUND($AB101*(1-X101)+0.004999,2)","v":15.45},null,"",15.45,{"$f":"+X101","v":0},{"$f":"+Y101","v":15.45},{"$f":"(AH101-AD101)/AH101","v":0},null,1,{"$f":"SUM(AK101:AM101)+AF101","v":15.45},null,null,{"$f":"ROUND(AD101/(1-VLOOKUP(AG101,Group,2,FALSE)),2)","v":15.45},{"$f":"IF(VLOOKUP(AG101,Group,5,FALSE)=\"YES\",VLOOKUP(ROUND(ROUND(AK101,1)-AK101,2),Round,2,FALSE)+VLOOKUP(AG101,Group,6,FALSE),0)","v":0},{"$f":"IF(VLOOKUP(AG101,Group,7,FALSE)=\"\",0,ROUND(AK101-0.04999,1)-AK101+AN101)","v":0},{"$f":"IF(VLOOKUP(AG101,Group,7,FALSE)=\"\",\"\",VLOOKUP(AG101,Group,7,FALSE))","v":""},null,"X"]
[]
[null,null,null,"Colors:","Acquamarine          Yellow",null,null,null,null,null,null,null,null,null,null,null,null,null,null,null,null,null,null,null,null,null,null,null,null,null,null,null,null,null,null,null,null,null,null,null,null,"X"]
[]
[null,"Decos",null,null,"4\" x 8\"",null,"Deco   LOL",null,null,null,null,null,null,null,null,"6.89 SF/CTN",null,"a,b",{"$f":"IF(Suggested=\"Yes\",AB105,AH105)","v":15.95},"SF",{"$f":"+Instructions!$B$3","v":"D"},null,null,{"$f":"+Instructions!$C$22","v":0},{"$f":"ROUND($AB105*(1-X105)+0.004999,2)","v":15.95},null,"",15.95,{"$f":"+X105","v":0},{"$f":"+Y105","v":15.95},{"$f":"(AH105-AD105)/AH105","v":0},null,3,{"$f":"SUM(AK105:AM105)+AF105","v":15.95},null,null,{"$f":"ROUND(AD105/(1-VLOOKUP(AG105,Group,2,FALSE)),2)","v":15.95},{"$f":"IF(VLOOKUP(AG105,Group,5,FALSE)=\"YES\",VLOOKUP(ROUND(ROUND(AK105,1)-AK105,2),Round,2,FALSE)+VLOOKUP(AG105,Group,6,FALSE),0)","v":0},{"$f":"IF(VLOOKUP(AG105,Group,7,FALSE)=\"\",0,ROUND(AK105-0.04999,1)-AK105+AN105)","v":0},{"$f":"IF(VLOOKUP(AG105,Group,7,FALSE)=\"\",\"\",VLOOKUP(AG105,Group,7,FALSE))","v":""},null,"X"]
[]
[null,null,null,null,"Joy Deco's:",null,"Art          Dott          Flo          Key          Leaf          Mya",null,null,null,null,null,null,null,null,null,null,null,null,null,null,null,null,null,null,null,null,null,null,null,null,null,null,null,null,null,null,null,null,null,null,"X"]
[]
[null,"Decos",null,null,"4\" x 8\"",null,"Deco",null,null,null,null,null,null,null,null,"6.89 SF/CTN",null,"b",{"$f":"IF(Suggested=\"Yes\",AB109,AH109)","v":15.95},"SF",{"$f":"+Instructions!$B$3","v":"D"},null,null,{"$f":"+Instructions!$C$22","v":0},{"$f":"ROUND($AB109*(1-X109)+0.004999,2)","v":15.95},null,"",15.95,{"$f":"+X109","v":0},{"$f":"+Y109","v":15.95},{"$f":"(AH109-AD109)/AH109","v":0},null,3,{"$f":"SUM(AK109:AM109)+AF109","v":15.95},null,null,{"$f":"ROUND(AD109/(1-VLOOKUP(AG109,Group,2,FALSE)),2)","v":15.95},{"$f":"IF(VLOOKUP(AG109,Group,5,FALSE)=\"YES\",VLOOKUP(ROUND(ROUND(AK109,1)-AK109,2),Round,2,FALSE)+VLOOKUP(AG109,Group,6,FALSE),0)","v":0},{"$f":"IF(VLOOKUP(AG109,Group,7,FALSE)=\"\",0,ROUND(AK109-0.04999,1)-AK109+AN109)","v":0},{"$f":"IF(VLOOKUP(AG109,Group,7,FALSE)=\"\",\"\",VLOOKUP(AG109,Group,7,FALSE))","v":""},null,"X"]
[]
[null,null,null,"Notes:","a) Random packaging.",null,null,null,"b) Extended Lead Time - approximately 8-10 weeks."]
[]
[null,null,"MARBLE LAB - Glazed Porcelain",null,null,null,null,null,null,null,null,null,null,null,null,null,null,"Item # Lookup:","FIML",null,null,null,null,null,null,null,null,null,null,null,null,null,null,null,null,null,null,null,null,null,null,"X"]
[]
[null,null,null,"Colors:","Arabescato Orobico",null,null,"Calacatta Statuario",null,null,"           Pietra Grey",null,null,"     Taxos",null,null,null,null,null,null,null,null,null,null,null,null,null,null,null,null,null,null,null,null,null,null,null,null,null,null,null,"X"]
[null,null,null,null,"Calacatta Bellissimo",null,null,"Glam Bronze",null,null,"           Premium White",null,null,null,null," ",null,null,null,null,null,null,null,null,null,null,null,null,null,null,null,null,null,null,null,null,null,null,null,null,null,"X"]
[]
[null,"Stock - Field Tile",null,null,"12\" x 24\"",null,"Field",null,null,"Honed",null,null,null,null,null,"15.50 SF/CTN",null,"a",{"$f":"IF(Suggested=\"Yes\",AB118,AH118)","v":19.8},"SF",{"$f":"+Instructions!$B$3","v":"D"},null,null,{"$f":"+Instructions!$C$22","v":0},{"$f":"ROUND($AB118*(1-X118)+0.004999,2)","v":19.8},null,"",19.8,{"$f":"+X118","v":0},19.8,{"$f":"(AH118-AD118)/AH118","v":0},null,4,{"$f":"SUM(AK118:AM118)+AF118","v":19.8},null,null,{"$f":"ROUND(AD118/(1-VLOOKUP(AG118,Group,2,FALSE)),2)","v":19.8},{"$f":"IF(VLOOKUP(AG118,Group,5,FALSE)=\"YES\",VLOOKUP(ROUND(ROUND(AK118,1)-AK118,2),Round,2,FALSE)+VLOOKUP(AG118,Group,6,FALSE),0)","v":0},{"$f":"IF(VLOOKUP(AG118,Group,7,FALSE)=\"\",0,ROUND(AK118-0.04999,1)-AK118+AN118)","v":0},{"$f":"IF(VLOOKUP(AG118,Group,7,FALSE)=\"\",\"\",VLOOKUP(AG118,Group,7,FALSE))","v":""},null,"X"]
[null,"Stock - Field Tile",null,null,"24\" x 24\"",null,"Field",null,null,"Honed",null,null,null,null,null,"15.50 SF/CTN",null,"a",{"$f":"IF(Suggested=\"Yes\",AB119,AH119)","v":20.5},"SF",{"$f":"+Instructions!$B$3","v":"D"},null,null,{"$f":"+Instructions!$C$22","v":0},{"$f":"ROUND($AB119*(1-X119)+0.004999,2)","v":20.5},null,"",20.5,0,20.5,{"$f":"(AH119-AD119)/AH119","v":0},null,4,{"$f":"SUM(AK119:AM119)+AF119","v":20.5},null,null,{"$f":"ROUND(AD119/(1-VLOOKUP(AG119,Group,2,FALSE)),2)","v":20.5},{"$f":"IF(VLOOKUP(AG119,Group,5,FALSE)=\"YES\",VLOOKUP(ROUND(ROUND(AK119,1)-AK119,2),Round,2,FALSE)+VLOOKUP(AG119,Group,6,FALSE),0)","v":0},{"$f":"IF(VLOOKUP(AG119,Group,7,FALSE)=\"\",0,ROUND(AK119-0.04999,1)-AK119+AN119)","v":0},{"$f":"IF(VLOOKUP(AG119,Group,7,FALSE)=\"\",\"\",VLOOKUP(AG119,Group,7,FALSE))","v":""},null,"X"]
[null,"Stock - Field Tile",null,null,"24\" x 48\"",null,"Field",null,null,"Honed",null,null,null,null,null,"15.50 SF/CTN",null,"a",{"$f":"IF(Suggested=\"Yes\",AB120,AH120)","v":21.7},"SF",{"$f":"+Instructions!$B$3","v":"D"},null,null,{"$f":"+Instructions!$C$22","v":0},{"$f":"ROUND($AB120*(1-X120)+0.004999,2)","v":21.7},null,"",21.7,0,21.7,{"$f":"(AH120-AD120)/AH120","v":0},null,4,{"$f":"SUM(AK120:AM120)+AF120","v":21.7},null,null,{"$f":"ROUND(AD120/(1-VLOOKUP(AG120,Group,2,FALSE)),2)","v":21.7},{"$f":"IF(VLOOKUP(AG120,Group,5,FALSE)=\"YES\",VLOOKUP(ROUND(ROUND(AK120,1)-AK120,2),Round,2,FALSE)+VLOOKUP(AG120,Group,6,FALSE),0)","v":0},{"$f":"IF(VLOOKUP(AG120,Group,7,FALSE)=\"\",0,ROUND(AK120-0.04999,1)-AK120+AN120)","v":0},{"$f":"IF(VLOOKUP(AG120,Group,7,FALSE)=\"\",\"\",VLOOKUP(AG120,Group,7,FALSE))","v":""},null,"X"]
[]
[null,"Stock - Trim",null,null,"4\" x 24\"",null,"Bullnose",null,null,"Honed",null,null,null,null,null,"14 PCS/CTN",null,"b",{"$f":"IF(Suggested=\"Yes\",AB122,AH122)","v":33.35},"EA",{"$f":"+Instructions!$B$3","v":"D"},null,null,{"$f":"+Instructions!$C$22","v":0},{"$f":"ROUND($AB122*(1-X122)+0.004999,2)","v":33.35},null,"",33.35,{"$f":"+X122","v":0},{"$f":"+Y122","v":33.35},{"$f":"(AH122-AD122)/AH122","v":0},null,5,{"$f":"SUM(AK122:AM122)+AF122","v":33.35},null,null,{"$f":"ROUND(AD122/(1-VLOOKUP(AG122,Group,2,FALSE)),2)","v":33.35},{"$f":"IF(VLOOKUP(AG122,Group,5,FALSE)=\"YES\",VLOOKUP(ROUND(ROUND(AK122,1)-AK122,2),Round,2,FALSE)+VLOOKUP(AG122,Group,6,FALSE),0)","v":0},{"$f":"IF(VLOOKUP(AG122,Group,7,FALSE)=\"\",0,ROUND(AK122-0.04999,1)-AK122+AN122)","v":0},{"$f":"IF(VLOOKUP(AG122,Group,7,FALSE)=\"\",\"\",VLOOKUP(AG122,Group,7,FALSE))","v":""},null,"X"]
[]
[null,"Stock - Trim",null,null,"12\" x 24\"",null,"Stair Tread",null,null,"Honed",null,null,null,null,null,"8 PCS/CTN",null,"b",{"$f":"IF(Suggested=\"Yes\",AB124,AH124)","v":112.3},"EA",{"$f":"+Instructions!$B$3","v":"D"},null,null,{"$f":"+Instructions!$C$22","v":0},{"$f":"ROUND($AB124*(1-X124)+0.004999,2)","v":112.3},null,"",112.3,{"$f":"+X124","v":0},{"$f":"+Y124","v":112.3},{"$f":"(AH124-AD124)/AH124","v":0},null,5,{"$f":"SUM(AK124:AM124)+AF124","v":112.3},null,null,{"$f":"ROUND(AD124/(1-VLOOKUP(AG124,Group,2,FALSE)),2)","v":112.3},{"$f":"IF(VLOOKUP(AG124,Group,5,FALSE)=\"YES\",VLOOKUP(ROUND(ROUND(AK124,1)-AK124,2),Round,2,FALSE)+VLOOKUP(AG124,Group,6,FALSE),0)","v":0},{"$f":"IF(VLOOKUP(AG124,Group,7,FALSE)=\"\",0,ROUND(AK124-0.04999,1)-AK124+AN124)","v":0},{"$f":"IF(VLOOKUP(AG124,Group,7,FALSE)=\"\",\"\",VLOOKUP(AG124,Group,7,FALSE))","v":""},null,"X"]
[]
[null,"Field Tile",null,null,"12\" x 24\"",null,"Field",null,null,"Matte",null,null,null,null,null,"15.50 SF/CTN",null,"b,c",{"$f":"IF(Suggested=\"Yes\",AB126,AH126)","v":20.75},"SF",{"$f":"+Instructions!$B$3","v":"D"},null,null,{"$f":"+Instructions!$C$22","v":0},{"$f":"ROUND($AB126*(1-X126)+0.004999,2)","v":20.75},null,"",20.75,{"$f":"+X126","v":0},20.75,{"$f":"(AH126-AD126)/AH126","v":0},null,1,{"$f":"SUM(AK126:AM126)+AF126","v":20.75},null,null,{"$f":"ROUND(AD126/(1-VLOOKUP(AG126,Group,2,FALSE)),2)","v":20.75},{"$f":"IF(VLOOKUP(AG126,Group,5,FALSE)=\"YES\",VLOOKUP(ROUND(ROUND(AK126,1)-AK126,2),Round,2,FALSE)+VLOOKUP(AG126,Group,6,FALSE),0)","v":0},{"$f":"IF(VLOOKUP(AG126,Group,7,FALSE)=\"\",0,ROUND(AK126-0.04999,1)-AK126+AN126)","v":0},{"$f":"IF(VLOOKUP(AG126,Group,7,FALSE)=\"\",\"\",VLOOKUP(AG126,Group,7,FALSE))","v":""},null,"X"]
[null,"Field Tile",null,null,"24\" x 24\"",null,"Field",null,null,"Matte",null,null,null,null,null,"15.50 SF/CTN"," ","b,c",{"$f":"IF(Suggested=\"Yes\",AB127,AH127)","v":21.4},"SF",{"$f":"+Instructions!$B$3","v":"D"},null,null,{"$f":"+Instructions!$C$22","v":0},{"$f":"ROUND($AB127*(1-X127)+0.004999,2)","v":21.4},null,"",21.4,0,21.4,{"$f":"(AH127-AD127)/AH127","v":0},null,1,{"$f":"SUM(AK127:AM127)+AF127","v":21.4},null,null,{"$f":"ROUND(AD127/(1-VLOOKUP(AG127,Group,2,FALSE)),2)","v":21.4},{"$f":"IF(VLOOKUP(AG127,Group,5,FALSE)=\"YES\",VLOOKUP(ROUND(ROUND(AK127,1)-AK127,2),Round,2,FALSE)+VLOOKUP(AG127,Group,6,FALSE),0)","v":0},{"$f":"IF(VLOOKUP(AG127,Group,7,FALSE)=\"\",0,ROUND(AK127-0.04999,1)-AK127+AN127)","v":0},{"$f":"IF(VLOOKUP(AG127,Group,7,FALSE)=\"\",\"\",VLOOKUP(AG127,Group,7,FALSE))","v":""},null,"X"]
[null,"Field Tile",null,null,"24\" x 48\"",null,"Field",null,null,"Matte",null,null,null,null,null,"15.50 SF/CTN",null,"b,c",{"$f":"IF(Suggested=\"Yes\",AB128,AH128)","v":22.6},"SF",{"$f":"+Instructions!$B$3","v":"D"},null,null,{"$f":"+Instructions!$C$22","v":0},{"$f":"ROUND($AB128*(1-X128)+0.004999,2)","v":22.6},null,"",22.6,0,22.6,{"$f":"(AH128-AD128)/AH128","v":0},null,1,{"$f":"SUM(AK128:AM128)+AF128","v":22.6},null,null,{"$f":"ROUND(AD128/(1-VLOOKUP(AG128,Group,2,FALSE)),2)","v":22.6},{"$f":"IF(VLOOKUP(AG128,Group,5,FALSE)=\"YES\",VLOOKUP(ROUND(ROUND(AK128,1)-AK128,2),Round,2,FALSE)+VLOOKUP(AG128,Group,6,FALSE),0)","v":0},{"$f":"IF(VLOOKUP(AG128,Group,7,FALSE)=\"\",0,ROUND(AK128-0.04999,1)-AK128+AN128)","v":0},{"$f":"IF(VLOOKUP(AG128,Group,7,FALSE)=\"\",\"\",VLOOKUP(AG128,Group,7,FALSE))","v":""},null,"X"]
[]
[null,"Trim",null,null,"12\" x 24\"",null,"Stair Tread",null,null,"Matte",null,null,null,null,null,"8 PCS/CTN",null,"b,c",{"$f":"IF(Suggested=\"Yes\",AB130,AH130)","v":115.35},"EA",{"$f":"+Instructions!$B$3","v":"D"},null,null,{"$f":"+Instructions!$C$22","v":0},{"$f":"ROUND($AB130*(1-X130)+0.004999,2)","v":115.35},null,"",115.35,{"$f":"+X130","v":0},{"$f":"+Y130","v":115.35},{"$f":"(AH130-AD130)/AH130","v":0},null,2,{"$f":"SUM(AK130:AM130)+AF130","v":115.35},null,null,{"$f":"ROUND(AD130/(1-VLOOKUP(AG130,Group,2,FALSE)),2)","v":115.35},{"$f":"IF(VLOOKUP(AG130,Group,5,FALSE)=\"YES\",VLOOKUP(ROUND(ROUND(AK130,1)-AK130,2),Round,2,FALSE)+VLOOKUP(AG130,Group,6,FALSE),0)","v":0},{"$f":"IF(VLOOKUP(AG130,Group,7,FALSE)=\"\",0,ROUND(AK130-0.04999,1)-AK130+AN130)","v":0},{"$f":"IF(VLOOKUP(AG130,Group,7,FALSE)=\"\",\"\",VLOOKUP(AG130,Group,7,FALSE))","v":""},null,"X"]
[]
[null,"Stock - Field Tile",null,null,"12\" x 24\"",null,"Field",null,null,"Polished (Bright)",null,null,null,null,null,"11.63 SF/CTN",null,"a,d",{"$f":"IF(Suggested=\"Yes\",AB132,AH132)","v":23.95},"SF",{"$f":"+Instructions!$B$3","v":"D"},null,null,{"$f":"+Instructions!$C$22","v":0},{"$f":"ROUND($AB132*(1-X132)+0.004999,2)","v":23.95},null,"",23.95,{"$f":"+X132","v":0},23.95,{"$f":"(AH132-AD132)/AH132","v":0},null,4,{"$f":"SUM(AK132:AM132)+AF132","v":23.95},null,null,{"$f":"ROUND(AD132/(1-VLOOKUP(AG132,Group,2,FALSE)),2)","v":23.95},{"$f":"IF(VLOOKUP(AG132,Group,5,FALSE)=\"YES\",VLOOKUP(ROUND(ROUND(AK132,1)-AK132,2),Round,2,FALSE)+VLOOKUP(AG132,Group,6,FALSE),0)","v":0},{"$f":"IF(VLOOKUP(AG132,Group,7,FALSE)=\"\",0,ROUND(AK132-0.04999,1)-AK132+AN132)","v":0},{"$f":"IF(VLOOKUP(AG132,Group,7,FALSE)=\"\",\"\",VLOOKUP(AG132,Group,7,FALSE))","v":""},null,"X"]
[null,"Stock - Field Tile",null,null,"24\" x 24\"",null,"Field",null,null,"Polished (Bright)",null,null,null,null,null,"15.50 SF/CTN",null,"a",{"$f":"IF(Suggested=\"Yes\",AB133,AH133)","v":24.95},"SF",{"$f":"+Instructions!$B$3","v":"D"},null,null,{"$f":"+Instructions!$C$22","v":0},{"$f":"ROUND($AB133*(1-X133)+0.004999,2)","v":24.95},null,"",24.95,0,24.95,{"$f":"(AH133-AD133)/AH133","v":0},null,4,{"$f":"SUM(AK133:AM133)+AF133","v":24.95},null,null,{"$f":"ROUND(AD133/(1-VLOOKUP(AG133,Group,2,FALSE)),2)","v":24.95},{"$f":"IF(VLOOKUP(AG133,Group,5,FALSE)=\"YES\",VLOOKUP(ROUND(ROUND(AK133,1)-AK133,2),Round,2,FALSE)+VLOOKUP(AG133,Group,6,FALSE),0)","v":0},{"$f":"IF(VLOOKUP(AG133,Group,7,FALSE)=\"\",0,ROUND(AK133-0.04999,1)-AK133+AN133)","v":0},{"$f":"IF(VLOOKUP(AG133,Group,7,FALSE)=\"\",\"\",VLOOKUP(AG133,Group,7,FALSE))","v":""},null,"X"]
[null,"Stock - Field Tile",null,null,"24\" x 48\"",null,"Field",null,null,"Polished (Bright)",null,null,null,null,null,"15.50 SF/CTN",null,"a",{"$f":"IF(Suggested=\"Yes\",AB134,AH134)","v":26.15},"SF",{"$f":"+Instructions!$B$3","v":"D"},null,null,{"$f":"+Instructions!$C$22","v":0},{"$f":"ROUND($AB134*(1-X134)+0.004999,2)","v":26.15},null,"",26.15,0,26.15,{"$f":"(AH134-AD134)/AH134","v":0},null,4,{"$f":"SUM(AK134:AM134)+AF134","v":26.15},null,null,{"$f":"ROUND(AD134/(1-VLOOKUP(AG134,Group,2,FALSE)),2)","v":26.15},{"$f":"IF(VLOOKUP(AG134,Group,5,FALSE)=\"YES\",VLOOKUP(ROUND(ROUND(AK134,1)-AK134,2),Round,2,FALSE)+VLOOKUP(AG134,Group,6,FALSE),0)","v":0},{"$f":"IF(VLOOKUP(AG134,Group,7,FALSE)=\"\",0,ROUND(AK134-0.04999,1)-AK134+AN134)","v":0},{"$f":"IF(VLOOKUP(AG134,Group,7,FALSE)=\"\",\"\",VLOOKUP(AG134,Group,7,FALSE))","v":""},null,"X"]
[]
[null,"Stock - Trim",null,null,"4\" x 24\"",null,"Bullnose",null,null,"Polished (Bright)",null,null,null,null,null,"14 PCS/CTN",null,"b",{"$f":"IF(Suggested=\"Yes\",AB136,AH136)","v":37.299999999999997},"EA",{"$f":"+Instructions!$B$3","v":"D"},null,null,{"$f":"+Instructions!$C$22","v":0},{"$f":"ROUND($AB136*(1-X136)+0.004999,2)","v":37.299999999999997},null,"",37.299999999999997,{"$f":"+X136","v":0},{"$f":"+Y136","v":37.299999999999997},{"$f":"(AH136-AD136)/AH136","v":0},null,5,{"$f":"SUM(AK136:AM136)+AF136","v":37.299999999999997},null,null,{"$f":"ROUND(AD136/(1-VLOOKUP(AG136,Group,2,FALSE)),2)","v":37.299999999999997},{"$f":"IF(VLOOKUP(AG136,Group,5,FALSE)=\"YES\",VLOOKUP(ROUND(ROUND(AK136,1)-AK136,2),Round,2,FALSE)+VLOOKUP(AG136,Group,6,FALSE),0)","v":0},{"$f":"IF(VLOOKUP(AG136,Group,7,FALSE)=\"\",0,ROUND(AK136-0.04999,1)-AK136+AN136)","v":0},{"$f":"IF(VLOOKUP(AG136,Group,7,FALSE)=\"\",\"\",VLOOKUP(AG136,Group,7,FALSE))","v":""},null,"X"]
[]
[null,"Stock - Trim",null,null,"12\" x 24\"",null,"Stair Tread",null,null,"Polished (Bright)",null,null,null,null,null,"8 PCS/CTN",null,"b",{"$f":"IF(Suggested=\"Yes\",AB138,AH138)","v":124.5},"EA",{"$f":"+Instructions!$B$3","v":"D"},null,null,{"$f":"+Instructions!$C$22","v":0},{"$f":"ROUND($AB138*(1-X138)+0.004999,2)","v":124.5},null,"",124.5,{"$f":"+X138","v":0},{"$f":"+Y138","v":124.5},{"$f":"(AH138-AD138)/AH138","v":0},null,5,{"$f":"SUM(AK138:AM138)+AF138","v":124.5},null,null,{"$f":"ROUND(AD138/(1-VLOOKUP(AG138,Group,2,FALSE)),2)","v":124.5},{"$f":"IF(VLOOKUP(AG138,Group,5,FALSE)=\"YES\",VLOOKUP(ROUND(ROUND(AK138,1)-AK138,2),Round,2,FALSE)+VLOOKUP(AG138,Group,6,FALSE),0)","v":0},{"$f":"IF(VLOOKUP(AG138,Group,7,FALSE)=\"\",0,ROUND(AK138-0.04999,1)-AK138+AN138)","v":0},{"$f":"IF(VLOOKUP(AG138,Group,7,FALSE)=\"\",\"\",VLOOKUP(AG138,Group,7,FALSE))","v":""},null,"X"]
[]
[null,null,null,"Color:","Dark Marquina",null,null,null,null,null,null,null,null,null,null,null,null,null,null,null,null,null,null,null,null,null,null,null,null,null,null,null,null,null,null,null,null,null,null,null,null,"X"]
[]
[null,"Stock - Field Tile",null,null,"12\" x 24\"",null,"Field",null,null,"Polished (Bright)",null,null,null,null,null,"11.63 SF/CTN",null,null,{"$f":"IF(Suggested=\"Yes\",AB142,AH142)","v":24},"SF",{"$f":"+Instructions!$B$3","v":"D"},null,null,{"$f":"+Instructions!$C$22","v":0},{"$f":"ROUND($AB142*(1-X142)+0.004999,2)","v":24},null,"",24,{"$f":"+X142","v":0},24,{"$f":"(AH142-AD142)/AH142","v":0},null,4,{"$f":"SUM(AK142:AM142)+AF142","v":24},null,null,{"$f":"ROUND(AD142/(1-VLOOKUP(AG142,Group,2,FALSE)),2)","v":24},{"$f":"IF(VLOOKUP(AG142,Group,5,FALSE)=\"YES\",VLOOKUP(ROUND(ROUND(AK142,1)-AK142,2),Round,2,FALSE)+VLOOKUP(AG142,Group,6,FALSE),0)","v":0},{"$f":"IF(VLOOKUP(AG142,Group,7,FALSE)=\"\",0,ROUND(AK142-0.04999,1)-AK142+AN142)","v":0},{"$f":"IF(VLOOKUP(AG142,Group,7,FALSE)=\"\",\"\",VLOOKUP(AG142,Group,7,FALSE))","v":""},null,"X"]
[null,"Stock - Field Tile",null,null,"24\" x 24\"",null,"Field",null,null,"Polished (Bright)",null,null,null,null,null,"15.50 SF/CTN",null,null,{"$f":"IF(Suggested=\"Yes\",AB143,AH143)","v":25.05},"SF",{"$f":"+Instructions!$B$3","v":"D"},null,null,{"$f":"+Instructions!$C$22","v":0},{"$f":"ROUND($AB143*(1-X143)+0.004999,2)","v":25.05},null,"",25.05,0,25.05,{"$f":"(AH143-AD143)/AH143","v":0},null,4,{"$f":"SUM(AK143:AM143)+AF143","v":25.05},null,null,{"$f":"ROUND(AD143/(1-VLOOKUP(AG143,Group,2,FALSE)),2)","v":25.05},{"$f":"IF(VLOOKUP(AG143,Group,5,FALSE)=\"YES\",VLOOKUP(ROUND(ROUND(AK143,1)-AK143,2),Round,2,FALSE)+VLOOKUP(AG143,Group,6,FALSE),0)","v":0},{"$f":"IF(VLOOKUP(AG143,Group,7,FALSE)=\"\",0,ROUND(AK143-0.04999,1)-AK143+AN143)","v":0},{"$f":"IF(VLOOKUP(AG143,Group,7,FALSE)=\"\",\"\",VLOOKUP(AG143,Group,7,FALSE))","v":""},null,"X"]
[null,"Stock - Field Tile",null,null,"24\" x 48\"",null,"Field",null,null,"Polished (Bright)",null,null,null,null,null,"15.50 SF/CTN",null,null,{"$f":"IF(Suggested=\"Yes\",AB144,AH144)","v":26.25},"SF",{"$f":"+Instructions!$B$3","v":"D"},null,null,{"$f":"+Instructions!$C$22","v":0},{"$f":"ROUND($AB144*(1-X144)+0.004999,2)","v":26.25},null,"",26.25,0,26.25,{"$f":"(AH144-AD144)/AH144","v":0},null,4,{"$f":"SUM(AK144:AM144)+AF144","v":26.25},null,null,{"$f":"ROUND(AD144/(1-VLOOKUP(AG144,Group,2,FALSE)),2)","v":26.25},{"$f":"IF(VLOOKUP(AG144,Group,5,FALSE)=\"YES\",VLOOKUP(ROUND(ROUND(AK144,1)-AK144,2),Round,2,FALSE)+VLOOKUP(AG144,Group,6,FALSE),0)","v":0},{"$f":"IF(VLOOKUP(AG144,Group,7,FALSE)=\"\",0,ROUND(AK144-0.04999,1)-AK144+AN144)","v":0},{"$f":"IF(VLOOKUP(AG144,Group,7,FALSE)=\"\",\"\",VLOOKUP(AG144,Group,7,FALSE))","v":""},null,"X"]
[]
[null,"Stock - Trim",null,null,"4\" x 24\"",null,"Bullnose",null,null,"Polished (Bright)",null,null,null,null,null,"14 PCS/CTN",null,"b",{"$f":"IF(Suggested=\"Yes\",AB146,AH146)","v":37.299999999999997},"EA",{"$f":"+Instructions!$B$3","v":"D"},null,null,{"$f":"+Instructions!$C$22","v":0},{"$f":"ROUND($AB146*(1-X146)+0.004999,2)","v":37.299999999999997},null,"",37.299999999999997,{"$f":"+X146","v":0},{"$f":"+Y146","v":37.299999999999997},{"$f":"(AH146-AD146)/AH146","v":0},null,5,{"$f":"SUM(AK146:AM146)+AF146","v":37.299999999999997},null,null,{"$f":"ROUND(AD146/(1-VLOOKUP(AG146,Group,2,FALSE)),2)","v":37.299999999999997},{"$f":"IF(VLOOKUP(AG146,Group,5,FALSE)=\"YES\",VLOOKUP(ROUND(ROUND(AK146,1)-AK146,2),Round,2,FALSE)+VLOOKUP(AG146,Group,6,FALSE),0)","v":0},{"$f":"IF(VLOOKUP(AG146,Group,7,FALSE)=\"\",0,ROUND(AK146-0.04999,1)-AK146+AN146)","v":0},{"$f":"IF(VLOOKUP(AG146,Group,7,FALSE)=\"\",\"\",VLOOKUP(AG146,Group,7,FALSE))","v":""},null,"X"]
[]
[null,"Stock - Trim",null,null,"12\" x 24\"",null,"Stair Tread",null,null,"Polished (Bright)",null,null,null,null,null,"8 PCS/CTN",null,"b",{"$f":"IF(Suggested=\"Yes\",AB148,AH148)","v":124.5},"EA",{"$f":"+Instructions!$B$3","v":"D"},null,null,{"$f":"+Instructions!$C$22","v":0},{"$f":"ROUND($AB148*(1-X148)+0.004999,2)","v":124.5},null,"",124.5,{"$f":"+X148","v":0},{"$f":"+Y148","v":124.5},{"$f":"(AH148-AD148)/AH148","v":0},null,5,{"$f":"SUM(AK148:AM148)+AF148","v":124.5},null,null,{"$f":"ROUND(AD148/(1-VLOOKUP(AG148,Group,2,FALSE)),2)","v":124.5},{"$f":"IF(VLOOKUP(AG148,Group,5,FALSE)=\"YES\",VLOOKUP(ROUND(ROUND(AK148,1)-AK148,2),Round,2,FALSE)+VLOOKUP(AG148,Group,6,FALSE),0)","v":0},{"$f":"IF(VLOOKUP(AG148,Group,7,FALSE)=\"\",0,ROUND(AK148-0.04999,1)-AK148+AN148)","v":0},{"$f":"IF(VLOOKUP(AG148,Group,7,FALSE)=\"\",\"\",VLOOKUP(AG148,Group,7,FALSE))","v":""},null,"X"]
[]
[null,null,null,"Colors:","Alpi Chiaro Venato",null,null,"Breccia Mirabile",null,null,"         Lepanto Rubino",null,null,"      Travertino",null,null,null,null,null,null,null,null,null,null,null,null,null,null,null,null,null,null,null,null,null,null,null,null,null,null,null,"X"]
[null,null,null,null,"Bardiglio Sublime",null,null,"Calacatta Dorato",null,null,"         Royal Marfil",null,null,"      White Beauty",null," ",null,null,null,null,null,null,null,null,null,null,null,null,null,null,null,null,null,null,null,null,null,null,null,null,null,"X"]
[]
[null,"Field Tile",null,null,"24\" x 24\"",null,"Field",null,null,"Honed",null,null,null,null,null,"15.50 SF/CTN",null,"e",{"$f":"IF(Suggested=\"Yes\",AB153,AH153)","v":21},"SF",{"$f":"+Instructions!$B$3","v":"D"},null,null,{"$f":"+Instructions!$C$22","v":0},{"$f":"ROUND($AB153*(1-X153)+0.004999,2)","v":21},null,"",21,{"$f":"+X153","v":0},{"$f":"+Y153","v":21},{"$f":"(AH153-AD153)/AH153","v":0},null,1,{"$f":"SUM(AK153:AM153)+AF153","v":21},null,null,{"$f":"ROUND(AD153/(1-VLOOKUP(AG153,Group,2,FALSE)),2)","v":21},{"$f":"IF(VLOOKUP(AG153,Group,5,FALSE)=\"YES\",VLOOKUP(ROUND(ROUND(AK153,1)-AK153,2),Round,2,FALSE)+VLOOKUP(AG153,Group,6,FALSE),0)","v":0},{"$f":"IF(VLOOKUP(AG153,Group,7,FALSE)=\"\",0,ROUND(AK153-0.04999,1)-AK153+AN153)","v":0},{"$f":"IF(VLOOKUP(AG153,Group,7,FALSE)=\"\",\"\",VLOOKUP(AG153,Group,7,FALSE))","v":""},null,"X"]
[null,"Field Tile",null,null,"24\" x 48\"",null,"Field",null,null,"Honed",null,null,null,null,null,"15.50 SF/CTN",null,"e",{"$f":"IF(Suggested=\"Yes\",AB154,AH154)","v":22.25},"SF",{"$f":"+Instructions!$B$3","v":"D"},null,null,{"$f":"+Instructions!$C$22","v":0},{"$f":"ROUND($AB154*(1-X154)+0.004999,2)","v":22.25},null,"",22.25,{"$f":"+X154","v":0},{"$f":"+Y154","v":22.25},{"$f":"(AH154-AD154)/AH154","v":0},null,1,{"$f":"SUM(AK154:AM154)+AF154","v":22.25},null,null,{"$f":"ROUND(AD154/(1-VLOOKUP(AG154,Group,2,FALSE)),2)","v":22.25},{"$f":"IF(VLOOKUP(AG154,Group,5,FALSE)=\"YES\",VLOOKUP(ROUND(ROUND(AK154,1)-AK154,2),Round,2,FALSE)+VLOOKUP(AG154,Group,6,FALSE),0)","v":0},{"$f":"IF(VLOOKUP(AG154,Group,7,FALSE)=\"\",0,ROUND(AK154-0.04999,1)-AK154+AN154)","v":0},{"$f":"IF(VLOOKUP(AG154,Group,7,FALSE)=\"\",\"\",VLOOKUP(AG154,Group,7,FALSE))","v":""},null,"X"]
[]
[null,"Stock - Trim",null,null,"4\" x 24\"",null,"Bullnose",null,null,"Honed",null,null,null,null,null,"14 PCS/CTN",null,"e",{"$f":"IF(Suggested=\"Yes\",AB156,AH156)","v":49.2},"EA",{"$f":"+Instructions!$B$3","v":"D"},null,null,{"$f":"+Instructions!$C$22","v":0},{"$f":"ROUND($AB156*(1-X156)+0.004999,2)","v":49.2},null,"",49.2,{"$f":"+X156","v":0},{"$f":"+Y156","v":49.2},{"$f":"(AH156-AD156)/AH156","v":0},null,5,{"$f":"SUM(AK156:AM156)+AF156","v":49.2},null,null,{"$f":"ROUND(AD156/(1-VLOOKUP(AG156,Group,2,FALSE)),2)","v":49.2},{"$f":"IF(VLOOKUP(AG156,Group,5,FALSE)=\"YES\",VLOOKUP(ROUND(ROUND(AK156,1)-AK156,2),Round,2,FALSE)+VLOOKUP(AG156,Group,6,FALSE),0)","v":0},{"$f":"IF(VLOOKUP(AG156,Group,7,FALSE)=\"\",0,ROUND(AK156-0.04999,1)-AK156+AN156)","v":0},{"$f":"IF(VLOOKUP(AG156,Group,7,FALSE)=\"\",\"\",VLOOKUP(AG156,Group,7,FALSE))","v":""},null,"X"]
[]
[null,"Stock - Trim",null,null,"12\" x 24\"",null,"Stair Tread",null,null,"Honed",null,null,null,null,null,"8 PCS/CTN",null,"e",{"$f":"IF(Suggested=\"Yes\",AB158,AH158)","v":132.75},"EA",{"$f":"+Instructions!$B$3","v":"D"},null,null,{"$f":"+Instructions!$C$22","v":0},{"$f":"ROUND($AB158*(1-X158)+0.004999,2)","v":132.75},null,"",132.75,{"$f":"+X158","v":0},{"$f":"+Y158","v":132.75},{"$f":"(AH158-AD158)/AH158","v":0},null,5,{"$f":"SUM(AK158:AM158)+AF158","v":132.75},null,null,{"$f":"ROUND(AD158/(1-VLOOKUP(AG158,Group,2,FALSE)),2)","v":132.75},{"$f":"IF(VLOOKUP(AG158,Group,5,FALSE)=\"YES\",VLOOKUP(ROUND(ROUND(AK158,1)-AK158,2),Round,2,FALSE)+VLOOKUP(AG158,Group,6,FALSE),0)","v":0},{"$f":"IF(VLOOKUP(AG158,Group,7,FALSE)=\"\",0,ROUND(AK158-0.04999,1)-AK158+AN158)","v":0},{"$f":"IF(VLOOKUP(AG158,Group,7,FALSE)=\"\",\"\",VLOOKUP(AG158,Group,7,FALSE))","v":""},null,"X"]
[]
[null,"Field Tile",null,null,"24\" x 24\"",null,"Field",null,null,"Polished (Bright)",null,null,null,null,null,"15.50 SF/CTN",null,null,{"$f":"IF(Suggested=\"Yes\",AB160,AH160)","v":25.3},"SF",{"$f":"+Instructions!$B$3","v":"D"},null,null,{"$f":"+Instructions!$C$22","v":0},{"$f":"ROUND($AB160*(1-X160)+0.004999,2)","v":25.3},null,"",25.3,{"$f":"+X160","v":0},{"$f":"+Y160","v":25.3},{"$f":"(AH160-AD160)/AH160","v":0},null,1,{"$f":"SUM(AK160:AM160)+AF160","v":25.3},null,null,{"$f":"ROUND(AD160/(1-VLOOKUP(AG160,Group,2,FALSE)),2)","v":25.3},{"$f":"IF(VLOOKUP(AG160,Group,5,FALSE)=\"YES\",VLOOKUP(ROUND(ROUND(AK160,1)-AK160,2),Round,2,FALSE)+VLOOKUP(AG160,Group,6,FALSE),0)","v":0},{"$f":"IF(VLOOKUP(AG160,Group,7,FALSE)=\"\",0,ROUND(AK160-0.04999,1)-AK160+AN160)","v":0},{"$f":"IF(VLOOKUP(AG160,Group,7,FALSE)=\"\",\"\",VLOOKUP(AG160,Group,7,FALSE))","v":""},null,"X"]
[null,"Field Tile",null,null,"24\" x 48\"",null,"Field",null,null,"Polished (Bright)",null,null,null,null,null,"15.50 SF/CTN",null,null,{"$f":"IF(Suggested=\"Yes\",AB161,AH161)","v":26.5},"SF",{"$f":"+Instructions!$B$3","v":"D"},null,null,{"$f":"+Instructions!$C$22","v":0},{"$f":"ROUND($AB161*(1-X161)+0.004999,2)","v":26.5},null,"",26.5,{"$f":"+X161","v":0},{"$f":"+Y161","v":26.5},{"$f":"(AH161-AD161)/AH161","v":0},null,1,{"$f":"SUM(AK161:AM161)+AF161","v":26.5},null,null,{"$f":"ROUND(AD161/(1-VLOOKUP(AG161,Group,2,FALSE)),2)","v":26.5},{"$f":"IF(VLOOKUP(AG161,Group,5,FALSE)=\"YES\",VLOOKUP(ROUND(ROUND(AK161,1)-AK161,2),Round,2,FALSE)+VLOOKUP(AG161,Group,6,FALSE),0)","v":0},{"$f":"IF(VLOOKUP(AG161,Group,7,FALSE)=\"\",0,ROUND(AK161-0.04999,1)-AK161+AN161)","v":0},{"$f":"IF(VLOOKUP(AG161,Group,7,FALSE)=\"\",\"\",VLOOKUP(AG161,Group,7,FALSE))","v":""},null,"X"]
[]
[null,"Stock - Trim",null,null,"4\" x 24\"",null,"Bullnose",null,null,"Polished (Bright)",null,null,null,null,null,"14 PCS/CTN",null,null,{"$f":"IF(Suggested=\"Yes\",AB163,AH163)","v":51.65},"EA",{"$f":"+Instructions!$B$3","v":"D"},null,null,{"$f":"+Instructions!$C$22","v":0},{"$f":"ROUND($AB163*(1-X163)+0.004999,2)","v":51.65},null,"",51.65,{"$f":"+X163","v":0},{"$f":"+Y163","v":51.65},{"$f":"(AH163-AD163)/AH163","v":0},null,5,{"$f":"SUM(AK163:AM163)+AF163","v":51.65},null,null,{"$f":"ROUND(AD163/(1-VLOOKUP(AG163,Group,2,FALSE)),2)","v":51.65},{"$f":"IF(VLOOKUP(AG163,Group,5,FALSE)=\"YES\",VLOOKUP(ROUND(ROUND(AK163,1)-AK163,2),Round,2,FALSE)+VLOOKUP(AG163,Group,6,FALSE),0)","v":0},{"$f":"IF(VLOOKUP(AG163,Group,7,FALSE)=\"\",0,ROUND(AK163-0.04999,1)-AK163+AN163)","v":0},{"$f":"IF(VLOOKUP(AG163,Group,7,FALSE)=\"\",\"\",VLOOKUP(AG163,Group,7,FALSE))","v":""},null,"X"]
[]
[null,"Stock - Trim",null,null,"12\" x 24\"",null,"Stair Tread",null,null,"Polished (Bright)",null,null,null,null,null,"8 PCS/CTN",null,null,{"$f":"IF(Suggested=\"Yes\",AB165,AH165)","v":132.75},"EA",{"$f":"+Instructions!$B$3","v":"D"},null,null,{"$f":"+Instructions!$C$22","v":0},{"$f":"ROUND($AB165*(1-X165)+0.004999,2)","v":132.75},null,"",132.75,{"$f":"+X165","v":0},{"$f":"+Y165","v":132.75},{"$f":"(AH165-AD165)/AH165","v":0},null,5,{"$f":"SUM(AK165:AM165)+AF165","v":132.75},null,null,{"$f":"ROUND(AD165/(1-VLOOKUP(AG165,Group,2,FALSE)),2)","v":132.75},{"$f":"IF(VLOOKUP(AG165,Group,5,FALSE)=\"YES\",VLOOKUP(ROUND(ROUND(AK165,1)-AK165,2),Round,2,FALSE)+VLOOKUP(AG165,Group,6,FALSE),0)","v":0},{"$f":"IF(VLOOKUP(AG165,Group,7,FALSE)=\"\",0,ROUND(AK165-0.04999,1)-AK165+AN165)","v":0},{"$f":"IF(VLOOKUP(AG165,Group,7,FALSE)=\"\",\"\",VLOOKUP(AG165,Group,7,FALSE))","v":""},null,"X"]
[]
[null,null,null,"Colors:","Breccia Mirabile          Calacatta Bellissimo          Pietra Grey          Premium White",null,null,null,null,null,null,null,null,null,null,null,null,null,null,null,null,null,null,null,null,null,null,null,null,null,null,null,null,null,null,null,null,null,null,null,null,"X"]
[]
[null,"Field Tile",null,null,"24\" x 24\"",null,"Field",null,null,"Satin",null,null,null,null,null,"15.50 SF/CTN",null,null,{"$f":"IF(Suggested=\"Yes\",AB169,AH169)","v":25.3},"SF",{"$f":"+Instructions!$B$3","v":"D"},null,null,{"$f":"+Instructions!$C$22","v":0},{"$f":"ROUND($AB169*(1-X169)+0.004999,2)","v":25.3},null,"",25.3,{"$f":"+X169","v":0},{"$f":"+Y169","v":25.3},{"$f":"(AH169-AD169)/AH169","v":0},null,1,{"$f":"SUM(AK169:AM169)+AF169","v":25.3},null,null,{"$f":"ROUND(AD169/(1-VLOOKUP(AG169,Group,2,FALSE)),2)","v":25.3},{"$f":"IF(VLOOKUP(AG169,Group,5,FALSE)=\"YES\",VLOOKUP(ROUND(ROUND(AK169,1)-AK169,2),Round,2,FALSE)+VLOOKUP(AG169,Group,6,FALSE),0)","v":0},{"$f":"IF(VLOOKUP(AG169,Group,7,FALSE)=\"\",0,ROUND(AK169-0.04999,1)-AK169+AN169)","v":0},{"$f":"IF(VLOOKUP(AG169,Group,7,FALSE)=\"\",\"\",VLOOKUP(AG169,Group,7,FALSE))","v":""},null,"X"]
[null,"Field Tile",null,null,"24\" x 48\"",null,"Field",null,null,"Satin",null,null,null,null,null,"15.50 SF/CTN",null,null,{"$f":"IF(Suggested=\"Yes\",AB170,AH170)","v":26.5},"SF",{"$f":"+Instructions!$B$3","v":"D"},null,null,{"$f":"+Instructions!$C$22","v":0},{"$f":"ROUND($AB170*(1-X170)+0.004999,2)","v":26.5},null,"",26.5,{"$f":"+X170","v":0},{"$f":"+Y170","v":26.5},{"$f":"(AH170-AD170)/AH170","v":0},null,1,{"$f":"SUM(AK170:AM170)+AF170","v":26.5},null,null,{"$f":"ROUND(AD170/(1-VLOOKUP(AG170,Group,2,FALSE)),2)","v":26.5},{"$f":"IF(VLOOKUP(AG170,Group,5,FALSE)=\"YES\",VLOOKUP(ROUND(ROUND(AK170,1)-AK170,2),Round,2,FALSE)+VLOOKUP(AG170,Group,6,FALSE),0)","v":0},{"$f":"IF(VLOOKUP(AG170,Group,7,FALSE)=\"\",0,ROUND(AK170-0.04999,1)-AK170+AN170)","v":0},{"$f":"IF(VLOOKUP(AG170,Group,7,FALSE)=\"\",\"\",VLOOKUP(AG170,Group,7,FALSE))","v":""},null,"X"]
[]
[null,"Stock - Trim",null,null,"4\" x 24\"",null,"Bullnose",null,null,"Satin",null,null,null,null,null,"14 PCS/CTN",null,null,{"$f":"IF(Suggested=\"Yes\",AB172,AH172)","v":51.65},"EA",{"$f":"+Instructions!$B$3","v":"D"},null,null,{"$f":"+Instructions!$C$22","v":0},{"$f":"ROUND($AB172*(1-X172)+0.004999,2)","v":51.65},null,"",51.65,{"$f":"+X172","v":0},{"$f":"+Y172","v":51.65},{"$f":"(AH172-AD172)/AH172","v":0},null,5,{"$f":"SUM(AK172:AM172)+AF172","v":51.65},null,null,{"$f":"ROUND(AD172/(1-VLOOKUP(AG172,Group,2,FALSE)),2)","v":51.65},{"$f":"IF(VLOOKUP(AG172,Group,5,FALSE)=\"YES\",VLOOKUP(ROUND(ROUND(AK172,1)-AK172,2),Round,2,FALSE)+VLOOKUP(AG172,Group,6,FALSE),0)","v":0},{"$f":"IF(VLOOKUP(AG172,Group,7,FALSE)=\"\",0,ROUND(AK172-0.04999,1)-AK172+AN172)","v":0},{"$f":"IF(VLOOKUP(AG172,Group,7,FALSE)=\"\",\"\",VLOOKUP(AG172,Group,7,FALSE))","v":""},null,"X"]
[]
[null,"Stock - Trim",null,null,"12\" x 24\"",null,"Stair Tread",null,null,"Satin",null,null,null,null,null,"8 PCS/CTN",null,null,{"$f":"IF(Suggested=\"Yes\",AB174,AH174)","v":132.75},"EA",{"$f":"+Instructions!$B$3","v":"D"},null,null,{"$f":"+Instructions!$C$22","v":0},{"$f":"ROUND($AB174*(1-X174)+0.004999,2)","v":132.75},null,"",132.75,{"$f":"+X174","v":0},{"$f":"+Y174","v":132.75},{"$f":"(AH174-AD174)/AH174","v":0},null,5,{"$f":"SUM(AK174:AM174)+AF174","v":132.75},null,null,{"$f":"ROUND(AD174/(1-VLOOKUP(AG174,Group,2,FALSE)),2)","v":132.75},{"$f":"IF(VLOOKUP(AG174,Group,5,FALSE)=\"YES\",VLOOKUP(ROUND(ROUND(AK174,1)-AK174,2),Round,2,FALSE)+VLOOKUP(AG174,Group,6,FALSE),0)","v":0},{"$f":"IF(VLOOKUP(AG174,Group,7,FALSE)=\"\",0,ROUND(AK174-0.04999,1)-AK174+AN174)","v":0},{"$f":"IF(VLOOKUP(AG174,Group,7,FALSE)=\"\",\"\",VLOOKUP(AG174,Group,7,FALSE))","v":""},null,"X"]
[]
[null,null,null,"Notes:","a) Colors Arabescato Orobico, Glam Bronze an Noble Ecru Special Order Only.  Extended Lead Time of approximately 8-10 weeks."]
[null,null,null,null,"b) Special Order Only.  Extended Lead Time of approximately 8-10 weeks."]
[null,null,null,null,"c) Not available in colors Arabescato Orobico, Glam Bronze and Taxos."]
[null,null,null,null,"d) Packaging changing from 15.50 SF/CTN to 11.63 SF/CTN as inventory with old packaging is depleted."]
[null,null,null,null,"e) Not available in color White Beauty."]
[]
[null,null,"MAXIMUM - Large Panel Porcelain",null,null,null,null,null,null,null,null,null,null,null,null,null,null,"Item # Lookup:","FIMA",null,null,null,null,null,null,null,null,null,null,null,null,null,null,null,null,null,null,null,null,null,null,"X"]
[]
[null,null,null,null,null,null,null,null,null,null,"Large Panel Packaging & Freight Charges",null,null,null,null,null,null,null,null,null,null,null,null,null,null,null,null,null,null,null,null,null,null,null,null,null,null,null,null,null,null,"X"]
[]
[null,null,null,"Large Panel Porcelain will also involve additional packaging & freight charges depending on sizes and quantities.  See below for these additional charges.  120\" panels are always subject to additional freight charges based on project quantity."]
[]
[null,null,null,null,null,"Size",null,null,null,null,"Total Pieces per Crate",null,null,"Description"]
[]
[null,"Stock - Field Tile",null,null,null,null,"30\" x 15\" x 6mm",null,null,null,264,null,null,"Big Crate",null,null,null,null,{"$f":"IF(Suggested=\"Yes\",AB190,AH190)","v":144},"EA",{"$f":"+Instructions!$B$3","v":"D"},null,null,{"$f":"+Instructions!$C$22","v":0},{"$f":"ROUND($AB190*(1-X190)+0.004999,2)","v":144},null,"",144,{"$f":"+X190","v":0},{"$f":"+Y190","v":144},{"$f":"(AH190-AD190)/AH190","v":0},null,4,{"$f":"SUM(AK190:AM190)+AF190","v":144},null,null,{"$f":"ROUND(AD190/(1-VLOOKUP(AG190,Group,2,FALSE)),2)","v":144},{"$f":"IF(VLOOKUP(AG190,Group,5,FALSE)=\"YES\",VLOOKUP(ROUND(ROUND(AK190,1)-AK190,2),Round,2,FALSE)+VLOOKUP(AG190,Group,6,FALSE),0)","v":0},{"$f":"IF(VLOOKUP(AG190,Group,7,FALSE)=\"\",0,ROUND(AK190-0.04999,1)-AK190+AN190)","v":0},{"$f":"IF(VLOOKUP(AG190,Group,7,FALSE)=\"\",\"\",VLOOKUP(AG190,Group,7,FALSE))","v":""},null,"X"]
[null,"Stock - Field Tile",null,null,null,null,"30\" x 30\" x 6mm",null,null,null,114,null,null,"Big Crate",null,null,null,null,144,"EA",{"$f":"+Instructions!$B$3","v":"D"},null,null,{"$f":"+Instructions!$C$22","v":0},144,null,"",144,0,144,0,null,4,144,null,null,144,0,0,"",null,"X"]
[null,"Stock - Field Tile",null,null,null,null,"40\" x 40\" x 6mm",null,null,null,52,null,null,"Big Crate",null,null,null,null,144,"EA",{"$f":"+Instructions!$B$3","v":"D"},null,null,{"$f":"+Instructions!$C$22","v":0},144,null,"",144,0,144,0,null,4,144,null,null,144,0,0,"",null,"X"]
[null,"Stock - Field Tile",null,null,null,null,"60\" x 30\" x 6mm",null,null,null,52,null,null,"Big Crate",null,null,null,null,144,"EA",{"$f":"+Instructions!$B$3","v":"D"},null,null,{"$f":"+Instructions!$C$22","v":0},144,null,"",144,0,144,0,null,4,144,null,null,144,0,0,"",null,"X"]
[null,"Stock - Field Tile",null,null,null,null,"60\" x 40\" x 6mm",null,null,null,40,null,null,"Big Crate",null,null,null,null,144,"EA",{"$f":"+Instructions!$B$3","v":"D"},null,null,{"$f":"+Instructions!$C$22","v":0},144,null,"",144,0,144,0,null,4,144,null,null,144,0,0,"",null,"X"]
[null,"Stock - Field Tile",null,null,null,null,"60\" x 60\" x 6mm",null,null,null,24,null,null,"Crate",null,null,null,null,240,"EA",{"$f":"+Instructions!$B$3","v":"D"},null,null,{"$f":"+Instructions!$C$22","v":0},240,null,"",240,0,240,0,null,4,240,null,null,240,0,0,"",null,"X"]
[null,"Stock - Field Tile",null,null,null,null,"96\" x 8\" x 6mm",null,null,null,135,null,null,"Big Crate",null,null,null,null,144,"EA",{"$f":"+Instructions!$B$3","v":"D"},null,null,{"$f":"+Instructions!$C$22","v":0},144,null,"",144,0,144,0,null,4,144,null,null,144,0,0,"",null,"X"]
[null,"Stock - Field Tile",null,null,null,null,"120\" x 40\" x 6mm",null,null,null,50,null,null,"A-Frame",null,null,null,null,546,"EA",{"$f":"+Instructions!$B$3","v":"D"},null,null,{"$f":"+Instructions!$C$22","v":0},546,null,"",546,0,546,0,null,4,546,null,null,546,0,0,"",null,"X"]
[null,"Stock - Field Tile",null,null,null,null,"120\" x 40\" x 6mm",null,null,null,16,null,null,"Crate",null,null,null,null,240,"EA",{"$f":"+Instructions!$B$3","v":"D"},null,null,{"$f":"+Instructions!$C$22","v":0},240,null,"",240,0,240,0,null,4,240,null,null,240,0,0,"",null,"X"]
[null,"Stock - Field Tile",null,null,null,null,"120\" x 60\" x 6mm",null,null,null,12,null,null,"Crate",null,null,null,null,{"$f":"IF(Suggested=\"Yes\",AB199,AH199)","v":288},"EA",{"$f":"+Instructions!$B$3","v":"D"},null,null,{"$f":"+Instructions!$C$22","v":0},{"$f":"ROUND($AB199*(1-X199)+0.004999,2)","v":288},null,"",288,{"$f":"+X199","v":0},{"$f":"+Y199","v":288},{"$f":"(AH199-AD199)/AH199","v":0},null,4,{"$f":"SUM(AK199:AM199)+AF199","v":288},null,null,{"$f":"ROUND(AD199/(1-VLOOKUP(AG199,Group,2,FALSE)),2)","v":288},{"$f":"IF(VLOOKUP(AG199,Group,5,FALSE)=\"YES\",VLOOKUP(ROUND(ROUND(AK199,1)-AK199,2),Round,2,FALSE)+VLOOKUP(AG199,Group,6,FALSE),0)","v":0},{"$f":"IF(VLOOKUP(AG199,Group,7,FALSE)=\"\",0,ROUND(AK199-0.04999,1)-AK199+AN199)","v":0},{"$f":"IF(VLOOKUP(AG199,Group,7,FALSE)=\"\",\"\",VLOOKUP(AG199,Group,7,FALSE))","v":""},null,"X"]
[null,"Stock - Field Tile",null,null,null,null,"120\" x 60\" x 6mm",null,null,null,"25 to 50",null,null,"A-Frame",null,null,null,null,546,"EA",{"$f":"+Instructions!$B$3","v":"D"},null,null,{"$f":"+Instructions!$C$22","v":0},546,null,"",546,0,546,0,null,4,546,null,null,546,0,0,"",null,"X"]
[]
[null,null,"continued on next page",null,null,null,null,null,null," "]
[null,null,"MAXIMUM - Large Panel Porcelain - continued",null,null,null,null,null,null,null,null,null,null,null,null,null,null,null,null,null,null,null,null,null,null,null,null,null,null,null,null,null,null,null,null,null,null,null,null,null,null,"X"]
[]
[null,null,null,"Large Panel Porcelain will also involve additional packaging & freight charges depending on sizes and quantities.  See Page 2 for these additional charges.  120\" panels are always subject to additional freight charges based on project quantity."]
[]
[null,null,"     AGATA MAXIMUM",null,null,null,null,null,null,null,null,null,null,null,null,null,null,"Item # Lookup:","FIMAAG"]
[]
[null,null,null,"Colors:","Atena          Black          Blu",null,null,null,null,null,null,null,null,null,null,null,null,null,null,null,null,null,null,null,null,null,null,null,null,null,null,null,null,null,null,null,null,null,null,null,null,"X"]
[]
[null,"Stock - Field Tile",null,null,"120\" x 60\" x 6mm",null,"Field",null,null,"Polished (Bright)",null,null,null,null,null,"48.44 SF/CTN",null,null,{"$f":"IF(Suggested=\"Yes\",AB211,AH211)","v":59.05},"SF",{"$f":"+Instructions!$B$3","v":"D"},null,null,{"$f":"+Instructions!$C$22","v":0},{"$f":"ROUND($AB211*(1-X211)+0.004999,2)","v":59.05},null,"",59.05,{"$f":"+X211","v":0},{"$f":"+Y211","v":59.05},{"$f":"(AH211-AD211)/AH211","v":0},null,4,{"$f":"SUM(AK211:AM211)+AF211","v":59.05},null,null,{"$f":"ROUND(AD211/(1-VLOOKUP(AG211,Group,2,FALSE)),2)","v":59.05},{"$f":"IF(VLOOKUP(AG211,Group,5,FALSE)=\"YES\",VLOOKUP(ROUND(ROUND(AK211,1)-AK211,2),Round,2,FALSE)+VLOOKUP(AG211,Group,6,FALSE),0)","v":0},{"$f":"IF(VLOOKUP(AG211,Group,7,FALSE)=\"\",0,ROUND(AK211-0.04999,1)-AK211+AN211)","v":0},{"$f":"IF(VLOOKUP(AG211,Group,7,FALSE)=\"\",\"\",VLOOKUP(AG211,Group,7,FALSE))","v":""},null,"X"]
[]
[null,null,"     AION MAXIMUM",null,null,null,null,null,null,null,null,null,null,null,null,null,null,"Item # Lookup:","FIMAAI"]
[]
[null,null,null,"Colors:","Black          Grey          White",null,null,null,null,null,null,null,null,null,null,null,null,null,null,null,null,null,null,null,null,null,null,null,null,null,null,null,null,null,null,null,null,null,null,null,null,"X"]
[]
[null,"Stock - Field Tile",null,null,"30\" x 15\" x 6mm",null,"Field",null,null,"Honed",null,null,null,null,null,"18.17 SF/CTN",null,null,{"$f":"IF(Suggested=\"Yes\",AB217,AH217)","v":23.4},"SF",{"$f":"+Instructions!$B$3","v":"D"},null,null,{"$f":"+Instructions!$C$22","v":0},{"$f":"ROUND($AB217*(1-X217)+0.004999,2)","v":23.4},null,"",23.4,{"$f":"+X217","v":0},23.4,{"$f":"(AH217-AD217)/AH217","v":0},null,4,{"$f":"SUM(AK217:AM217)+AF217","v":23.4},null,null,{"$f":"ROUND(AD217/(1-VLOOKUP(AG217,Group,2,FALSE)),2)","v":23.4},{"$f":"IF(VLOOKUP(AG217,Group,5,FALSE)=\"YES\",VLOOKUP(ROUND(ROUND(AK217,1)-AK217,2),Round,2,FALSE)+VLOOKUP(AG217,Group,6,FALSE),0)","v":0},{"$f":"IF(VLOOKUP(AG217,Group,7,FALSE)=\"\",0,ROUND(AK217-0.04999,1)-AK217+AN217)","v":0},{"$f":"IF(VLOOKUP(AG217,Group,7,FALSE)=\"\",\"\",VLOOKUP(AG217,Group,7,FALSE))","v":""},null,"X"]
[null,"Stock - Field Tile",null,null,"30\" x 30\" x 6mm",null,"Field",null,null,"Honed",null,null,null,null,null,"18.17 SF/CTN",null,null,{"$f":"IF(Suggested=\"Yes\",AB218,AH218)","v":23.4},"SF",{"$f":"+Instructions!$B$3","v":"D"},null,null,{"$f":"+Instructions!$C$22","v":0},{"$f":"ROUND($AB218*(1-X218)+0.004999,2)","v":23.4},null,"",23.4,0,23.4,{"$f":"(AH218-AD218)/AH218","v":0},null,4,{"$f":"SUM(AK218:AM218)+AF218","v":23.4},null,null,{"$f":"ROUND(AD218/(1-VLOOKUP(AG218,Group,2,FALSE)),2)","v":23.4},{"$f":"IF(VLOOKUP(AG218,Group,5,FALSE)=\"YES\",VLOOKUP(ROUND(ROUND(AK218,1)-AK218,2),Round,2,FALSE)+VLOOKUP(AG218,Group,6,FALSE),0)","v":0},{"$f":"IF(VLOOKUP(AG218,Group,7,FALSE)=\"\",0,ROUND(AK218-0.04999,1)-AK218+AN218)","v":0},{"$f":"IF(VLOOKUP(AG218,Group,7,FALSE)=\"\",\"\",VLOOKUP(AG218,Group,7,FALSE))","v":""},null,"X"]
[null,"Stock - Field Tile",null,null,"60\" x 30\" x 6mm",null,"Field",null,null,"Honed",null,null,null,null,null,"24.22 SF/CTN",null,null,{"$f":"IF(Suggested=\"Yes\",AB219,AH219)","v":28.85},"SF",{"$f":"+Instructions!$B$3","v":"D"},null,null,{"$f":"+Instructions!$C$22","v":0},{"$f":"ROUND($AB219*(1-X219)+0.004999,2)","v":28.85},null,"",28.85,0,28.85,{"$f":"(AH219-AD219)/AH219","v":0},null,4,{"$f":"SUM(AK219:AM219)+AF219","v":28.85},null,null,{"$f":"ROUND(AD219/(1-VLOOKUP(AG219,Group,2,FALSE)),2)","v":28.85},{"$f":"IF(VLOOKUP(AG219,Group,5,FALSE)=\"YES\",VLOOKUP(ROUND(ROUND(AK219,1)-AK219,2),Round,2,FALSE)+VLOOKUP(AG219,Group,6,FALSE),0)","v":0},{"$f":"IF(VLOOKUP(AG219,Group,7,FALSE)=\"\",0,ROUND(AK219-0.04999,1)-AK219+AN219)","v":0},{"$f":"IF(VLOOKUP(AG219,Group,7,FALSE)=\"\",\"\",VLOOKUP(AG219,Group,7,FALSE))","v":""},null,"X"]
[null,"Stock - Field Tile",null,null,"60\" x 60\" x 6mm",null,"Field",null,null,"Honed",null,null,null,null,null,"24.22 SF/CTN",null,null,{"$f":"IF(Suggested=\"Yes\",AB220,AH220)","v":31.75},"SF",{"$f":"+Instructions!$B$3","v":"D"},null,null,{"$f":"+Instructions!$C$22","v":0},{"$f":"ROUND($AB220*(1-X220)+0.004999,2)","v":31.75},null,"",31.75,0,31.75,{"$f":"(AH220-AD220)/AH220","v":0},null,4,{"$f":"SUM(AK220:AM220)+AF220","v":31.75},null,null,{"$f":"ROUND(AD220/(1-VLOOKUP(AG220,Group,2,FALSE)),2)","v":31.75},{"$f":"IF(VLOOKUP(AG220,Group,5,FALSE)=\"YES\",VLOOKUP(ROUND(ROUND(AK220,1)-AK220,2),Round,2,FALSE)+VLOOKUP(AG220,Group,6,FALSE),0)","v":0},{"$f":"IF(VLOOKUP(AG220,Group,7,FALSE)=\"\",0,ROUND(AK220-0.04999,1)-AK220+AN220)","v":0},{"$f":"IF(VLOOKUP(AG220,Group,7,FALSE)=\"\",\"\",VLOOKUP(AG220,Group,7,FALSE))","v":""},null,"X"]
[null,"Stock - Field Tile",null,null,"120\" x 60\" x 6mm",null,"Field",null,null,"Honed",null,null,null,null,null,"48.44 SF/CTN",null,null,{"$f":"IF(Suggested=\"Yes\",AB221,AH221)","v":32.9},"SF",{"$f":"+Instructions!$B$3","v":"D"},null,null,{"$f":"+Instructions!$C$22","v":0},{"$f":"ROUND($AB221*(1-X221)+0.004999,2)","v":32.9},null,"",32.9,0,32.9,{"$f":"(AH221-AD221)/AH221","v":0},null,4,{"$f":"SUM(AK221:AM221)+AF221","v":32.9},null,null,{"$f":"ROUND(AD221/(1-VLOOKUP(AG221,Group,2,FALSE)),2)","v":32.9},{"$f":"IF(VLOOKUP(AG221,Group,5,FALSE)=\"YES\",VLOOKUP(ROUND(ROUND(AK221,1)-AK221,2),Round,2,FALSE)+VLOOKUP(AG221,Group,6,FALSE),0)","v":0},{"$f":"IF(VLOOKUP(AG221,Group,7,FALSE)=\"\",0,ROUND(AK221-0.04999,1)-AK221+AN221)","v":0},{"$f":"IF(VLOOKUP(AG221,Group,7,FALSE)=\"\",\"\",VLOOKUP(AG221,Group,7,FALSE))","v":""},null,"X"]
[]
[null,null,"     ASTER MAXIMUM",null,null,null,null,null,null,null,null,null,null,null,null,null,null,"Item # Lookup:","FIMAAS"]
[]
[null,null,null,"Colors:","Mercury          Moon          Venus",null,null,null,null,null,null,null,null,null,null,null,null,null,null,null,null,null,null,null,null,null,null,null,null,null,null,null,null,null,null,null,null,null,null,null,null,"X"]
[]
[null,"Stock - Field Tile",null,null,"40\" x 40\" x 6mm",null,"Field",null,null,"Honed",null,null,null,null,null,"21.53 SF/CTN",null,null,{"$f":"IF(Suggested=\"Yes\",AB227,AH227)","v":22.2},"SF",{"$f":"+Instructions!$B$3","v":"D"},null,null,{"$f":"+Instructions!$C$22","v":0},{"$f":"ROUND($AB227*(1-X227)+0.004999,2)","v":22.2},null,"",22.2,{"$f":"+X227","v":0},22.2,{"$f":"(AH227-AD227)/AH227","v":0},null,4,{"$f":"SUM(AK227:AM227)+AF227","v":22.2},null,null,{"$f":"ROUND(AD227/(1-VLOOKUP(AG227,Group,2,FALSE)),2)","v":22.2},{"$f":"IF(VLOOKUP(AG227,Group,5,FALSE)=\"YES\",VLOOKUP(ROUND(ROUND(AK227,1)-AK227,2),Round,2,FALSE)+VLOOKUP(AG227,Group,6,FALSE),0)","v":0},{"$f":"IF(VLOOKUP(AG227,Group,7,FALSE)=\"\",0,ROUND(AK227-0.04999,1)-AK227+AN227)","v":0},{"$f":"IF(VLOOKUP(AG227,Group,7,FALSE)=\"\",\"\",VLOOKUP(AG227,Group,7,FALSE))","v":""},null,"X"]
[null,"Stock - Field Tile",null,null,"60\" x 40\" x 6mm",null,"Field",null,null,"Honed",null,null,null,null,null,"16.15 SF/CTN",null,null,{"$f":"IF(Suggested=\"Yes\",AB228,AH228)","v":23.05},"SF",{"$f":"+Instructions!$B$3","v":"D"},null,null,{"$f":"+Instructions!$C$22","v":0},{"$f":"ROUND($AB228*(1-X228)+0.004999,2)","v":23.05},null,"",23.05,0,23.05,{"$f":"(AH228-AD228)/AH228","v":0},null,4,{"$f":"SUM(AK228:AM228)+AF228","v":23.05},null,null,{"$f":"ROUND(AD228/(1-VLOOKUP(AG228,Group,2,FALSE)),2)","v":23.05},{"$f":"IF(VLOOKUP(AG228,Group,5,FALSE)=\"YES\",VLOOKUP(ROUND(ROUND(AK228,1)-AK228,2),Round,2,FALSE)+VLOOKUP(AG228,Group,6,FALSE),0)","v":0},{"$f":"IF(VLOOKUP(AG228,Group,7,FALSE)=\"\",0,ROUND(AK228-0.04999,1)-AK228+AN228)","v":0},{"$f":"IF(VLOOKUP(AG228,Group,7,FALSE)=\"\",\"\",VLOOKUP(AG228,Group,7,FALSE))","v":""},null,"X"]
[null,"Stock - Field Tile",null,null,"120\" x 40\" x 6mm",null,"Field",null,null,"Honed",null,null,null,null,null,"32.29 SF/CTN",null,null,{"$f":"IF(Suggested=\"Yes\",AB229,AH229)","v":23.9},"SF",{"$f":"+Instructions!$B$3","v":"D"},null,null,{"$f":"+Instructions!$C$22","v":0},{"$f":"ROUND($AB229*(1-X229)+0.004999,2)","v":23.9},null,"",23.9,0,23.9,{"$f":"(AH229-AD229)/AH229","v":0},null,4,{"$f":"SUM(AK229:AM229)+AF229","v":23.9},null,null,{"$f":"ROUND(AD229/(1-VLOOKUP(AG229,Group,2,FALSE)),2)","v":23.9},{"$f":"IF(VLOOKUP(AG229,Group,5,FALSE)=\"YES\",VLOOKUP(ROUND(ROUND(AK229,1)-AK229,2),Round,2,FALSE)+VLOOKUP(AG229,Group,6,FALSE),0)","v":0},{"$f":"IF(VLOOKUP(AG229,Group,7,FALSE)=\"\",0,ROUND(AK229-0.04999,1)-AK229+AN229)","v":0},{"$f":"IF(VLOOKUP(AG229,Group,7,FALSE)=\"\",\"\",VLOOKUP(AG229,Group,7,FALSE))","v":""},null,"X"]
[]
[null,null,"     DATAUNI MAXIMUM",null,null,null,null,null,null,null,null,null,null,null,null,null,null,"Item # Lookup:","FIMADA"]
[]
[null,null,null,"Colors:","Uniice          Unipepper",null,null,null,null,null,null,null,null,null,null,null,null,null,null,null,null,null,null,null,null,null,null,null,null,null,null,null,null,null,null,null,null,null,null,null,null,"X"]
[]
[null,"Stock - Field Tile",null,null,"30\" x 15\" x 6mm",null,"Field",null,null,"Honed",null,null,null,null,null,"18.17 SF/CTN",null,null,{"$f":"IF(Suggested=\"Yes\",AB235,AH235)","v":35.35},"SF",{"$f":"+Instructions!$B$3","v":"D"},null,null,{"$f":"+Instructions!$C$22","v":0},{"$f":"ROUND($AB235*(1-X235)+0.004999,2)","v":35.35},null,"",35.35,{"$f":"+X235","v":0},35.35,{"$f":"(AH235-AD235)/AH235","v":0},null,4,{"$f":"SUM(AK235:AM235)+AF235","v":35.35},null,null,{"$f":"ROUND(AD235/(1-VLOOKUP(AG235,Group,2,FALSE)),2)","v":35.35},{"$f":"IF(VLOOKUP(AG235,Group,5,FALSE)=\"YES\",VLOOKUP(ROUND(ROUND(AK235,1)-AK235,2),Round,2,FALSE)+VLOOKUP(AG235,Group,6,FALSE),0)","v":0},{"$f":"IF(VLOOKUP(AG235,Group,7,FALSE)=\"\",0,ROUND(AK235-0.04999,1)-AK235+AN235)","v":0},{"$f":"IF(VLOOKUP(AG235,Group,7,FALSE)=\"\",\"\",VLOOKUP(AG235,Group,7,FALSE))","v":""},null,"X"]
[null,"Stock - Field Tile",null,null,"30\" x 30\" x 6mm",null,"Field",null,null,"Honed",null,null,null,null,null,"18.17 SF/CTN",null,null,35.35,"SF",{"$f":"+Instructions!$B$3","v":"D"},null,null,{"$f":"+Instructions!$C$22","v":0},35.35,null,"",35.35,0,35.35,0,null,4,35.35,null,null,35.35,0,0,"",null,"X"]
[null,"Stock - Field Tile",null,null,"40\" x 40\" x 6mm",null,"Field",null,null,"Honed",null,null,null,null,null,"21.53 SF/CTN",null,null,28.95,"SF",{"$f":"+Instructions!$B$3","v":"D"},null,null,{"$f":"+Instructions!$C$22","v":0},28.95,null,"",28.95,{"$f":"+X237","v":0},{"$f":"+Y237","v":28.95},0,null,4,28.95,null,null,28.95,0,0,"",null,"X"]
[null,"Stock - Field Tile",null,null,"60\" x 30\" x 6mm",null,"Field",null,null,"Honed",null,null,null,null,null,"24.22 SF/CTN",null,null,37.4,"SF",{"$f":"+Instructions!$B$3","v":"D"},null,null,{"$f":"+Instructions!$C$22","v":0},37.4,null,"",37.4,0,37.4,0,null,4,37.4,null,null,37.4,0,0,"",null,"X"]
[null,"Stock - Field Tile",null,null,"60\" x 40\" x 6mm",null,"Field",null,null,"Honed",null,null,null,null,null,"16.15 SF/CTN",null,null,34.799999999999997,"SF",{"$f":"+Instructions!$B$3","v":"D"},null,null,{"$f":"+Instructions!$C$22","v":0},34.799999999999997,null,"",34.799999999999997,{"$f":"+X239","v":0},{"$f":"+Y239","v":34.799999999999997},0,null,4,34.799999999999997,null,null,34.799999999999997,0,0,"",null,"X"]
[null,"Stock - Field Tile",null,null,"60\" x 60\" x 6mm",null,"Field",null,null,"Honed",null,null,null,null,null,"24.22 SF/CTN",null,null,40.65,"SF",{"$f":"+Instructions!$B$3","v":"D"},null,null,{"$f":"+Instructions!$C$22","v":0},40.65,null,"",40.65,0,40.65,0,null,4,40.65,null,null,40.65,0,0,"",null,"X"]
[null,"Stock - Field Tile",null,null,"120\" x 40\" x 6mm",null,"Field",null,null,"Honed",null," ",null,null,null,"32.29 SF/CTN",null,null,34,"SF",{"$f":"+Instructions!$B$3","v":"D"},null,null,{"$f":"+Instructions!$C$22","v":0},34,null,"",34,{"$f":"+X241","v":0},{"$f":"+Y241","v":34},0,null,4,34,null,null,34,0,0,"",null,"X"]
[null,"Stock - Field Tile",null,null,"120\" x 60\" x 6mm",null,"Field",null,null,"Honed",null,null,null,null,null,"48.44 SF/CTN",null,null,42.3,"SF",{"$f":"+Instructions!$B$3","v":"D"},null,null,{"$f":"+Instructions!$C$22","v":0},42.3,null,"",42.3,{"$f":"+X242","v":0},{"$f":"+Y242","v":42.3},0,null,4,42.3,null,null,42.3,0,0,"",null,"X"]
[]
[null,"Stock - Field Tile",null,null,"30\" x 15\" x 6mm",null,"Field",null,null,"Polished (Bright)",null,null,null,null,null,"18.17 SF/CTN",null,null,{"$f":"IF(Suggested=\"Yes\",AB244,AH244)","v":40.549999999999997},"SF",{"$f":"+Instructions!$B$3","v":"D"},null,null,{"$f":"+Instructions!$C$22","v":0},{"$f":"ROUND($AB244*(1-X244)+0.004999,2)","v":40.549999999999997},null,"",40.549999999999997,{"$f":"+X244","v":0},40.549999999999997,{"$f":"(AH244-AD244)/AH244","v":0},null,4,{"$f":"SUM(AK244:AM244)+AF244","v":40.549999999999997},null,null,{"$f":"ROUND(AD244/(1-VLOOKUP(AG244,Group,2,FALSE)),2)","v":40.549999999999997},{"$f":"IF(VLOOKUP(AG244,Group,5,FALSE)=\"YES\",VLOOKUP(ROUND(ROUND(AK244,1)-AK244,2),Round,2,FALSE)+VLOOKUP(AG244,Group,6,FALSE),0)","v":0},{"$f":"IF(VLOOKUP(AG244,Group,7,FALSE)=\"\",0,ROUND(AK244-0.04999,1)-AK244+AN244)","v":0},{"$f":"IF(VLOOKUP(AG244,Group,7,FALSE)=\"\",\"\",VLOOKUP(AG244,Group,7,FALSE))","v":""},null,"X"]
[null,"Stock - Field Tile",null,null,"30\" x 30\" x 6mm",null,"Field",null,null,"Polished (Bright)",null,null,null,null,null,"18.17 SF/CTN",null,null,40.549999999999997,"SF",{"$f":"+Instructions!$B$3","v":"D"},null,null,{"$f":"+Instructions!$C$22","v":0},40.549999999999997,null,"",40.549999999999997,0,40.549999999999997,0,null,4,40.549999999999997,null,null,40.549999999999997,0,0,"",null,"X"]
[null,"Stock - Field Tile",null,null,"40\" x 40\" x 6mm",null,"Field",null,null,"Polished (Bright)",null,null,null,null,null,"21.53 SF/CTN",null,null,33.6,"SF",{"$f":"+Instructions!$B$3","v":"D"},null,null,{"$f":"+Instructions!$C$22","v":0},33.6,null,"",33.6,{"$f":"+X246","v":0},{"$f":"+Y246","v":33.6},0,null,4,33.6,null,null,33.6,0,0,"",null,"X"]
[null,"Stock - Field Tile",null,null,"60\" x 30\" x 6mm",null,"Field",null,null,"Polished (Bright)",null,null,null,null,null,"24.22 SF/CTN",null,null,42.6,"SF",{"$f":"+Instructions!$B$3","v":"D"},null,null,{"$f":"+Instructions!$C$22","v":0},42.6,null,"",42.6,0,42.6,0,null,4,42.6,null,null,42.6,0,0,"",null,"X"]
[null,"Stock - Field Tile",null,null,"60\" x 40\" x 6mm",null,"Field",null,null,"Polished (Bright)",null,null,null,null,null,"16.15 SF/CTN",null,null,39.75,"SF",{"$f":"+Instructions!$B$3","v":"D"},null,null,{"$f":"+Instructions!$C$22","v":0},39.75,null,"",39.75,{"$f":"+X248","v":0},{"$f":"+Y248","v":39.75},0,null,4,39.75,null,null,39.75,0,0,"",null,"X"]
[null,"Stock - Field Tile",null,null,"60\" x 60\" x 6mm",null,"Field",null,null,"Polished (Bright)",null,null,null,null,null,"24.22 SF/CTN",null,null,46.1,"SF",{"$f":"+Instructions!$B$3","v":"D"},null,null,{"$f":"+Instructions!$C$22","v":0},46.1,null,"",46.1,0,46.1,0,null,4,46.1,null,null,46.1,0,0,"",null,"X"]
[null,"Stock - Field Tile",null,null,"120\" x 40\" x 6mm",null,"Field",null,null,"Polished (Bright)",null," ",null,null,null,"32.29 SF/CTN",null,null,38.950000000000003,"SF",{"$f":"+Instructions!$B$3","v":"D"},null,null,{"$f":"+Instructions!$C$22","v":0},38.950000000000003,null,"",38.950000000000003,{"$f":"+X250","v":0},{"$f":"+Y250","v":38.950000000000003},0,null,4,38.950000000000003,null,null,38.950000000000003,0,0,"",null,"X"]
[null,"Stock - Field Tile",null,null,"120\" x 60\" x 6mm",null,"Field",null,null,"Polished (Bright)",null,null,null,null,null,"48.44 SF/CTN",null,null,48.8,"SF",{"$f":"+Instructions!$B$3","v":"D"},null,null,{"$f":"+Instructions!$C$22","v":0},48.8,null,"",48.8,{"$f":"+X251","v":0},{"$f":"+Y251","v":48.8},0,null,4,48.8,null,null,48.8,0,0,"",null,"X"]
[]
[null,null,"     FJORD MAXIMUM",null,null,null,null,null,null,null,null,null,null,null,null,null,null,"Item # Lookup:","FIMAFJ"]
[]
[null,null,null,"Colors:","Black Fjord          Dusty Fjord          Grey Fjord          Sand Fjord          White Fjord",null,null,null,null,null,null,null,null,null,null,null,null,null,null,null,null,null,null,null,null,null,null,null,null,null,null,null,null,null,null,null,null,null,null,null,null,"X"]
[]
[null,"Stock - Field Tile",null,null,"40\" x 40\" x 6mm",null,"Field",null,null,"Honed",null,null,null,null,null,"21.53 SF/CTN",null,null,{"$f":"IF(Suggested=\"Yes\",AB257,AH257)","v":22.2},"SF",{"$f":"+Instructions!$B$3","v":"D"},null,null,{"$f":"+Instructions!$C$22","v":0},{"$f":"ROUND($AB257*(1-X257)+0.004999,2)","v":22.2},null,"",22.2,{"$f":"+X257","v":0},22.2,{"$f":"(AH257-AD257)/AH257","v":0},null,4,{"$f":"SUM(AK257:AM257)+AF257","v":22.2},null,null,{"$f":"ROUND(AD257/(1-VLOOKUP(AG257,Group,2,FALSE)),2)","v":22.2},{"$f":"IF(VLOOKUP(AG257,Group,5,FALSE)=\"YES\",VLOOKUP(ROUND(ROUND(AK257,1)-AK257,2),Round,2,FALSE)+VLOOKUP(AG257,Group,6,FALSE),0)","v":0},{"$f":"IF(VLOOKUP(AG257,Group,7,FALSE)=\"\",0,ROUND(AK257-0.04999,1)-AK257+AN257)","v":0},{"$f":"IF(VLOOKUP(AG257,Group,7,FALSE)=\"\",\"\",VLOOKUP(AG257,Group,7,FALSE))","v":""},null,"X"]
[null,"Stock - Field Tile",null,null,"60\" x 40\" x 6mm",null,"Field",null,null,"Honed",null,null,null,null,null,"16.15 SF/CTN",null,null,{"$f":"IF(Suggested=\"Yes\",AB258,AH258)","v":23.05},"SF",{"$f":"+Instructions!$B$3","v":"D"},null,null,{"$f":"+Instructions!$C$22","v":0},{"$f":"ROUND($AB258*(1-X258)+0.004999,2)","v":23.05},null,"",23.05,0,23.05,{"$f":"(AH258-AD258)/AH258","v":0},null,4,{"$f":"SUM(AK258:AM258)+AF258","v":23.05},null,null,{"$f":"ROUND(AD258/(1-VLOOKUP(AG258,Group,2,FALSE)),2)","v":23.05},{"$f":"IF(VLOOKUP(AG258,Group,5,FALSE)=\"YES\",VLOOKUP(ROUND(ROUND(AK258,1)-AK258,2),Round,2,FALSE)+VLOOKUP(AG258,Group,6,FALSE),0)","v":0},{"$f":"IF(VLOOKUP(AG258,Group,7,FALSE)=\"\",0,ROUND(AK258-0.04999,1)-AK258+AN258)","v":0},{"$f":"IF(VLOOKUP(AG258,Group,7,FALSE)=\"\",\"\",VLOOKUP(AG258,Group,7,FALSE))","v":""},null,"X"]
[null,"Stock - Field Tile",null,null,"120\" x 40\" x 6mm",null,"Field",null,null,"Honed",null," ",null,null,null,"32.29 SF/CTN",null,null,{"$f":"IF(Suggested=\"Yes\",AB259,AH259)","v":23.9},"SF",{"$f":"+Instructions!$B$3","v":"D"},null,null,{"$f":"+Instructions!$C$22","v":0},{"$f":"ROUND($AB259*(1-X259)+0.004999,2)","v":23.9},null,"",23.9,0,23.9,{"$f":"(AH259-AD259)/AH259","v":0},null,4,{"$f":"SUM(AK259:AM259)+AF259","v":23.9},null,null,{"$f":"ROUND(AD259/(1-VLOOKUP(AG259,Group,2,FALSE)),2)","v":23.9},{"$f":"IF(VLOOKUP(AG259,Group,5,FALSE)=\"YES\",VLOOKUP(ROUND(ROUND(AK259,1)-AK259,2),Round,2,FALSE)+VLOOKUP(AG259,Group,6,FALSE),0)","v":0},{"$f":"IF(VLOOKUP(AG259,Group,7,FALSE)=\"\",0,ROUND(AK259-0.04999,1)-AK259+AN259)","v":0},{"$f":"IF(VLOOKUP(AG259,Group,7,FALSE)=\"\",\"\",VLOOKUP(AG259,Group,7,FALSE))","v":""},null,"X"]
[]
[null,null,"     HQ.RESIN MAXIMUM",null,null,null,null,null,null,null,null,null,null,null,null,null,null,"Item # Lookup:","FIMAHQ"]
[]
[null,null,null,"Colors:","Cinder Resin          Dark Resin          Grey Resin          White Resin",null,null,null,null,null,null,null,null,null,null,null,null,null,null,null,null,null,null,null,null,null,null,null,null,null,null,null,null,null,null,null,null,null,null,null,null,"X"]
[]
[null,"Stock - Field Tile",null,null,"40\" x 40\" x 6mm",null,"Field",null,null,"Honed",null,null,null,null,null,"21.53 SF/CTN",null,null,{"$f":"IF(Suggested=\"Yes\",AB265,AH265)","v":22.2},"SF",{"$f":"+Instructions!$B$3","v":"D"},null,null,{"$f":"+Instructions!$C$22","v":0},{"$f":"ROUND($AB265*(1-X265)+0.004999,2)","v":22.2},null,"",22.2,{"$f":"+X265","v":0},22.2,{"$f":"(AH265-AD265)/AH265","v":0},null,4,{"$f":"SUM(AK265:AM265)+AF265","v":22.2},null,null,{"$f":"ROUND(AD265/(1-VLOOKUP(AG265,Group,2,FALSE)),2)","v":22.2},{"$f":"IF(VLOOKUP(AG265,Group,5,FALSE)=\"YES\",VLOOKUP(ROUND(ROUND(AK265,1)-AK265,2),Round,2,FALSE)+VLOOKUP(AG265,Group,6,FALSE),0)","v":0},{"$f":"IF(VLOOKUP(AG265,Group,7,FALSE)=\"\",0,ROUND(AK265-0.04999,1)-AK265+AN265)","v":0},{"$f":"IF(VLOOKUP(AG265,Group,7,FALSE)=\"\",\"\",VLOOKUP(AG265,Group,7,FALSE))","v":""},null,"X"]
[null,"Stock - Field Tile",null,null,"60\" x 40\" x 6mm",null,"Field",null,null,"Honed",null," ",null,null,null,"16.15 SF/CTN",null,null,{"$f":"IF(Suggested=\"Yes\",AB266,AH266)","v":23.05},"SF",{"$f":"+Instructions!$B$3","v":"D"},null,null,{"$f":"+Instructions!$C$22","v":0},{"$f":"ROUND($AB266*(1-X266)+0.004999,2)","v":23.05},null,"",23.05,0,23.05,{"$f":"(AH266-AD266)/AH266","v":0},null,4,{"$f":"SUM(AK266:AM266)+AF266","v":23.05},null,null,{"$f":"ROUND(AD266/(1-VLOOKUP(AG266,Group,2,FALSE)),2)","v":23.05},{"$f":"IF(VLOOKUP(AG266,Group,5,FALSE)=\"YES\",VLOOKUP(ROUND(ROUND(AK266,1)-AK266,2),Round,2,FALSE)+VLOOKUP(AG266,Group,6,FALSE),0)","v":0},{"$f":"IF(VLOOKUP(AG266,Group,7,FALSE)=\"\",0,ROUND(AK266-0.04999,1)-AK266+AN266)","v":0},{"$f":"IF(VLOOKUP(AG266,Group,7,FALSE)=\"\",\"\",VLOOKUP(AG266,Group,7,FALSE))","v":""},null,"X"]
[null,"Stock - Field Tile",null,null,"120\" x 40\" x 6mm",null,"Field",null,null,"Honed",null," ",null,null,null,"32.29 SF/CTN",null,null,{"$f":"IF(Suggested=\"Yes\",AB267,AH267)","v":23.9},"SF",{"$f":"+Instructions!$B$3","v":"D"},null,null,{"$f":"+Instructions!$C$22","v":0},{"$f":"ROUND($AB267*(1-X267)+0.004999,2)","v":23.9},null,"",23.9,0,23.9,{"$f":"(AH267-AD267)/AH267","v":0},null,4,{"$f":"SUM(AK267:AM267)+AF267","v":23.9},null,null,{"$f":"ROUND(AD267/(1-VLOOKUP(AG267,Group,2,FALSE)),2)","v":23.9},{"$f":"IF(VLOOKUP(AG267,Group,5,FALSE)=\"YES\",VLOOKUP(ROUND(ROUND(AK267,1)-AK267,2),Round,2,FALSE)+VLOOKUP(AG267,Group,6,FALSE),0)","v":0},{"$f":"IF(VLOOKUP(AG267,Group,7,FALSE)=\"\",0,ROUND(AK267-0.04999,1)-AK267+AN267)","v":0},{"$f":"IF(VLOOKUP(AG267,Group,7,FALSE)=\"\",\"\",VLOOKUP(AG267,Group,7,FALSE))","v":""},null,"X"]
[]
[null,null,"     IL VENEZIANO MAXIMUM",null,null,null,null,null,null,null,null,null,null,null,null,null,null,"Item # Lookup:","FIMAIL"]
[]
[null,null,null,"Colors:","Seminato Beige          Seminato Candido          Seminato Nero ",null,null,null,null,null,null,null,null,null,null,null,null,null,null,null,null,null,null,null,null,null,null,null,null,null,null,null,null,null,null,null,null,null,null,null,null,"X"]
[]
[null,"Stock - Field Tile",null,null,"108\" x 48\" x 6mm",null,"Field",null,null,"Honed",null,null,null,null,null,"34.88 SF/CTN",null,null,{"$f":"IF(Suggested=\"Yes\",AB273,AH273)","v":33.15},"SF",{"$f":"+Instructions!$B$3","v":"D"},null,null,{"$f":"+Instructions!$C$22","v":0},{"$f":"ROUND($AB273*(1-X273)+0.004999,2)","v":33.15},null,"",33.15,{"$f":"+X273","v":0},{"$f":"+Y273","v":33.15},{"$f":"(AH273-AD273)/AH273","v":0},null,4,{"$f":"SUM(AK273:AM273)+AF273","v":33.15},null,null,{"$f":"ROUND(AD273/(1-VLOOKUP(AG273,Group,2,FALSE)),2)","v":33.15},{"$f":"IF(VLOOKUP(AG273,Group,5,FALSE)=\"YES\",VLOOKUP(ROUND(ROUND(AK273,1)-AK273,2),Round,2,FALSE)+VLOOKUP(AG273,Group,6,FALSE),0)","v":0},{"$f":"IF(VLOOKUP(AG273,Group,7,FALSE)=\"\",0,ROUND(AK273-0.04999,1)-AK273+AN273)","v":0},{"$f":"IF(VLOOKUP(AG273,Group,7,FALSE)=\"\",\"\",VLOOKUP(AG273,Group,7,FALSE))","v":""},null,"X"]
[]
[null,"Stock - Field Tile",null,null,"108\" x 48\" x 6mm",null,"Field",null,null,"Polished (Bright)",null,null,null,null,null,"34.88 SF/CTN",null,null,{"$f":"IF(Suggested=\"Yes\",AB275,AH275)","v":38.5},"SF",{"$f":"+Instructions!$B$3","v":"D"},null,null,{"$f":"+Instructions!$C$22","v":0},{"$f":"ROUND($AB275*(1-X275)+0.004999,2)","v":38.5},null,"",38.5,{"$f":"+X275","v":0},{"$f":"+Y275","v":38.5},{"$f":"(AH275-AD275)/AH275","v":0},null,4,{"$f":"SUM(AK275:AM275)+AF275","v":38.5},null,null,{"$f":"ROUND(AD275/(1-VLOOKUP(AG275,Group,2,FALSE)),2)","v":38.5},{"$f":"IF(VLOOKUP(AG275,Group,5,FALSE)=\"YES\",VLOOKUP(ROUND(ROUND(AK275,1)-AK275,2),Round,2,FALSE)+VLOOKUP(AG275,Group,6,FALSE),0)","v":0},{"$f":"IF(VLOOKUP(AG275,Group,7,FALSE)=\"\",0,ROUND(AK275-0.04999,1)-AK275+AN275)","v":0},{"$f":"IF(VLOOKUP(AG275,Group,7,FALSE)=\"\",\"\",VLOOKUP(AG275,Group,7,FALSE))","v":""},null,"X"]
[]
[null,null,"     MARMI MAXIMUM",null,null,null," ",null,null,null,null,null,null,null,null,null,null,"Item # Lookup:","FIMAMA"]
[]
[null,null,null,"Colors:","Alpi Chiaro Venato",null,null,"Dark Marquina",null,null,"    Pietra Grey",null,"            Pure Calacatta",null,null,null,null,null,null,null,null,null,null,null,null,null,null,null,null,null,null,null,null,null,null,null,null,null,null,null,null,"X"]
[null,null,null,null,"Calacatta Statuario",null,null,"Invisible",null,null,"    Premium White            Sahara Noir",null,null,null,null,null,null,null,null,null,null,null,null,null,null,null,null,null,null,null,null,null,null,null,null,null,null,null,null,null,null,"X"]
[]
[null,"Stock - Field Tile",null,null,"48\" x 48\" x 6mm",null,"Field",null,null,"Honed",null,null,null,null,null,"31.00 SF/CTN",null,"a",{"$f":"IF(Suggested=\"Yes\",AB282,AH282)","v":29.6},"SF",{"$f":"+Instructions!$B$3","v":"D"},null,null,{"$f":"+Instructions!$C$22","v":0},{"$f":"ROUND($AB282*(1-X282)+0.004999,2)","v":29.6},null,"",29.6,{"$f":"+X282","v":0},{"$f":"+Y282","v":29.6},{"$f":"(AH282-AD282)/AH282","v":0},null,4,{"$f":"SUM(AK282:AM282)+AF282","v":29.6},null,null,{"$f":"ROUND(AD282/(1-VLOOKUP(AG282,Group,2,FALSE)),2)","v":29.6},{"$f":"IF(VLOOKUP(AG282,Group,5,FALSE)=\"YES\",VLOOKUP(ROUND(ROUND(AK282,1)-AK282,2),Round,2,FALSE)+VLOOKUP(AG282,Group,6,FALSE),0)","v":0},{"$f":"IF(VLOOKUP(AG282,Group,7,FALSE)=\"\",0,ROUND(AK282-0.04999,1)-AK282+AN282)","v":0},{"$f":"IF(VLOOKUP(AG282,Group,7,FALSE)=\"\",\"\",VLOOKUP(AG282,Group,7,FALSE))","v":""},null,"X"]
[null,"Stock - Field Tile",null,null,"108\" x 48\" x 6mm",null,"Field",null,null,"Honed",null,null,null,null,null,"34.88 SF/CTN",null,"a",{"$f":"IF(Suggested=\"Yes\",AB283,AH283)","v":33.15},"SF",{"$f":"+Instructions!$B$3","v":"D"},null,null,{"$f":"+Instructions!$C$22","v":0},{"$f":"ROUND($AB283*(1-X283)+0.004999,2)","v":33.15},null,"",33.15,{"$f":"+X283","v":0},{"$f":"+Y283","v":33.15},{"$f":"(AH283-AD283)/AH283","v":0},null,4,{"$f":"SUM(AK283:AM283)+AF283","v":33.15},null,null,{"$f":"ROUND(AD283/(1-VLOOKUP(AG283,Group,2,FALSE)),2)","v":33.15},{"$f":"IF(VLOOKUP(AG283,Group,5,FALSE)=\"YES\",VLOOKUP(ROUND(ROUND(AK283,1)-AK283,2),Round,2,FALSE)+VLOOKUP(AG283,Group,6,FALSE),0)","v":0},{"$f":"IF(VLOOKUP(AG283,Group,7,FALSE)=\"\",0,ROUND(AK283-0.04999,1)-AK283+AN283)","v":0},{"$f":"IF(VLOOKUP(AG283,Group,7,FALSE)=\"\",\"\",VLOOKUP(AG283,Group,7,FALSE))","v":""},null,"X"]
[]
[null,"Stock - Field Tile",null,null,"48\" x 48\" x 6mm",null,"Field",null,null,"Polished (Bright)",null,null,null,null,null,"31.00 SF/CTN",null,null,{"$f":"IF(Suggested=\"Yes\",AB285,AH285)","v":35.549999999999997},"SF",{"$f":"+Instructions!$B$3","v":"D"},null,null,{"$f":"+Instructions!$C$22","v":0},{"$f":"ROUND($AB285*(1-X285)+0.004999,2)","v":35.549999999999997},null,"",35.549999999999997,{"$f":"+X285","v":0},{"$f":"+Y285","v":35.549999999999997},{"$f":"(AH285-AD285)/AH285","v":0},null,4,{"$f":"SUM(AK285:AM285)+AF285","v":35.549999999999997},null,null,{"$f":"ROUND(AD285/(1-VLOOKUP(AG285,Group,2,FALSE)),2)","v":35.549999999999997},{"$f":"IF(VLOOKUP(AG285,Group,5,FALSE)=\"YES\",VLOOKUP(ROUND(ROUND(AK285,1)-AK285,2),Round,2,FALSE)+VLOOKUP(AG285,Group,6,FALSE),0)","v":0},{"$f":"IF(VLOOKUP(AG285,Group,7,FALSE)=\"\",0,ROUND(AK285-0.04999,1)-AK285+AN285)","v":0},{"$f":"IF(VLOOKUP(AG285,Group,7,FALSE)=\"\",\"\",VLOOKUP(AG285,Group,7,FALSE))","v":""},null,"X"]
[null,"Stock - Field Tile",null,null,"108\" x 48\" x 6mm",null,"Field",null,null,"Polished (Bright)",null,null,null,null,null,"34.88 SF/CTN",null,null,{"$f":"IF(Suggested=\"Yes\",AB286,AH286)","v":38.5},"SF",{"$f":"+Instructions!$B$3","v":"D"},null,null,{"$f":"+Instructions!$C$22","v":0},{"$f":"ROUND($AB286*(1-X286)+0.004999,2)","v":38.5},null,"",38.5,{"$f":"+X286","v":0},{"$f":"+Y286","v":38.5},{"$f":"(AH286-AD286)/AH286","v":0},null,4,{"$f":"SUM(AK286:AM286)+AF286","v":38.5},null,null,{"$f":"ROUND(AD286/(1-VLOOKUP(AG286,Group,2,FALSE)),2)","v":38.5},{"$f":"IF(VLOOKUP(AG286,Group,5,FALSE)=\"YES\",VLOOKUP(ROUND(ROUND(AK286,1)-AK286,2),Round,2,FALSE)+VLOOKUP(AG286,Group,6,FALSE),0)","v":0},{"$f":"IF(VLOOKUP(AG286,Group,7,FALSE)=\"\",0,ROUND(AK286-0.04999,1)-AK286+AN286)","v":0},{"$f":"IF(VLOOKUP(AG286,Group,7,FALSE)=\"\",\"\",VLOOKUP(AG286,Group,7,FALSE))","v":""},null,"X"]
[]
[null,null,null,"Note:","a) Not available in colors Marmi Dark Marquina and Marmi Sahara Noir."]
[]
[null,null,"continued on next page",null,null,null,null,null,null," "]
[null,null,"MAXIMUM - Large Panel Porcelain - continued",null,null,null,null,null,null,null,null,null,null,null,null,null,null,null,null,null,null,null,null,null,null,null,null,null,null,null,null,null,null,null,null,null,null,null,null,null,null,"X"]
[]
[null,null,null,"Large Panel Porcelain will also involve additional packaging & freight charges depending on sizes and quantities.  See Page 2 for these additional charges.  120\" panels are always subject to additional freight charges based on project quantity."]
[]
[null,null,"     MARMI MAXIMUM",null,null,null," ",null,null,null,null,null,null,null,null,null,null,"Item # Lookup:","FIMAMA"]
[]
[null,null,null,"Colors:","Dark Marquina          Pietra Grey          Premium White          Sahara Noir",null,null,null,null,null,null,null,null,null,null,null,null,null,null,null,null,null,null,null,null,null,null,null,null,null,null,null,null,null,null,null,null,null,null,null,null,"X"]
[]
[null,"Stock - Field Tile",null,null,"48\" x 48\" x 6mm",null,"Field",null,null,"Satin",null,null,null,null,null,"31.00 SF/CTN",null,null,{"$f":"IF(Suggested=\"Yes\",AB299,AH299)","v":35.549999999999997},"SF",{"$f":"+Instructions!$B$3","v":"D"},null,null,{"$f":"+Instructions!$C$22","v":0},{"$f":"ROUND($AB299*(1-X299)+0.004999,2)","v":35.549999999999997},null,"",35.549999999999997,{"$f":"+X299","v":0},{"$f":"+Y299","v":35.549999999999997},{"$f":"(AH299-AD299)/AH299","v":0},null,4,{"$f":"SUM(AK299:AM299)+AF299","v":35.549999999999997},null,null,{"$f":"ROUND(AD299/(1-VLOOKUP(AG299,Group,2,FALSE)),2)","v":35.549999999999997},{"$f":"IF(VLOOKUP(AG299,Group,5,FALSE)=\"YES\",VLOOKUP(ROUND(ROUND(AK299,1)-AK299,2),Round,2,FALSE)+VLOOKUP(AG299,Group,6,FALSE),0)","v":0},{"$f":"IF(VLOOKUP(AG299,Group,7,FALSE)=\"\",0,ROUND(AK299-0.04999,1)-AK299+AN299)","v":0},{"$f":"IF(VLOOKUP(AG299,Group,7,FALSE)=\"\",\"\",VLOOKUP(AG299,Group,7,FALSE))","v":""},null,"X"]
[null,"Stock - Field Tile",null,null,"108\" x 48\" x 6mm",null,"Field",null,null,"Satin",null,null,null,null,null,"34.88 SF/CTN",null,null,{"$f":"IF(Suggested=\"Yes\",AB300,AH300)","v":38.5},"SF",{"$f":"+Instructions!$B$3","v":"D"},null,null,{"$f":"+Instructions!$C$22","v":0},{"$f":"ROUND($AB300*(1-X300)+0.004999,2)","v":38.5},null,"",38.5,{"$f":"+X300","v":0},{"$f":"+Y300","v":38.5},{"$f":"(AH300-AD300)/AH300","v":0},null,4,{"$f":"SUM(AK300:AM300)+AF300","v":38.5},null,null,{"$f":"ROUND(AD300/(1-VLOOKUP(AG300,Group,2,FALSE)),2)","v":38.5},{"$f":"IF(VLOOKUP(AG300,Group,5,FALSE)=\"YES\",VLOOKUP(ROUND(ROUND(AK300,1)-AK300,2),Round,2,FALSE)+VLOOKUP(AG300,Group,6,FALSE),0)","v":0},{"$f":"IF(VLOOKUP(AG300,Group,7,FALSE)=\"\",0,ROUND(AK300-0.04999,1)-AK300+AN300)","v":0},{"$f":"IF(VLOOKUP(AG300,Group,7,FALSE)=\"\",\"\",VLOOKUP(AG300,Group,7,FALSE))","v":""},null,"X"]
[]
[null,null,null,"Color:","Calacatta",null,null,null,null,null,null,null,null,null,null,null,null,null,null,null,null,null,null,null,null,null,null,null,null,null,null,null,null,null,null,null,null,null,null,null,null,"X"]
[]
[null,"Stock - Field Tile",null,null,"30\" x 15\" x 6mm",null,"Field",null,null,"Honed",null,null,null,null,null,"18.17 SF/CTN",null,null,{"$f":"IF(Suggested=\"Yes\",AB304,AH304)","v":31.15},"SF",{"$f":"+Instructions!$B$3","v":"D"},null,null,{"$f":"+Instructions!$C$22","v":0},{"$f":"ROUND($AB304*(1-X304)+0.004999,2)","v":31.15},null,"",31.15,{"$f":"+X304","v":0},{"$f":"+Y304","v":31.15},{"$f":"(AH304-AD304)/AH304","v":0},null,4,{"$f":"SUM(AK304:AM304)+AF304","v":31.15},null,null,{"$f":"ROUND(AD304/(1-VLOOKUP(AG304,Group,2,FALSE)),2)","v":31.15},{"$f":"IF(VLOOKUP(AG304,Group,5,FALSE)=\"YES\",VLOOKUP(ROUND(ROUND(AK304,1)-AK304,2),Round,2,FALSE)+VLOOKUP(AG304,Group,6,FALSE),0)","v":0},{"$f":"IF(VLOOKUP(AG304,Group,7,FALSE)=\"\",0,ROUND(AK304-0.04999,1)-AK304+AN304)","v":0},{"$f":"IF(VLOOKUP(AG304,Group,7,FALSE)=\"\",\"\",VLOOKUP(AG304,Group,7,FALSE))","v":""},null,"X"]
[null,"Stock - Field Tile",null,null,"30\" x 30\" x 6mm",null,"Field",null,null,"Honed",null,null,null,null,null,"18.17 SF/CTN",null,null,31.15,"SF",{"$f":"+Instructions!$B$3","v":"D"},null,null,{"$f":"+Instructions!$C$22","v":0},31.15,null,"",31.15,0,31.15,0,null,4,31.15,null,null,31.15,0,0,"",null,"X"]
[null,"Stock - Field Tile",null,null,"40\" x 40\" x 6mm",null,"Field",null,null,"Honed",null,null,null,null,null,"21.53 SF/CTN",null,null,28.95,"SF",{"$f":"+Instructions!$B$3","v":"D"},null,null,{"$f":"+Instructions!$C$22","v":0},28.95,null,"",28.95,0,28.95,0,null,4,28.95,null,null,28.95,0,0,"",null,"X"]
[null,"Stock - Field Tile",null,null,"60\" x 30\" x 6mm",null,"Field",null,null,"Honed",null,null,null,null,null,"24.22 SF/CTN",null,null,32.75,"SF",{"$f":"+Instructions!$B$3","v":"D"},null,null,{"$f":"+Instructions!$C$22","v":0},32.75,null,"",32.75,0,32.75,0,null,4,32.75,null,null,32.75,0,0,"",null,"X"]
[null,"Stock - Field Tile",null,null,"60\" x 40\" x 6mm",null,"Field",null,null,"Honed",null,null,null,null,null,"16.15 SF/CTN",null,null,34.799999999999997,"SF",{"$f":"+Instructions!$B$3","v":"D"},null,null,{"$f":"+Instructions!$C$22","v":0},34.799999999999997,null,"",34.799999999999997,0,34.799999999999997,0,null,4,34.799999999999997,null,null,34.799999999999997,0,0,"",null,"X"]
[null,"Stock - Field Tile",null,null,"60\" x 60\" x 6mm",null,"Field",null,null,"Honed",null,null,null,null,null,"24.22 SF/CTN",null,null,36.15,"SF",{"$f":"+Instructions!$B$3","v":"D"},null,null,{"$f":"+Instructions!$C$22","v":0},36.15,null,"",36.15,0,36.15,0,null,4,36.15,null,null,36.15,0,0,"",null,"X"]
[null,"Stock - Field Tile",null,null,"120\" x 40\" x 6mm",null,"Field",null,null,"Honed",null," ",null,null,null,"32.29 SF/CTN",null,null,{"$f":"IF(Suggested=\"Yes\",AB310,AH310)","v":34},"SF",{"$f":"+Instructions!$B$3","v":"D"},null,null,{"$f":"+Instructions!$C$22","v":0},34,null,"",34,{"$f":"+X310","v":0},{"$f":"+Y310","v":34},{"$f":"(AH310-AD310)/AH310","v":0},null,4,{"$f":"SUM(AK310:AM310)+AF310","v":34},null,null,{"$f":"ROUND(AD310/(1-VLOOKUP(AG310,Group,2,FALSE)),2)","v":34},{"$f":"IF(VLOOKUP(AG310,Group,5,FALSE)=\"YES\",VLOOKUP(ROUND(ROUND(AK310,1)-AK310,2),Round,2,FALSE)+VLOOKUP(AG310,Group,6,FALSE),0)","v":0},{"$f":"IF(VLOOKUP(AG310,Group,7,FALSE)=\"\",0,ROUND(AK310-0.04999,1)-AK310+AN310)","v":0},{"$f":"IF(VLOOKUP(AG310,Group,7,FALSE)=\"\",\"\",VLOOKUP(AG310,Group,7,FALSE))","v":""},null,"X"]
[null,"Stock - Field Tile",null,null,"120\" x 60\" x 6mm",null,"Field",null,null,"Honed",null,null,null,null,null,"48.44 SF/CTN",null,null,{"$f":"IF(Suggested=\"Yes\",AB311,AH311)","v":39},"SF",{"$f":"+Instructions!$B$3","v":"D"},null,null,{"$f":"+Instructions!$C$22","v":0},39,null,"",39,{"$f":"+X311","v":0},{"$f":"+Y311","v":39},{"$f":"(AH311-AD311)/AH311","v":0},null,4,{"$f":"SUM(AK311:AM311)+AF311","v":39},null,null,{"$f":"ROUND(AD311/(1-VLOOKUP(AG311,Group,2,FALSE)),2)","v":39},{"$f":"IF(VLOOKUP(AG311,Group,5,FALSE)=\"YES\",VLOOKUP(ROUND(ROUND(AK311,1)-AK311,2),Round,2,FALSE)+VLOOKUP(AG311,Group,6,FALSE),0)","v":0},{"$f":"IF(VLOOKUP(AG311,Group,7,FALSE)=\"\",0,ROUND(AK311-0.04999,1)-AK311+AN311)","v":0},{"$f":"IF(VLOOKUP(AG311,Group,7,FALSE)=\"\",\"\",VLOOKUP(AG311,Group,7,FALSE))","v":""},null,"X"]
[]
[null,null,null,"Colors:","Calacatta A          Calacatta B",null,null,null,null,null,null,null,null,null,null,null,null,null,null,null,null,null,null,null,null,null,null,null,null,null,null,null,null,null,null,null,null,null,null,null,null,"X"]
[]
[null,"Stock - Field Tile",null,null,"120\" x 60\" x 6mm",null,"Field",null,null,"Honed",null,null,null,null,null,"48.44 SF/CTN",null,null,{"$f":"IF(Suggested=\"Yes\",AB315,AH315)","v":39},"SF",{"$f":"+Instructions!$B$3","v":"D"},null,null,{"$f":"+Instructions!$C$22","v":0},{"$f":"ROUND($AB315*(1-X315)+0.004999,2)","v":39},null,"",39,{"$f":"+X315","v":0},{"$f":"+Y315","v":39},{"$f":"(AH315-AD315)/AH315","v":0},null,4,{"$f":"SUM(AK315:AM315)+AF315","v":39},null,null,{"$f":"ROUND(AD315/(1-VLOOKUP(AG315,Group,2,FALSE)),2)","v":39},{"$f":"IF(VLOOKUP(AG315,Group,5,FALSE)=\"YES\",VLOOKUP(ROUND(ROUND(AK315,1)-AK315,2),Round,2,FALSE)+VLOOKUP(AG315,Group,6,FALSE),0)","v":0},{"$f":"IF(VLOOKUP(AG315,Group,7,FALSE)=\"\",0,ROUND(AK315-0.04999,1)-AK315+AN315)","v":0},{"$f":"IF(VLOOKUP(AG315,Group,7,FALSE)=\"\",\"\",VLOOKUP(AG315,Group,7,FALSE))","v":""},null,"X"]
[]
[null,null,null,"Color:","Calacatta",null,null,null,null,null,null,null,null,null,null,null,null,null,null,null,null,null,null,null,null,null,null,null,null,null,null,null,null,null,null,null,null,null,null,null,null,"X"]
[]
[null,"Stock - Field Tile",null,null,"30\" x 15\" x 6mm",null,"Field",null,null,"Polished (Bright)",null,null,null,null,null,"18.17 SF/CTN",null,null,{"$f":"IF(Suggested=\"Yes\",AB319,AH319)","v":36.35},"SF",{"$f":"+Instructions!$B$3","v":"D"},null,null,{"$f":"+Instructions!$C$22","v":0},{"$f":"ROUND($AB319*(1-X319)+0.004999,2)","v":36.35},null,"",36.35,{"$f":"+X319","v":0},{"$f":"+Y319","v":36.35},{"$f":"(AH319-AD319)/AH319","v":0},null,4,{"$f":"SUM(AK319:AM319)+AF319","v":36.35},null,null,{"$f":"ROUND(AD319/(1-VLOOKUP(AG319,Group,2,FALSE)),2)","v":36.35},{"$f":"IF(VLOOKUP(AG319,Group,5,FALSE)=\"YES\",VLOOKUP(ROUND(ROUND(AK319,1)-AK319,2),Round,2,FALSE)+VLOOKUP(AG319,Group,6,FALSE),0)","v":0},{"$f":"IF(VLOOKUP(AG319,Group,7,FALSE)=\"\",0,ROUND(AK319-0.04999,1)-AK319+AN319)","v":0},{"$f":"IF(VLOOKUP(AG319,Group,7,FALSE)=\"\",\"\",VLOOKUP(AG319,Group,7,FALSE))","v":""},null,"X"]
[null,"Stock - Field Tile",null,null,"30\" x 30\" x 6mm",null,"Field",null,null,"Polished (Bright)",null,null,null,null,null,"18.17 SF/CTN",null,null,36.35,"SF",{"$f":"+Instructions!$B$3","v":"D"},null,null,{"$f":"+Instructions!$C$22","v":0},36.35,null,"",36.35,0,36.35,0,null,4,36.35,null,null,36.35,0,0,"",null,"X"]
[null,"Stock - Field Tile",null,null,"40\" x 40\" x 6mm",null,"Field",null,null,"Polished (Bright)",null,null,null,null,null,"21.53 SF/CTN",null,null,33.6,"SF",{"$f":"+Instructions!$B$3","v":"D"},null,null,{"$f":"+Instructions!$C$22","v":0},33.6,null,"",33.6,0,33.6,0,null,4,33.6,null,null,33.6,0,0,"",null,"X"]
[null,"Stock - Field Tile",null,null,"60\" x 30\" x 6mm",null,"Field",null,null,"Polished (Bright)",null,null,null,null,null,"24.22 SF/CTN",null,null,37.950000000000003,"SF",{"$f":"+Instructions!$B$3","v":"D"},null,null,{"$f":"+Instructions!$C$22","v":0},37.950000000000003,null,"",37.950000000000003,0,37.950000000000003,0,null,4,37.950000000000003,null,null,37.950000000000003,0,0,"",null,"X"]
[null,"Stock - Field Tile",null,null,"60\" x 40\" x 6mm",null,"Field",null,null,"Polished (Bright)",null,null,null,null,null,"16.15 SF/CTN",null,null,39.75,"SF",{"$f":"+Instructions!$B$3","v":"D"},null,null,{"$f":"+Instructions!$C$22","v":0},39.75,null,"",39.75,0,39.75,0,null,4,39.75,null,null,39.75,0,0,"",null,"X"]
[null,"Stock - Field Tile",null,null,"60\" x 60\" x 6mm",null,"Field",null,null,"Polished (Bright)",null,null,null,null,null,"24.22 SF/CTN",null,null,41.8,"SF",{"$f":"+Instructions!$B$3","v":"D"},null,null,{"$f":"+Instructions!$C$22","v":0},41.8,null,"",41.8,0,41.8,0,null,4,41.8,null,null,41.8,0,0,"",null,"X"]
[null,"Stock - Field Tile",null,null,"120\" x 40\" x 6mm",null,"Field",null,null,"Polished (Bright)",null," ",null,null,null,"32.29 SF/CTN",null,null,38.950000000000003,"SF",{"$f":"+Instructions!$B$3","v":"D"},null,null,{"$f":"+Instructions!$C$22","v":0},38.950000000000003,null,"",38.950000000000003,{"$f":"+X325","v":0},{"$f":"+Y325","v":38.950000000000003},0,null,4,38.950000000000003,null,null,38.950000000000003,0,0,"",null,"X"]
[null,"Stock - Field Tile",null,null,"120\" x 60\" x 6mm",null,"Field",null,null,"Polished (Bright)",null,null,null,null,null,"48.44 SF/CTN",null,null,44.5,"SF",{"$f":"+Instructions!$B$3","v":"D"},null,null,{"$f":"+Instructions!$C$22","v":0},44.5,null,"",44.5,{"$f":"+X326","v":0},{"$f":"+Y326","v":44.5},0,null,4,44.5,null,null,44.5,0,0,"",null,"X"]
[]
[null,null,null,"Colors:","Calacatta A          Calacatta B",null,null,null,null,null,null,null,null,null,null,null,null,null,null,null,null,null,null,null,null,null,null,null,null,null,null,null,null,null,null,null,null,null,null,null,null,"X"]
[]
[null,"Stock - Field Tile",null,null,"120\" x 60\" x 6mm",null,"Field",null,null,"Polished (Bright)",null,null,null,null,null,"48.44 SF/CTN",null,null,{"$f":"IF(Suggested=\"Yes\",AB330,AH330)","v":44.5},"SF",{"$f":"+Instructions!$B$3","v":"D"},null,null,{"$f":"+Instructions!$C$22","v":0},{"$f":"ROUND($AB330*(1-X330)+0.004999,2)","v":44.5},null,"",44.5,{"$f":"+X330","v":0},{"$f":"+Y330","v":44.5},{"$f":"(AH330-AD330)/AH330","v":0},null,4,{"$f":"SUM(AK330:AM330)+AF330","v":44.5},null,null,{"$f":"ROUND(AD330/(1-VLOOKUP(AG330,Group,2,FALSE)),2)","v":44.5},{"$f":"IF(VLOOKUP(AG330,Group,5,FALSE)=\"YES\",VLOOKUP(ROUND(ROUND(AK330,1)-AK330,2),Round,2,FALSE)+VLOOKUP(AG330,Group,6,FALSE),0)","v":0},{"$f":"IF(VLOOKUP(AG330,Group,7,FALSE)=\"\",0,ROUND(AK330-0.04999,1)-AK330+AN330)","v":0},{"$f":"IF(VLOOKUP(AG330,Group,7,FALSE)=\"\",\"\",VLOOKUP(AG330,Group,7,FALSE))","v":""},null,"X"]
[]
[null,null,null,"Colors:","Pietra Grey          Travertino",null,null,null,null,null,null,null,null,null,null,null,null,null,null,null,null,null,null,null,null,null,null,null,null,null,null,null,null,null,null,null,null,null,null,null,null,"X"]
[]
[null,"Stock - Field Tile",null,null,"30\" x 15\" x 6mm",null,"Field",null,null,"Honed",null,null,null,null,null,"18.17 SF/CTN",null,null,{"$f":"IF(Suggested=\"Yes\",AB334,AH334)","v":31.15},"SF",{"$f":"+Instructions!$B$3","v":"D"},null,null,{"$f":"+Instructions!$C$22","v":0},{"$f":"ROUND($AB334*(1-X334)+0.004999,2)","v":31.15},null,"",31.15,{"$f":"+X334","v":0},31.15,{"$f":"(AH334-AD334)/AH334","v":0},null,4,{"$f":"SUM(AK334:AM334)+AF334","v":31.15},null,null,{"$f":"ROUND(AD334/(1-VLOOKUP(AG334,Group,2,FALSE)),2)","v":31.15},{"$f":"IF(VLOOKUP(AG334,Group,5,FALSE)=\"YES\",VLOOKUP(ROUND(ROUND(AK334,1)-AK334,2),Round,2,FALSE)+VLOOKUP(AG334,Group,6,FALSE),0)","v":0},{"$f":"IF(VLOOKUP(AG334,Group,7,FALSE)=\"\",0,ROUND(AK334-0.04999,1)-AK334+AN334)","v":0},{"$f":"IF(VLOOKUP(AG334,Group,7,FALSE)=\"\",\"\",VLOOKUP(AG334,Group,7,FALSE))","v":""},null,"X"]
[null,"Stock - Field Tile",null,null,"30\" x 30\" x 6mm",null,"Field",null,null,"Honed",null,null,null,null,null,"18.17 SF/CTN",null,null,{"$f":"IF(Suggested=\"Yes\",AB335,AH335)","v":31.15},"SF",{"$f":"+Instructions!$B$3","v":"D"},null,null,{"$f":"+Instructions!$C$22","v":0},{"$f":"ROUND($AB335*(1-X335)+0.004999,2)","v":31.15},null,"",31.15,0,31.15,{"$f":"(AH335-AD335)/AH335","v":0},null,4,{"$f":"SUM(AK335:AM335)+AF335","v":31.15},null,null,{"$f":"ROUND(AD335/(1-VLOOKUP(AG335,Group,2,FALSE)),2)","v":31.15},{"$f":"IF(VLOOKUP(AG335,Group,5,FALSE)=\"YES\",VLOOKUP(ROUND(ROUND(AK335,1)-AK335,2),Round,2,FALSE)+VLOOKUP(AG335,Group,6,FALSE),0)","v":0},{"$f":"IF(VLOOKUP(AG335,Group,7,FALSE)=\"\",0,ROUND(AK335-0.04999,1)-AK335+AN335)","v":0},{"$f":"IF(VLOOKUP(AG335,Group,7,FALSE)=\"\",\"\",VLOOKUP(AG335,Group,7,FALSE))","v":""},null,"X"]
[null,"Stock - Field Tile",null,null,"60\" x 30\" x 6mm",null,"Field",null,null,"Honed",null,null,null,null,null,"24.22 SF/CTN",null,null,{"$f":"IF(Suggested=\"Yes\",AB336,AH336)","v":32.75},"SF",{"$f":"+Instructions!$B$3","v":"D"},null,null,{"$f":"+Instructions!$C$22","v":0},{"$f":"ROUND($AB336*(1-X336)+0.004999,2)","v":32.75},null,"",32.75,0,32.75,{"$f":"(AH336-AD336)/AH336","v":0},null,4,{"$f":"SUM(AK336:AM336)+AF336","v":32.75},null,null,{"$f":"ROUND(AD336/(1-VLOOKUP(AG336,Group,2,FALSE)),2)","v":32.75},{"$f":"IF(VLOOKUP(AG336,Group,5,FALSE)=\"YES\",VLOOKUP(ROUND(ROUND(AK336,1)-AK336,2),Round,2,FALSE)+VLOOKUP(AG336,Group,6,FALSE),0)","v":0},{"$f":"IF(VLOOKUP(AG336,Group,7,FALSE)=\"\",0,ROUND(AK336-0.04999,1)-AK336+AN336)","v":0},{"$f":"IF(VLOOKUP(AG336,Group,7,FALSE)=\"\",\"\",VLOOKUP(AG336,Group,7,FALSE))","v":""},null,"X"]
[null,"Stock - Field Tile",null,null,"60\" x 60\" x 6mm",null,"Field",null,null,"Honed",null,null,null,null,null,"24.22 SF/CTN",null,null,{"$f":"IF(Suggested=\"Yes\",AB337,AH337)","v":36.15},"SF",{"$f":"+Instructions!$B$3","v":"D"},null,null,{"$f":"+Instructions!$C$22","v":0},{"$f":"ROUND($AB337*(1-X337)+0.004999,2)","v":36.15},null,"",36.15,0,36.15,{"$f":"(AH337-AD337)/AH337","v":0},null,4,{"$f":"SUM(AK337:AM337)+AF337","v":36.15},null,null,{"$f":"ROUND(AD337/(1-VLOOKUP(AG337,Group,2,FALSE)),2)","v":36.15},{"$f":"IF(VLOOKUP(AG337,Group,5,FALSE)=\"YES\",VLOOKUP(ROUND(ROUND(AK337,1)-AK337,2),Round,2,FALSE)+VLOOKUP(AG337,Group,6,FALSE),0)","v":0},{"$f":"IF(VLOOKUP(AG337,Group,7,FALSE)=\"\",0,ROUND(AK337-0.04999,1)-AK337+AN337)","v":0},{"$f":"IF(VLOOKUP(AG337,Group,7,FALSE)=\"\",\"\",VLOOKUP(AG337,Group,7,FALSE))","v":""},null,"X"]
[null,"Stock - Field Tile",null,null,"120\" x 60\" x 6mm",null,"Field",null,null,"Honed",null,null,null,null,null,"48.44 SF/CTN",null,null,{"$f":"IF(Suggested=\"Yes\",AB338,AH338)","v":39},"SF",{"$f":"+Instructions!$B$3","v":"D"},null,null,{"$f":"+Instructions!$C$22","v":0},{"$f":"ROUND($AB338*(1-X338)+0.004999,2)","v":39},null,"",39,{"$f":"+X338","v":0},{"$f":"+Y338","v":39},{"$f":"(AH338-AD338)/AH338","v":0},null,4,{"$f":"SUM(AK338:AM338)+AF338","v":39},null,null,{"$f":"ROUND(AD338/(1-VLOOKUP(AG338,Group,2,FALSE)),2)","v":39},{"$f":"IF(VLOOKUP(AG338,Group,5,FALSE)=\"YES\",VLOOKUP(ROUND(ROUND(AK338,1)-AK338,2),Round,2,FALSE)+VLOOKUP(AG338,Group,6,FALSE),0)","v":0},{"$f":"IF(VLOOKUP(AG338,Group,7,FALSE)=\"\",0,ROUND(AK338-0.04999,1)-AK338+AN338)","v":0},{"$f":"IF(VLOOKUP(AG338,Group,7,FALSE)=\"\",\"\",VLOOKUP(AG338,Group,7,FALSE))","v":""},null,"X"]
[]
[null,null,null,"Colors:","Ethereal Travertino          Glam Bronze          Pietra Grey          Travertino",null,null,null,null,null,null,null,null,null,null,null,null,null,null,null,null,null,null,null,null,null,null,null,null,null,null,null,null,null,null,null,null,null,null,null,null,"X"]
[]
[null,"Stock - Field Tile",null,null,"30\" x 15\" x 6mm",null,"Field",null,null,"Polished (Bright)",null,null,null,null,null,"18.17 SF/CTN",null,null,{"$f":"IF(Suggested=\"Yes\",AB342,AH342)","v":36.35},"SF",{"$f":"+Instructions!$B$3","v":"D"},null,null,{"$f":"+Instructions!$C$22","v":0},{"$f":"ROUND($AB342*(1-X342)+0.004999,2)","v":36.35},null,"",36.35,{"$f":"+X342","v":0},36.35,{"$f":"(AH342-AD342)/AH342","v":0},null,4,{"$f":"SUM(AK342:AM342)+AF342","v":36.35},null,null,{"$f":"ROUND(AD342/(1-VLOOKUP(AG342,Group,2,FALSE)),2)","v":36.35},{"$f":"IF(VLOOKUP(AG342,Group,5,FALSE)=\"YES\",VLOOKUP(ROUND(ROUND(AK342,1)-AK342,2),Round,2,FALSE)+VLOOKUP(AG342,Group,6,FALSE),0)","v":0},{"$f":"IF(VLOOKUP(AG342,Group,7,FALSE)=\"\",0,ROUND(AK342-0.04999,1)-AK342+AN342)","v":0},{"$f":"IF(VLOOKUP(AG342,Group,7,FALSE)=\"\",\"\",VLOOKUP(AG342,Group,7,FALSE))","v":""},null,"X"]
[null,"Stock - Field Tile",null,null,"30\" x 30\" x 6mm",null,"Field",null,null,"Polished (Bright)",null,null,null,null,null,"18.17 SF/CTN",null,null,{"$f":"IF(Suggested=\"Yes\",AB343,AH343)","v":36.35},"SF",{"$f":"+Instructions!$B$3","v":"D"},null,null,{"$f":"+Instructions!$C$22","v":0},{"$f":"ROUND($AB343*(1-X343)+0.004999,2)","v":36.35},null,"",36.35,0,36.35,{"$f":"(AH343-AD343)/AH343","v":0},null,4,{"$f":"SUM(AK343:AM343)+AF343","v":36.35},null,null,{"$f":"ROUND(AD343/(1-VLOOKUP(AG343,Group,2,FALSE)),2)","v":36.35},{"$f":"IF(VLOOKUP(AG343,Group,5,FALSE)=\"YES\",VLOOKUP(ROUND(ROUND(AK343,1)-AK343,2),Round,2,FALSE)+VLOOKUP(AG343,Group,6,FALSE),0)","v":0},{"$f":"IF(VLOOKUP(AG343,Group,7,FALSE)=\"\",0,ROUND(AK343-0.04999,1)-AK343+AN343)","v":0},{"$f":"IF(VLOOKUP(AG343,Group,7,FALSE)=\"\",\"\",VLOOKUP(AG343,Group,7,FALSE))","v":""},null,"X"]
[null,"Stock - Field Tile",null,null,"60\" x 30\" x 6mm",null,"Field",null,null,"Polished (Bright)",null,null,null,null,null,"24.22 SF/CTN",null,null,{"$f":"IF(Suggested=\"Yes\",AB344,AH344)","v":37.950000000000003},"SF",{"$f":"+Instructions!$B$3","v":"D"},null,null,{"$f":"+Instructions!$C$22","v":0},{"$f":"ROUND($AB344*(1-X344)+0.004999,2)","v":37.950000000000003},null,"",37.950000000000003,0,37.950000000000003,{"$f":"(AH344-AD344)/AH344","v":0},null,4,{"$f":"SUM(AK344:AM344)+AF344","v":37.950000000000003},null,null,{"$f":"ROUND(AD344/(1-VLOOKUP(AG344,Group,2,FALSE)),2)","v":37.950000000000003},{"$f":"IF(VLOOKUP(AG344,Group,5,FALSE)=\"YES\",VLOOKUP(ROUND(ROUND(AK344,1)-AK344,2),Round,2,FALSE)+VLOOKUP(AG344,Group,6,FALSE),0)","v":0},{"$f":"IF(VLOOKUP(AG344,Group,7,FALSE)=\"\",0,ROUND(AK344-0.04999,1)-AK344+AN344)","v":0},{"$f":"IF(VLOOKUP(AG344,Group,7,FALSE)=\"\",\"\",VLOOKUP(AG344,Group,7,FALSE))","v":""},null,"X"]
[null,"Stock - Field Tile",null,null,"60\" x 60\" x 6mm",null,"Field",null,null,"Polished (Bright)",null,null,null,null,null,"24.22 SF/CTN",null,null,{"$f":"IF(Suggested=\"Yes\",AB345,AH345)","v":41.8},"SF",{"$f":"+Instructions!$B$3","v":"D"},null,null,{"$f":"+Instructions!$C$22","v":0},{"$f":"ROUND($AB345*(1-X345)+0.004999,2)","v":41.8},null,"",41.8,0,41.8,{"$f":"(AH345-AD345)/AH345","v":0},null,4,{"$f":"SUM(AK345:AM345)+AF345","v":41.8},null,null,{"$f":"ROUND(AD345/(1-VLOOKUP(AG345,Group,2,FALSE)),2)","v":41.8},{"$f":"IF(VLOOKUP(AG345,Group,5,FALSE)=\"YES\",VLOOKUP(ROUND(ROUND(AK345,1)-AK345,2),Round,2,FALSE)+VLOOKUP(AG345,Group,6,FALSE),0)","v":0},{"$f":"IF(VLOOKUP(AG345,Group,7,FALSE)=\"\",0,ROUND(AK345-0.04999,1)-AK345+AN345)","v":0},{"$f":"IF(VLOOKUP(AG345,Group,7,FALSE)=\"\",\"\",VLOOKUP(AG345,Group,7,FALSE))","v":""},null,"X"]
[null,"Stock - Field Tile",null,null,"120\" x 60\" x 6mm",null,"Field",null,null,"Polished (Bright)",null,null,null,null,null,"48.44 SF/CTN",null,null,{"$f":"IF(Suggested=\"Yes\",AB346,AH346)","v":42.6},"SF",{"$f":"+Instructions!$B$3","v":"D"},null,null,{"$f":"+Instructions!$C$22","v":0},{"$f":"ROUND($AB346*(1-X346)+0.004999,2)","v":42.6},null,"",42.6,{"$f":"+X346","v":0},{"$f":"+Y346","v":42.6},{"$f":"(AH346-AD346)/AH346","v":0},null,4,{"$f":"SUM(AK346:AM346)+AF346","v":42.6},null,null,{"$f":"ROUND(AD346/(1-VLOOKUP(AG346,Group,2,FALSE)),2)","v":42.6},{"$f":"IF(VLOOKUP(AG346,Group,5,FALSE)=\"YES\",VLOOKUP(ROUND(ROUND(AK346,1)-AK346,2),Round,2,FALSE)+VLOOKUP(AG346,Group,6,FALSE),0)","v":0},{"$f":"IF(VLOOKUP(AG346,Group,7,FALSE)=\"\",0,ROUND(AK346-0.04999,1)-AK346+AN346)","v":0},{"$f":"IF(VLOOKUP(AG346,Group,7,FALSE)=\"\",\"\",VLOOKUP(AG346,Group,7,FALSE))","v":""},null,"X"]
[]
[null,null,null,"Colors:","Glam Bronze          Pietra Grey",null,null,null,null,null,null,null,null,null,null,null,null,null,null,null,null,null,null,null,null,null,null,null,null,null,null,null,null,null,null,null,null,null,null,null,null,"X"]
[]
[null,"Stock - Field Tile",null,null,"30\" x 15\" x 6mm",null,"Field",null,null,"Satin",null,null,null,null,null,"18.17 SF/CTN",null,null,{"$f":"IF(Suggested=\"Yes\",AB350,AH350)","v":36.35},"SF",{"$f":"+Instructions!$B$3","v":"D"},null,null,{"$f":"+Instructions!$C$22","v":0},{"$f":"ROUND($AB350*(1-X350)+0.004999,2)","v":36.35},null,"",36.35,{"$f":"+X350","v":0},36.35,{"$f":"(AH350-AD350)/AH350","v":0},null,4,{"$f":"SUM(AK350:AM350)+AF350","v":36.35},null,null,{"$f":"ROUND(AD350/(1-VLOOKUP(AG350,Group,2,FALSE)),2)","v":36.35},{"$f":"IF(VLOOKUP(AG350,Group,5,FALSE)=\"YES\",VLOOKUP(ROUND(ROUND(AK350,1)-AK350,2),Round,2,FALSE)+VLOOKUP(AG350,Group,6,FALSE),0)","v":0},{"$f":"IF(VLOOKUP(AG350,Group,7,FALSE)=\"\",0,ROUND(AK350-0.04999,1)-AK350+AN350)","v":0},{"$f":"IF(VLOOKUP(AG350,Group,7,FALSE)=\"\",\"\",VLOOKUP(AG350,Group,7,FALSE))","v":""},null,"X"]
[null,"Stock - Field Tile",null,null,"30\" x 30\" x 6mm",null,"Field",null,null,"Satin",null,null,null,null,null,"18.17 SF/CTN",null,null,{"$f":"IF(Suggested=\"Yes\",AB351,AH351)","v":36.35},"SF",{"$f":"+Instructions!$B$3","v":"D"},null,null,{"$f":"+Instructions!$C$22","v":0},{"$f":"ROUND($AB351*(1-X351)+0.004999,2)","v":36.35},null,"",36.35,0,36.35,{"$f":"(AH351-AD351)/AH351","v":0},null,4,{"$f":"SUM(AK351:AM351)+AF351","v":36.35},null,null,{"$f":"ROUND(AD351/(1-VLOOKUP(AG351,Group,2,FALSE)),2)","v":36.35},{"$f":"IF(VLOOKUP(AG351,Group,5,FALSE)=\"YES\",VLOOKUP(ROUND(ROUND(AK351,1)-AK351,2),Round,2,FALSE)+VLOOKUP(AG351,Group,6,FALSE),0)","v":0},{"$f":"IF(VLOOKUP(AG351,Group,7,FALSE)=\"\",0,ROUND(AK351-0.04999,1)-AK351+AN351)","v":0},{"$f":"IF(VLOOKUP(AG351,Group,7,FALSE)=\"\",\"\",VLOOKUP(AG351,Group,7,FALSE))","v":""},null,"X"]
[null,"Stock - Field Tile",null,null,"60\" x 30\" x 6mm",null,"Field",null,null,"Satin",null,null,null,null,null,"24.22 SF/CTN",null,null,{"$f":"IF(Suggested=\"Yes\",AB352,AH352)","v":37.950000000000003},"SF",{"$f":"+Instructions!$B$3","v":"D"},null,null,{"$f":"+Instructions!$C$22","v":0},{"$f":"ROUND($AB352*(1-X352)+0.004999,2)","v":37.950000000000003},null,"",37.950000000000003,0,37.950000000000003,{"$f":"(AH352-AD352)/AH352","v":0},null,4,{"$f":"SUM(AK352:AM352)+AF352","v":37.950000000000003},null,null,{"$f":"ROUND(AD352/(1-VLOOKUP(AG352,Group,2,FALSE)),2)","v":37.950000000000003},{"$f":"IF(VLOOKUP(AG352,Group,5,FALSE)=\"YES\",VLOOKUP(ROUND(ROUND(AK352,1)-AK352,2),Round,2,FALSE)+VLOOKUP(AG352,Group,6,FALSE),0)","v":0},{"$f":"IF(VLOOKUP(AG352,Group,7,FALSE)=\"\",0,ROUND(AK352-0.04999,1)-AK352+AN352)","v":0},{"$f":"IF(VLOOKUP(AG352,Group,7,FALSE)=\"\",\"\",VLOOKUP(AG352,Group,7,FALSE))","v":""},null,"X"]
[null,"Stock - Field Tile",null,null,"60\" x 60\" x 6mm",null,"Field",null,null,"Satin",null,null,null,null,null,"24.22 SF/CTN",null,null,{"$f":"IF(Suggested=\"Yes\",AB353,AH353)","v":41.8},"SF",{"$f":"+Instructions!$B$3","v":"D"},null,null,{"$f":"+Instructions!$C$22","v":0},{"$f":"ROUND($AB353*(1-X353)+0.004999,2)","v":41.8},null,"",41.8,0,41.8,{"$f":"(AH353-AD353)/AH353","v":0},null,4,{"$f":"SUM(AK353:AM353)+AF353","v":41.8},null,null,{"$f":"ROUND(AD353/(1-VLOOKUP(AG353,Group,2,FALSE)),2)","v":41.8},{"$f":"IF(VLOOKUP(AG353,Group,5,FALSE)=\"YES\",VLOOKUP(ROUND(ROUND(AK353,1)-AK353,2),Round,2,FALSE)+VLOOKUP(AG353,Group,6,FALSE),0)","v":0},{"$f":"IF(VLOOKUP(AG353,Group,7,FALSE)=\"\",0,ROUND(AK353-0.04999,1)-AK353+AN353)","v":0},{"$f":"IF(VLOOKUP(AG353,Group,7,FALSE)=\"\",\"\",VLOOKUP(AG353,Group,7,FALSE))","v":""},null,"X"]
[null,"Stock - Field Tile",null,null,"120\" x 60\" x 6mm",null,"Field",null,null,"Satin",null,null,null,null,null,"48.44 SF/CTN",null,null,{"$f":"IF(Suggested=\"Yes\",AB354,AH354)","v":42.6},"SF",{"$f":"+Instructions!$B$3","v":"D"},null,null,{"$f":"+Instructions!$C$22","v":0},{"$f":"ROUND($AB354*(1-X354)+0.004999,2)","v":42.6},null,"",42.6,0,42.6,{"$f":"(AH354-AD354)/AH354","v":0},null,4,{"$f":"SUM(AK354:AM354)+AF354","v":42.6},null,null,{"$f":"ROUND(AD354/(1-VLOOKUP(AG354,Group,2,FALSE)),2)","v":42.6},{"$f":"IF(VLOOKUP(AG354,Group,5,FALSE)=\"YES\",VLOOKUP(ROUND(ROUND(AK354,1)-AK354,2),Round,2,FALSE)+VLOOKUP(AG354,Group,6,FALSE),0)","v":0},{"$f":"IF(VLOOKUP(AG354,Group,7,FALSE)=\"\",0,ROUND(AK354-0.04999,1)-AK354+AN354)","v":0},{"$f":"IF(VLOOKUP(AG354,Group,7,FALSE)=\"\",\"\",VLOOKUP(AG354,Group,7,FALSE))","v":""},null,"X"]
[]
[null,null,null,"Colors:","Alpi Chiaro Venato",null,null,"Calacatta Bellissimo",null,null,null,"Gold Onyx",null,null,null,null,null,null,null,null,null,null,null,null,null,null,null,null,null,null,null,null,null,null,null,null,null,null,null,null,null,"X"]
[null,null,null,null,"Apuano Purissimo",null,null,"Calacatta Dorato",null,null,null,"Invisible",null,null,null,null,null,null,null,null,null,null,null,null,null,null,null,null,null,null,null,null,null,null,null,null,null,null,null,null,null,"X"]
[null,null,null,null,"Bardiglio Sublime",null,null,"Calacatta Light",null,null,null,"Marbre De Savoie",null,null,null,null,null,null,null,null,null,null,null,null,null,null,null,null,null,null,null,null,null,null,null,null,null,null,null,null,null,"X"]
[null,null,null,null,"Breccia Mirabile",null,null,"Calacatta Statuario",null,null,null,"Premium White",null,null,null,null,null,null,null,null,null,null,null,null,null,null,null,null,null,null,null,null,null,null,null,null,null,null,null,null,null,"X"]
[null,null,null,null,"Bright Onyx",null,null,"Cremo Superiore",null,null,null,"Taxos",null,null,null,null,null,null,null,null,null,null,null,null,null,null,null,null,null,null,null,null,null,null,null,null,null,null,null,null,null,"X"]
[]
[null,"Stock - Field Tile",null,null,"30\" x 15\" x 6mm",null,"Field",null,null,"Honed",null,null,null,null,null,"18.17 SF/CTN",null,null,{"$f":"IF(Suggested=\"Yes\",AB362,AH362)","v":35.35},"SF",{"$f":"+Instructions!$B$3","v":"D"},null,null,{"$f":"+Instructions!$C$22","v":0},{"$f":"ROUND($AB362*(1-X362)+0.004999,2)","v":35.35},null,"",35.35,{"$f":"+X362","v":0},35.35,{"$f":"(AH362-AD362)/AH362","v":0},null,4,{"$f":"SUM(AK362:AM362)+AF362","v":35.35},null,null,{"$f":"ROUND(AD362/(1-VLOOKUP(AG362,Group,2,FALSE)),2)","v":35.35},{"$f":"IF(VLOOKUP(AG362,Group,5,FALSE)=\"YES\",VLOOKUP(ROUND(ROUND(AK362,1)-AK362,2),Round,2,FALSE)+VLOOKUP(AG362,Group,6,FALSE),0)","v":0},{"$f":"IF(VLOOKUP(AG362,Group,7,FALSE)=\"\",0,ROUND(AK362-0.04999,1)-AK362+AN362)","v":0},{"$f":"IF(VLOOKUP(AG362,Group,7,FALSE)=\"\",\"\",VLOOKUP(AG362,Group,7,FALSE))","v":""},null,"X"]
[null,"Stock - Field Tile",null,null,"30\" x 30\" x 6mm",null,"Field",null," ","Honed",null,null,null,null,null,"18.17 SF/CTN",null,null,{"$f":"IF(Suggested=\"Yes\",AB363,AH363)","v":35.35},"SF",{"$f":"+Instructions!$B$3","v":"D"},null,null,{"$f":"+Instructions!$C$22","v":0},{"$f":"ROUND($AB363*(1-X363)+0.004999,2)","v":35.35},null,"",35.35,0,35.35,{"$f":"(AH363-AD363)/AH363","v":0},null,4,{"$f":"SUM(AK363:AM363)+AF363","v":35.35},null,null,{"$f":"ROUND(AD363/(1-VLOOKUP(AG363,Group,2,FALSE)),2)","v":35.35},{"$f":"IF(VLOOKUP(AG363,Group,5,FALSE)=\"YES\",VLOOKUP(ROUND(ROUND(AK363,1)-AK363,2),Round,2,FALSE)+VLOOKUP(AG363,Group,6,FALSE),0)","v":0},{"$f":"IF(VLOOKUP(AG363,Group,7,FALSE)=\"\",0,ROUND(AK363-0.04999,1)-AK363+AN363)","v":0},{"$f":"IF(VLOOKUP(AG363,Group,7,FALSE)=\"\",\"\",VLOOKUP(AG363,Group,7,FALSE))","v":""},null,"X"]
[null,"Stock - Field Tile",null,null,"60\" x 30\" x 6mm",null,"Field",null,null,"Honed",null,null,null,null,null,"24.22 SF/CTN",null,null,{"$f":"IF(Suggested=\"Yes\",AB364,AH364)","v":37.4},"SF",{"$f":"+Instructions!$B$3","v":"D"},null,null,{"$f":"+Instructions!$C$22","v":0},{"$f":"ROUND($AB364*(1-X364)+0.004999,2)","v":37.4},null,"",37.4,0,37.4,{"$f":"(AH364-AD364)/AH364","v":0},null,4,{"$f":"SUM(AK364:AM364)+AF364","v":37.4},null,null,{"$f":"ROUND(AD364/(1-VLOOKUP(AG364,Group,2,FALSE)),2)","v":37.4},{"$f":"IF(VLOOKUP(AG364,Group,5,FALSE)=\"YES\",VLOOKUP(ROUND(ROUND(AK364,1)-AK364,2),Round,2,FALSE)+VLOOKUP(AG364,Group,6,FALSE),0)","v":0},{"$f":"IF(VLOOKUP(AG364,Group,7,FALSE)=\"\",0,ROUND(AK364-0.04999,1)-AK364+AN364)","v":0},{"$f":"IF(VLOOKUP(AG364,Group,7,FALSE)=\"\",\"\",VLOOKUP(AG364,Group,7,FALSE))","v":""},null,"X"]
[null,"Stock - Field Tile",null,null,"60\" x 60\" x 6mm",null,"Field",null,null,"Honed",null,null,null,null,null,"24.22 SF/CTN",null,null,{"$f":"IF(Suggested=\"Yes\",AB365,AH365)","v":40.65},"SF",{"$f":"+Instructions!$B$3","v":"D"},null,null,{"$f":"+Instructions!$C$22","v":0},{"$f":"ROUND($AB365*(1-X365)+0.004999,2)","v":40.65},null,"",40.65,0,40.65,{"$f":"(AH365-AD365)/AH365","v":0},null,4,{"$f":"SUM(AK365:AM365)+AF365","v":40.65},null,null,{"$f":"ROUND(AD365/(1-VLOOKUP(AG365,Group,2,FALSE)),2)","v":40.65},{"$f":"IF(VLOOKUP(AG365,Group,5,FALSE)=\"YES\",VLOOKUP(ROUND(ROUND(AK365,1)-AK365,2),Round,2,FALSE)+VLOOKUP(AG365,Group,6,FALSE),0)","v":0},{"$f":"IF(VLOOKUP(AG365,Group,7,FALSE)=\"\",0,ROUND(AK365-0.04999,1)-AK365+AN365)","v":0},{"$f":"IF(VLOOKUP(AG365,Group,7,FALSE)=\"\",\"\",VLOOKUP(AG365,Group,7,FALSE))","v":""},null,"X"]
[null,"Stock - Field Tile",null,null,"120\" x 60\" x 6mm",null,"Field",null,null,"Honed",null,null,null,null,null,"48.44 SF/CTN",null,null,{"$f":"IF(Suggested=\"Yes\",AB366,AH366)","v":42.3},"SF",{"$f":"+Instructions!$B$3","v":"D"},null,null,{"$f":"+Instructions!$C$22","v":0},{"$f":"ROUND($AB366*(1-X366)+0.004999,2)","v":42.3},null,"",42.3,0,42.3,{"$f":"(AH366-AD366)/AH366","v":0},null,4,{"$f":"SUM(AK366:AM366)+AF366","v":42.3},null,null,{"$f":"ROUND(AD366/(1-VLOOKUP(AG366,Group,2,FALSE)),2)","v":42.3},{"$f":"IF(VLOOKUP(AG366,Group,5,FALSE)=\"YES\",VLOOKUP(ROUND(ROUND(AK366,1)-AK366,2),Round,2,FALSE)+VLOOKUP(AG366,Group,6,FALSE),0)","v":0},{"$f":"IF(VLOOKUP(AG366,Group,7,FALSE)=\"\",0,ROUND(AK366-0.04999,1)-AK366+AN366)","v":0},{"$f":"IF(VLOOKUP(AG366,Group,7,FALSE)=\"\",\"\",VLOOKUP(AG366,Group,7,FALSE))","v":""},null,"X"]
[]
[null,null,null,"Colors:","Calacatta Statuario A          Calacatta Statuario B",null,null,null,null,null,null,null,null,null,null,null,null,null,null,null,null,null,null,null,null,null,null,null,null,null,null,null,null,null,null,null,null,null,null,null,null,"X"]
[]
[null,"Stock - Field Tile",null,null,"120\" x 60\" x 6mm",null,"Field",null,null,"Honed",null,null,null,null,null,"48.44 SF/CTN",null,null,{"$f":"IF(Suggested=\"Yes\",AB370,AH370)","v":42.3},"SF",{"$f":"+Instructions!$B$3","v":"D"},null,null,{"$f":"+Instructions!$C$22","v":0},{"$f":"ROUND($AB370*(1-X370)+0.004999,2)","v":42.3},null,"",42.3,{"$f":"+X370","v":0},{"$f":"+Y370","v":42.3},{"$f":"(AH370-AD370)/AH370","v":0},null,4,{"$f":"SUM(AK370:AM370)+AF370","v":42.3},null,null,{"$f":"ROUND(AD370/(1-VLOOKUP(AG370,Group,2,FALSE)),2)","v":42.3},{"$f":"IF(VLOOKUP(AG370,Group,5,FALSE)=\"YES\",VLOOKUP(ROUND(ROUND(AK370,1)-AK370,2),Round,2,FALSE)+VLOOKUP(AG370,Group,6,FALSE),0)","v":0},{"$f":"IF(VLOOKUP(AG370,Group,7,FALSE)=\"\",0,ROUND(AK370-0.04999,1)-AK370+AN370)","v":0},{"$f":"IF(VLOOKUP(AG370,Group,7,FALSE)=\"\",\"\",VLOOKUP(AG370,Group,7,FALSE))","v":""},null,"X"]
[]
[null,null,"continued on next page",null,null,null,null,null,null," "]
[null,null,"MAXIMUM - Large Panel Porcelain - continued",null,null,null,null,null,null,null,null,null,null,null,null,null,null,null,null,null,null,null,null,null,null,null,null,null,null,null,null,null,null,null,null,null,null,null,null,null,null,"X"]
[]
[null,null,null,"Large Panel Porcelain will also involve additional packaging & freight charges depending on sizes and quantities.  See Page 2 for these additional charges.  120\" panels are always subject to additional freight charges based on project quantity."]
[]
[null,null,"     MARMI MAXIMUM",null,null,null,null,null,null,null,null,null,null,null,null,null,null,"Item # Lookup:","FIMAMA"]
[]
[null,null,null,"Colors:","Alpi Chiaro Venato",null,null,"  Calacatta Statuario",null,null,null," Marbre De Savoie",null,null,null,null,null,null,null,null,null,null,null,null,null,null,null,null,null,null,null,null,null,null,null,null,null,null,null,null,null,"X"]
[null,null,null,null,"Amazonite",null,null,"  Cremo Superiore",null,null,null," Nebula Grigia",null,null," ",null,null,null,null,null,null,null,null,null,null,null,null,null,null,null,null,null,null,null,null,null,null,null,null,null,null,"X"]
[null,null,null,null,"Apuano Purissimo",null,null,"  Dark Marquina",null,null,null," Nero Damascato",null,null,null," "," ",null,null,null,null,null,null,null,null,null,null,null,null,null,null,null,null,null,null,null,null,null,null,null,null,"X"]
[null,null,null,null,"Arabescato Orobico",null,null,"  Deep Emperador",null,null,null," Premium White",null,null,null,null,null,null,null,null,null,null,null,null,null,null,null,null,null,null,null,null,null,null,null,null,null,null,null,null,null,"X"]
[null,null,null,null,"Bardiglio Sublime",null,null,"  Gold Onyx",null,null,null," Sahara Noir",null,null,null,null,null,null,null,null,null,null,null,null,null,null,null,null,null,null,null,null,null,null,null,null,null,null,null,null,null,"X"]
[null,null,null,null,"Breccia Mirabile",null,null,"  Grand Carnico",null,null,null," Taxos",null,null,null," ",null,null,null,null,null,null,null,null,null,null,null,null,null,null,null,null,null,null,null,null,null,null,null,null,null,"X"]
[null,null,null,null,"Bright Onyx",null,null,"  Imperial White",null,null,null," Verdi Fantastico",null,null,null,null," ",null,null,null,null,null,null,null,null,null,null,null,null,null,null,null,null,null,null,null,null,null,null,null,null,"X"]
[null,null,null,null,"Calacatta Bellissimo",null,null,"  Invisible",null,null,null," White Beauty",null,null,null,null,null,null,null,null,null,null,null,null,null,null,null,null,null,null,null,null,null,null,null,null,null,null,null,null,null,"X"]
[null,null,null,null,"Calacatta Dorato",null,null,"  Irish Green",null,null,null,null,null,null,null,null," ",null,null,null,null,null,null,null,null,null,null,null,null,null,null,null,null,null,null,null,null,null,null,null,null,"X"]
[null,null,null,null,"Calacatta Light",null,null,"  Majestic Onyx",null,null,null,null,null,null,null,null,null,null,null,null,null,null,null,null,null,null,null,null,null,null,null,null,null,null,null,null,null,null,null,null,null,"X"]
[]
[null,"Stock - Field Tile",null,null,"30\" x 15\" x 6mm",null,"Field",null,null,"Polished (Bright)",null," ",null,null,null,"18.17 SF/CTN",null,null,{"$f":"IF(Suggested=\"Yes\",AB390,AH390)","v":40.549999999999997},"SF",{"$f":"+Instructions!$B$3","v":"D"},null,null,{"$f":"+Instructions!$C$22","v":0},{"$f":"ROUND($AB390*(1-X390)+0.004999,2)","v":40.549999999999997},null,"",40.549999999999997,{"$f":"+X390","v":0},{"$f":"+Y390","v":40.549999999999997},{"$f":"(AH390-AD390)/AH390","v":0},null,4,{"$f":"SUM(AK390:AM390)+AF390","v":40.549999999999997},null,null,{"$f":"ROUND(AD390/(1-VLOOKUP(AG390,Group,2,FALSE)),2)","v":40.549999999999997},{"$f":"IF(VLOOKUP(AG390,Group,5,FALSE)=\"YES\",VLOOKUP(ROUND(ROUND(AK390,1)-AK390,2),Round,2,FALSE)+VLOOKUP(AG390,Group,6,FALSE),0)","v":0},{"$f":"IF(VLOOKUP(AG390,Group,7,FALSE)=\"\",0,ROUND(AK390-0.04999,1)-AK390+AN390)","v":0},{"$f":"IF(VLOOKUP(AG390,Group,7,FALSE)=\"\",\"\",VLOOKUP(AG390,Group,7,FALSE))","v":""},null,"X"]
[null,"Stock - Field Tile",null,null,"30\" x 30\" x 6mm",null,"Field",null,null,"Polished (Bright)",null,null,null,null,null,"18.17 SF/CTN",null,null,{"$f":"IF(Suggested=\"Yes\",AB391,AH391)","v":40.549999999999997},"SF",{"$f":"+Instructions!$B$3","v":"D"},null,null,{"$f":"+Instructions!$C$22","v":0},{"$f":"ROUND($AB391*(1-X391)+0.004999,2)","v":40.549999999999997},null,"",40.549999999999997,{"$f":"+X391","v":0},{"$f":"+Y391","v":40.549999999999997},{"$f":"(AH391-AD391)/AH391","v":0},null,4,{"$f":"SUM(AK391:AM391)+AF391","v":40.549999999999997},null,null,{"$f":"ROUND(AD391/(1-VLOOKUP(AG391,Group,2,FALSE)),2)","v":40.549999999999997},{"$f":"IF(VLOOKUP(AG391,Group,5,FALSE)=\"YES\",VLOOKUP(ROUND(ROUND(AK391,1)-AK391,2),Round,2,FALSE)+VLOOKUP(AG391,Group,6,FALSE),0)","v":0},{"$f":"IF(VLOOKUP(AG391,Group,7,FALSE)=\"\",0,ROUND(AK391-0.04999,1)-AK391+AN391)","v":0},{"$f":"IF(VLOOKUP(AG391,Group,7,FALSE)=\"\",\"\",VLOOKUP(AG391,Group,7,FALSE))","v":""},null,"X"]
[null,"Stock - Field Tile",null,null,"60\" x 30\" x 6mm",null,"Field",null,null,"Polished (Bright)",null,null,null,null,null,"24.22 SF/CTN",null,null,{"$f":"IF(Suggested=\"Yes\",AB392,AH392)","v":42.6},"SF",{"$f":"+Instructions!$B$3","v":"D"},null,null,{"$f":"+Instructions!$C$22","v":0},{"$f":"ROUND($AB392*(1-X392)+0.004999,2)","v":42.6},null,"",42.6,{"$f":"+X392","v":0},42.6,{"$f":"(AH392-AD392)/AH392","v":0},null,4,{"$f":"SUM(AK392:AM392)+AF392","v":42.6},null,null,{"$f":"ROUND(AD392/(1-VLOOKUP(AG392,Group,2,FALSE)),2)","v":42.6},{"$f":"IF(VLOOKUP(AG392,Group,5,FALSE)=\"YES\",VLOOKUP(ROUND(ROUND(AK392,1)-AK392,2),Round,2,FALSE)+VLOOKUP(AG392,Group,6,FALSE),0)","v":0},{"$f":"IF(VLOOKUP(AG392,Group,7,FALSE)=\"\",0,ROUND(AK392-0.04999,1)-AK392+AN392)","v":0},{"$f":"IF(VLOOKUP(AG392,Group,7,FALSE)=\"\",\"\",VLOOKUP(AG392,Group,7,FALSE))","v":""},null,"X"]
[null,"Stock - Field Tile",null,null,"60\" x 60\" x 6mm",null,"Field",null,null,"Polished (Bright)",null,null,null,null,null,"24.22 SF/CTN",null,null,{"$f":"IF(Suggested=\"Yes\",AB393,AH393)","v":46.1},"SF",{"$f":"+Instructions!$B$3","v":"D"},null,null,{"$f":"+Instructions!$C$22","v":0},{"$f":"ROUND($AB393*(1-X393)+0.004999,2)","v":46.1},null,"",46.1,0,46.1,{"$f":"(AH393-AD393)/AH393","v":0},null,4,{"$f":"SUM(AK393:AM393)+AF393","v":46.1},null,null,{"$f":"ROUND(AD393/(1-VLOOKUP(AG393,Group,2,FALSE)),2)","v":46.1},{"$f":"IF(VLOOKUP(AG393,Group,5,FALSE)=\"YES\",VLOOKUP(ROUND(ROUND(AK393,1)-AK393,2),Round,2,FALSE)+VLOOKUP(AG393,Group,6,FALSE),0)","v":0},{"$f":"IF(VLOOKUP(AG393,Group,7,FALSE)=\"\",0,ROUND(AK393-0.04999,1)-AK393+AN393)","v":0},{"$f":"IF(VLOOKUP(AG393,Group,7,FALSE)=\"\",\"\",VLOOKUP(AG393,Group,7,FALSE))","v":""},null,"X"]
[null,"Stock - Field Tile",null,null,"120\" x 60\" x 6mm",null,"Field",null,null,"Polished (Bright)",null,null,null,null,null,"48.44 SF/CTN",null,null,{"$f":"IF(Suggested=\"Yes\",AB394,AH394)","v":48.8},"SF",{"$f":"+Instructions!$B$3","v":"D"},null,null,{"$f":"+Instructions!$C$22","v":0},{"$f":"ROUND($AB394*(1-X394)+0.004999,2)","v":48.8},null,"",48.8,0,48.8,{"$f":"(AH394-AD394)/AH394","v":0},null,4,{"$f":"SUM(AK394:AM394)+AF394","v":48.8},null,null,{"$f":"ROUND(AD394/(1-VLOOKUP(AG394,Group,2,FALSE)),2)","v":48.8},{"$f":"IF(VLOOKUP(AG394,Group,5,FALSE)=\"YES\",VLOOKUP(ROUND(ROUND(AK394,1)-AK394,2),Round,2,FALSE)+VLOOKUP(AG394,Group,6,FALSE),0)","v":0},{"$f":"IF(VLOOKUP(AG394,Group,7,FALSE)=\"\",0,ROUND(AK394-0.04999,1)-AK394+AN394)","v":0},{"$f":"IF(VLOOKUP(AG394,Group,7,FALSE)=\"\",\"\",VLOOKUP(AG394,Group,7,FALSE))","v":""},null,"X"]
[]
[null,null,null,"Colors:","Arabescato Orobico A",null,null,null,"Calacatta Statuario A",null,null,"   Premium White A",null,null,null,null,null,null,null,null,null,null,null,null,null,null,null,null,null,null,null,null,null,null,null,null,null,null,null,null,null,"X"]
[null,null,null,null,"Arabescato Orobico B",null,null,null,"Calacatta Statuario B",null,null,"   Premium White B",null,null,null,null,null,null,null,null,null,null,null,null,null,null,null,null,null,null,null,null,null,null,null,null,null,null,null,null,null,"X"]
[]
[null,"Stock - Field Tile",null,null,"120\" x 60\" x 6mm",null,"Field",null,null,"Polished (Bright)",null,null," ",null,null,"48.44 SF/CTN",null,null,{"$f":"IF(Suggested=\"Yes\",AB399,AH399)","v":48.8},"SF",{"$f":"+Instructions!$B$3","v":"D"},null,null,{"$f":"+Instructions!$C$22","v":0},{"$f":"ROUND($AB399*(1-X399)+0.004999,2)","v":48.8},null,"",48.8,{"$f":"+X399","v":0},{"$f":"+Y399","v":48.8},{"$f":"(AH399-AD399)/AH399","v":0},null,4,{"$f":"SUM(AK399:AM399)+AF399","v":48.8},null,null,{"$f":"ROUND(AD399/(1-VLOOKUP(AG399,Group,2,FALSE)),2)","v":48.8},{"$f":"IF(VLOOKUP(AG399,Group,5,FALSE)=\"YES\",VLOOKUP(ROUND(ROUND(AK399,1)-AK399,2),Round,2,FALSE)+VLOOKUP(AG399,Group,6,FALSE),0)","v":0},{"$f":"IF(VLOOKUP(AG399,Group,7,FALSE)=\"\",0,ROUND(AK399-0.04999,1)-AK399+AN399)","v":0},{"$f":"IF(VLOOKUP(AG399,Group,7,FALSE)=\"\",\"\",VLOOKUP(AG399,Group,7,FALSE))","v":""},null,"X"]
[]
[null,null,null,"Colors:","Dark Marquina",null,"       Nero Damascato",null,null,null," Sahara Noir",null,null,null,null,null,null,null,null,null,null,null,null,null,null,null,null,null,null,null,null,null,null,null,null,null,null,null,null,null,null,"X"]
[null,null,null,null,"Nebula Grigia",null,"       Premium White",null,null,null,null,null,null,null,null,null,null,null,null,null,null,null,null,null,null,null,null,null,null,null,null,null,null,null,null,null,null,null,null,null,null,"X"]
[]
[null,"Stock - Field Tile",null,null,"30\" x 15\" x 6mm",null,"Field",null,null,"Satin",null,null,null,null,null,"18.17 SF/CTN",null,null,{"$f":"IF(Suggested=\"Yes\",AB404,AH404)","v":40.549999999999997},"SF",{"$f":"+Instructions!$B$3","v":"D"},null,null,{"$f":"+Instructions!$C$22","v":0},{"$f":"ROUND($AB404*(1-X404)+0.004999,2)","v":40.549999999999997},null,"",40.549999999999997,{"$f":"+X404","v":0},40.549999999999997,{"$f":"(AH404-AD404)/AH404","v":0},null,4,{"$f":"SUM(AK404:AM404)+AF404","v":40.549999999999997},null,null,{"$f":"ROUND(AD404/(1-VLOOKUP(AG404,Group,2,FALSE)),2)","v":40.549999999999997},{"$f":"IF(VLOOKUP(AG404,Group,5,FALSE)=\"YES\",VLOOKUP(ROUND(ROUND(AK404,1)-AK404,2),Round,2,FALSE)+VLOOKUP(AG404,Group,6,FALSE),0)","v":0},{"$f":"IF(VLOOKUP(AG404,Group,7,FALSE)=\"\",0,ROUND(AK404-0.04999,1)-AK404+AN404)","v":0},{"$f":"IF(VLOOKUP(AG404,Group,7,FALSE)=\"\",\"\",VLOOKUP(AG404,Group,7,FALSE))","v":""},null,"X"]
[null,"Stock - Field Tile",null,null,"30\" x 30\" x 6mm",null,"Field",null,null,"Satin",null,null,null,null,null,"18.17 SF/CTN",null,null,{"$f":"IF(Suggested=\"Yes\",AB405,AH405)","v":40.549999999999997},"SF",{"$f":"+Instructions!$B$3","v":"D"},null,null,{"$f":"+Instructions!$C$22","v":0},{"$f":"ROUND($AB405*(1-X405)+0.004999,2)","v":40.549999999999997},null,"",40.549999999999997,0,40.549999999999997,{"$f":"(AH405-AD405)/AH405","v":0},null,4,{"$f":"SUM(AK405:AM405)+AF405","v":40.549999999999997},null,null,{"$f":"ROUND(AD405/(1-VLOOKUP(AG405,Group,2,FALSE)),2)","v":40.549999999999997},{"$f":"IF(VLOOKUP(AG405,Group,5,FALSE)=\"YES\",VLOOKUP(ROUND(ROUND(AK405,1)-AK405,2),Round,2,FALSE)+VLOOKUP(AG405,Group,6,FALSE),0)","v":0},{"$f":"IF(VLOOKUP(AG405,Group,7,FALSE)=\"\",0,ROUND(AK405-0.04999,1)-AK405+AN405)","v":0},{"$f":"IF(VLOOKUP(AG405,Group,7,FALSE)=\"\",\"\",VLOOKUP(AG405,Group,7,FALSE))","v":""},null,"X"]
[null,"Stock - Field Tile",null,null,"60\" x 30\" x 6mm",null,"Field",null,null,"Satin",null,null,null,null,null,"24.22 SF/CTN",null,null,{"$f":"IF(Suggested=\"Yes\",AB406,AH406)","v":42.6},"SF",{"$f":"+Instructions!$B$3","v":"D"},null,null,{"$f":"+Instructions!$C$22","v":0},{"$f":"ROUND($AB406*(1-X406)+0.004999,2)","v":42.6},null,"",42.6,0,42.6,{"$f":"(AH406-AD406)/AH406","v":0},null,4,{"$f":"SUM(AK406:AM406)+AF406","v":42.6},null,null,{"$f":"ROUND(AD406/(1-VLOOKUP(AG406,Group,2,FALSE)),2)","v":42.6},{"$f":"IF(VLOOKUP(AG406,Group,5,FALSE)=\"YES\",VLOOKUP(ROUND(ROUND(AK406,1)-AK406,2),Round,2,FALSE)+VLOOKUP(AG406,Group,6,FALSE),0)","v":0},{"$f":"IF(VLOOKUP(AG406,Group,7,FALSE)=\"\",0,ROUND(AK406-0.04999,1)-AK406+AN406)","v":0},{"$f":"IF(VLOOKUP(AG406,Group,7,FALSE)=\"\",\"\",VLOOKUP(AG406,Group,7,FALSE))","v":""},null,"X"]
[null,"Stock - Field Tile",null,null,"60\" x 60\" x 6mm",null,"Field",null,null,"Satin",null," ",null,null,null,"24.22 SF/CTN",null,null,{"$f":"IF(Suggested=\"Yes\",AB407,AH407)","v":46.1},"SF",{"$f":"+Instructions!$B$3","v":"D"},null,null,{"$f":"+Instructions!$C$22","v":0},{"$f":"ROUND($AB407*(1-X407)+0.004999,2)","v":46.1},null,"",46.1,0,46.1,{"$f":"(AH407-AD407)/AH407","v":0},null,4,{"$f":"SUM(AK407:AM407)+AF407","v":46.1},null,null,{"$f":"ROUND(AD407/(1-VLOOKUP(AG407,Group,2,FALSE)),2)","v":46.1},{"$f":"IF(VLOOKUP(AG407,Group,5,FALSE)=\"YES\",VLOOKUP(ROUND(ROUND(AK407,1)-AK407,2),Round,2,FALSE)+VLOOKUP(AG407,Group,6,FALSE),0)","v":0},{"$f":"IF(VLOOKUP(AG407,Group,7,FALSE)=\"\",0,ROUND(AK407-0.04999,1)-AK407+AN407)","v":0},{"$f":"IF(VLOOKUP(AG407,Group,7,FALSE)=\"\",\"\",VLOOKUP(AG407,Group,7,FALSE))","v":""},null,"X"]
[null,"Stock - Field Tile",null,null,"120\" x 60\" x 6mm",null,"Field",null,null,"Satin",null,null,null,null,null,"48.44 SF/CTN",null,null,{"$f":"IF(Suggested=\"Yes\",AB408,AH408)","v":48.8},"SF",{"$f":"+Instructions!$B$3","v":"D"},null,null,{"$f":"+Instructions!$C$22","v":0},{"$f":"ROUND($AB408*(1-X408)+0.004999,2)","v":48.8},null,"",48.8,0,48.8,{"$f":"(AH408-AD408)/AH408","v":0},null,4,{"$f":"SUM(AK408:AM408)+AF408","v":48.8},null,null,{"$f":"ROUND(AD408/(1-VLOOKUP(AG408,Group,2,FALSE)),2)","v":48.8},{"$f":"IF(VLOOKUP(AG408,Group,5,FALSE)=\"YES\",VLOOKUP(ROUND(ROUND(AK408,1)-AK408,2),Round,2,FALSE)+VLOOKUP(AG408,Group,6,FALSE),0)","v":0},{"$f":"IF(VLOOKUP(AG408,Group,7,FALSE)=\"\",0,ROUND(AK408-0.04999,1)-AK408+AN408)","v":0},{"$f":"IF(VLOOKUP(AG408,Group,7,FALSE)=\"\",\"\",VLOOKUP(AG408,Group,7,FALSE))","v":""},null,"X"]
[]
[null,null,null,"Color:","Lepanto Rubino",null,null,null,null,null,null,null,null,null,null,null,null,null,null,null,null,null,null,null,null,null,null,null,null,null,null,null,null,null,null,null,null,null,null,null,null,"X"]
[]
[null,"Stock - Field Tile",null,null,"30\" x 15\" x 6mm",null,"Field",null,null,"Honed",null,null,null,null,null,"18.17 SF/CTN",null,null,{"$f":"IF(Suggested=\"Yes\",AB412,AH412)","v":37.1},"SF",{"$f":"+Instructions!$B$3","v":"D"},null,null,{"$f":"+Instructions!$C$22","v":0},{"$f":"ROUND($AB412*(1-X412)+0.004999,2)","v":37.1},null,"",37.1,{"$f":"+X412","v":0},37.1,{"$f":"(AH412-AD412)/AH412","v":0},null,4,{"$f":"SUM(AK412:AM412)+AF412","v":37.1},null,null,{"$f":"ROUND(AD412/(1-VLOOKUP(AG412,Group,2,FALSE)),2)","v":37.1},{"$f":"IF(VLOOKUP(AG412,Group,5,FALSE)=\"YES\",VLOOKUP(ROUND(ROUND(AK412,1)-AK412,2),Round,2,FALSE)+VLOOKUP(AG412,Group,6,FALSE),0)","v":0},{"$f":"IF(VLOOKUP(AG412,Group,7,FALSE)=\"\",0,ROUND(AK412-0.04999,1)-AK412+AN412)","v":0},{"$f":"IF(VLOOKUP(AG412,Group,7,FALSE)=\"\",\"\",VLOOKUP(AG412,Group,7,FALSE))","v":""},null,"X"]
[null,"Stock - Field Tile",null,null,"30\" x 30\" x 6mm",null,"Field",null,null,"Honed",null,null,null,null,null,"18.17 SF/CTN",null,null,{"$f":"IF(Suggested=\"Yes\",AB413,AH413)","v":37.1},"SF",{"$f":"+Instructions!$B$3","v":"D"},null,null,{"$f":"+Instructions!$C$22","v":0},{"$f":"ROUND($AB413*(1-X413)+0.004999,2)","v":37.1},null,"",37.1,0,37.1,{"$f":"(AH413-AD413)/AH413","v":0},null,4,{"$f":"SUM(AK413:AM413)+AF413","v":37.1},null,null,{"$f":"ROUND(AD413/(1-VLOOKUP(AG413,Group,2,FALSE)),2)","v":37.1},{"$f":"IF(VLOOKUP(AG413,Group,5,FALSE)=\"YES\",VLOOKUP(ROUND(ROUND(AK413,1)-AK413,2),Round,2,FALSE)+VLOOKUP(AG413,Group,6,FALSE),0)","v":0},{"$f":"IF(VLOOKUP(AG413,Group,7,FALSE)=\"\",0,ROUND(AK413-0.04999,1)-AK413+AN413)","v":0},{"$f":"IF(VLOOKUP(AG413,Group,7,FALSE)=\"\",\"\",VLOOKUP(AG413,Group,7,FALSE))","v":""},null,"X"]
[null,"Stock - Field Tile",null,null,"60\" x 30\" x 6mm",null,"Field",null,null,"Honed",null,null,null,null,null,"24.22 SF/CTN",null,null,{"$f":"IF(Suggested=\"Yes\",AB414,AH414)","v":39.35},"SF",{"$f":"+Instructions!$B$3","v":"D"},null,null,{"$f":"+Instructions!$C$22","v":0},{"$f":"ROUND($AB414*(1-X414)+0.004999,2)","v":39.35},null,"",39.35,0,39.35,{"$f":"(AH414-AD414)/AH414","v":0},null,4,{"$f":"SUM(AK414:AM414)+AF414","v":39.35},null,null,{"$f":"ROUND(AD414/(1-VLOOKUP(AG414,Group,2,FALSE)),2)","v":39.35},{"$f":"IF(VLOOKUP(AG414,Group,5,FALSE)=\"YES\",VLOOKUP(ROUND(ROUND(AK414,1)-AK414,2),Round,2,FALSE)+VLOOKUP(AG414,Group,6,FALSE),0)","v":0},{"$f":"IF(VLOOKUP(AG414,Group,7,FALSE)=\"\",0,ROUND(AK414-0.04999,1)-AK414+AN414)","v":0},{"$f":"IF(VLOOKUP(AG414,Group,7,FALSE)=\"\",\"\",VLOOKUP(AG414,Group,7,FALSE))","v":""},null,"X"]
[null,"Stock - Field Tile",null,null,"60\" x 60\" x 6mm",null,"Field",null,null,"Honed",null,null,null,null,null,"24.22 SF/CTN",null,null,{"$f":"IF(Suggested=\"Yes\",AB415,AH415)","v":42.8},"SF",{"$f":"+Instructions!$B$3","v":"D"},null,null,{"$f":"+Instructions!$C$22","v":0},{"$f":"ROUND($AB415*(1-X415)+0.004999,2)","v":42.8},null,"",42.8,0,42.8,{"$f":"(AH415-AD415)/AH415","v":0},null,4,{"$f":"SUM(AK415:AM415)+AF415","v":42.8},null,null,{"$f":"ROUND(AD415/(1-VLOOKUP(AG415,Group,2,FALSE)),2)","v":42.8},{"$f":"IF(VLOOKUP(AG415,Group,5,FALSE)=\"YES\",VLOOKUP(ROUND(ROUND(AK415,1)-AK415,2),Round,2,FALSE)+VLOOKUP(AG415,Group,6,FALSE),0)","v":0},{"$f":"IF(VLOOKUP(AG415,Group,7,FALSE)=\"\",0,ROUND(AK415-0.04999,1)-AK415+AN415)","v":0},{"$f":"IF(VLOOKUP(AG415,Group,7,FALSE)=\"\",\"\",VLOOKUP(AG415,Group,7,FALSE))","v":""},null,"X"]
[null,"Stock - Field Tile",null,null,"120\" x 60\" x 6mm",null,"Field",null,null,"Honed",null,null,null,null,null,"48.44 SF/CTN",null,null,{"$f":"IF(Suggested=\"Yes\",AB416,AH416)","v":44.55},"SF",{"$f":"+Instructions!$B$3","v":"D"},null,null,{"$f":"+Instructions!$C$22","v":0},{"$f":"ROUND($AB416*(1-X416)+0.004999,2)","v":44.55},null,"",44.55,0,44.55,{"$f":"(AH416-AD416)/AH416","v":0},null,4,{"$f":"SUM(AK416:AM416)+AF416","v":44.55},null,null,{"$f":"ROUND(AD416/(1-VLOOKUP(AG416,Group,2,FALSE)),2)","v":44.55},{"$f":"IF(VLOOKUP(AG416,Group,5,FALSE)=\"YES\",VLOOKUP(ROUND(ROUND(AK416,1)-AK416,2),Round,2,FALSE)+VLOOKUP(AG416,Group,6,FALSE),0)","v":0},{"$f":"IF(VLOOKUP(AG416,Group,7,FALSE)=\"\",0,ROUND(AK416-0.04999,1)-AK416+AN416)","v":0},{"$f":"IF(VLOOKUP(AG416,Group,7,FALSE)=\"\",\"\",VLOOKUP(AG416,Group,7,FALSE))","v":""},null,"X"]
[]
[null,null,null,"Colors:","Divine Blue          Lepanto Rubino",null,null,null,null,null,null,null,null,null,null,null,null,null,null,null,null,null,null,null,null,null,null,null,null,null,null,null,null,null,null,null,null,null,null,null,null,"X"]
[]
[null,"Stock - Field Tile",null,null,"30\" x 15\" x 6mm",null,"Field",null,null,"Polished (Bright)",null,null,null,null,null,"18.17 SF/CTN",null,null,{"$f":"IF(Suggested=\"Yes\",AB420,AH420)","v":42.65},"SF",{"$f":"+Instructions!$B$3","v":"D"},null,null,{"$f":"+Instructions!$C$22","v":0},{"$f":"ROUND($AB420*(1-X420)+0.004999,2)","v":42.65},null,"",42.65,{"$f":"+X420","v":0},42.65,{"$f":"(AH420-AD420)/AH420","v":0},null,4,{"$f":"SUM(AK420:AM420)+AF420","v":42.65},null,null,{"$f":"ROUND(AD420/(1-VLOOKUP(AG420,Group,2,FALSE)),2)","v":42.65},{"$f":"IF(VLOOKUP(AG420,Group,5,FALSE)=\"YES\",VLOOKUP(ROUND(ROUND(AK420,1)-AK420,2),Round,2,FALSE)+VLOOKUP(AG420,Group,6,FALSE),0)","v":0},{"$f":"IF(VLOOKUP(AG420,Group,7,FALSE)=\"\",0,ROUND(AK420-0.04999,1)-AK420+AN420)","v":0},{"$f":"IF(VLOOKUP(AG420,Group,7,FALSE)=\"\",\"\",VLOOKUP(AG420,Group,7,FALSE))","v":""},null,"X"]
[null,"Stock - Field Tile",null,null,"30\" x 30\" x 6mm",null,"Field",null,null,"Polished (Bright)",null,null,null,null,null,"18.17 SF/CTN",null,null,{"$f":"IF(Suggested=\"Yes\",AB421,AH421)","v":42.65},"SF",{"$f":"+Instructions!$B$3","v":"D"},null,null,{"$f":"+Instructions!$C$22","v":0},{"$f":"ROUND($AB421*(1-X421)+0.004999,2)","v":42.65},null,"",42.65,0,42.65,{"$f":"(AH421-AD421)/AH421","v":0},null,4,{"$f":"SUM(AK421:AM421)+AF421","v":42.65},null,null,{"$f":"ROUND(AD421/(1-VLOOKUP(AG421,Group,2,FALSE)),2)","v":42.65},{"$f":"IF(VLOOKUP(AG421,Group,5,FALSE)=\"YES\",VLOOKUP(ROUND(ROUND(AK421,1)-AK421,2),Round,2,FALSE)+VLOOKUP(AG421,Group,6,FALSE),0)","v":0},{"$f":"IF(VLOOKUP(AG421,Group,7,FALSE)=\"\",0,ROUND(AK421-0.04999,1)-AK421+AN421)","v":0},{"$f":"IF(VLOOKUP(AG421,Group,7,FALSE)=\"\",\"\",VLOOKUP(AG421,Group,7,FALSE))","v":""},null,"X"]
[null,"Stock - Field Tile",null,null,"60\" x 30\" x 6mm",null,"Field",null,null,"Polished (Bright)",null,null,null,null,null,"24.22 SF/CTN",null,null,{"$f":"IF(Suggested=\"Yes\",AB422,AH422)","v":44.85},"SF",{"$f":"+Instructions!$B$3","v":"D"},null,null,{"$f":"+Instructions!$C$22","v":0},{"$f":"ROUND($AB422*(1-X422)+0.004999,2)","v":44.85},null,"",44.85,0,44.85,{"$f":"(AH422-AD422)/AH422","v":0},null,4,{"$f":"SUM(AK422:AM422)+AF422","v":44.85},null,null,{"$f":"ROUND(AD422/(1-VLOOKUP(AG422,Group,2,FALSE)),2)","v":44.85},{"$f":"IF(VLOOKUP(AG422,Group,5,FALSE)=\"YES\",VLOOKUP(ROUND(ROUND(AK422,1)-AK422,2),Round,2,FALSE)+VLOOKUP(AG422,Group,6,FALSE),0)","v":0},{"$f":"IF(VLOOKUP(AG422,Group,7,FALSE)=\"\",0,ROUND(AK422-0.04999,1)-AK422+AN422)","v":0},{"$f":"IF(VLOOKUP(AG422,Group,7,FALSE)=\"\",\"\",VLOOKUP(AG422,Group,7,FALSE))","v":""},null,"X"]
[null,"Stock - Field Tile",null,null,"60\" x 60\" x 6mm",null,"Field",null,null,"Polished (Bright)",null,null,null,null,null,"24.22 SF/CTN",null,null,{"$f":"IF(Suggested=\"Yes\",AB423,AH423)","v":48.5},"SF",{"$f":"+Instructions!$B$3","v":"D"},null,null,{"$f":"+Instructions!$C$22","v":0},{"$f":"ROUND($AB423*(1-X423)+0.004999,2)","v":48.5},null,"",48.5,0,48.5,{"$f":"(AH423-AD423)/AH423","v":0},null,4,{"$f":"SUM(AK423:AM423)+AF423","v":48.5},null,null,{"$f":"ROUND(AD423/(1-VLOOKUP(AG423,Group,2,FALSE)),2)","v":48.5},{"$f":"IF(VLOOKUP(AG423,Group,5,FALSE)=\"YES\",VLOOKUP(ROUND(ROUND(AK423,1)-AK423,2),Round,2,FALSE)+VLOOKUP(AG423,Group,6,FALSE),0)","v":0},{"$f":"IF(VLOOKUP(AG423,Group,7,FALSE)=\"\",0,ROUND(AK423-0.04999,1)-AK423+AN423)","v":0},{"$f":"IF(VLOOKUP(AG423,Group,7,FALSE)=\"\",\"\",VLOOKUP(AG423,Group,7,FALSE))","v":""},null,"X"]
[null,"Stock - Field Tile",null,null,"120\" x 60\" x 6mm",null,"Field",null,null,"Polished (Bright)",null,null,null,null,null,"48.44 SF/CTN",null,null,{"$f":"IF(Suggested=\"Yes\",AB424,AH424)","v":51.5},"SF",{"$f":"+Instructions!$B$3","v":"D"},null,null,{"$f":"+Instructions!$C$22","v":0},{"$f":"ROUND($AB424*(1-X424)+0.004999,2)","v":51.5},null,"",51.5,0,51.5,{"$f":"(AH424-AD424)/AH424","v":0},null,4,{"$f":"SUM(AK424:AM424)+AF424","v":51.5},null,null,{"$f":"ROUND(AD424/(1-VLOOKUP(AG424,Group,2,FALSE)),2)","v":51.5},{"$f":"IF(VLOOKUP(AG424,Group,5,FALSE)=\"YES\",VLOOKUP(ROUND(ROUND(AK424,1)-AK424,2),Round,2,FALSE)+VLOOKUP(AG424,Group,6,FALSE),0)","v":0},{"$f":"IF(VLOOKUP(AG424,Group,7,FALSE)=\"\",0,ROUND(AK424-0.04999,1)-AK424+AN424)","v":0},{"$f":"IF(VLOOKUP(AG424,Group,7,FALSE)=\"\",\"\",VLOOKUP(AG424,Group,7,FALSE))","v":""},null,"X"]
[]
[null,null,null,"Colors:","Divine Blue A          Divine Blue B",null,null,null,null,null,null,null,null,null,null,null,null,null,null,null,null,null,null,null,null,null,null,null,null,null,null,null,null,null,null,null,null,null,null,null,null,"X"]
[]
[null,"Stock - Field Tile",null,null,"120\" x 60\" x 6mm",null,"Field",null,null,"Polished (Bright)",null,null,null,null,null,"48.44 SF/CTN",null,null,{"$f":"IF(Suggested=\"Yes\",AB428,AH428)","v":51.5},"SF",{"$f":"+Instructions!$B$3","v":"D"},null,null,{"$f":"+Instructions!$C$22","v":0},{"$f":"ROUND($AB428*(1-X428)+0.004999,2)","v":51.5},null,"",51.5,{"$f":"+X428","v":0},{"$f":"+Y428","v":51.5},{"$f":"(AH428-AD428)/AH428","v":0},null,4,{"$f":"SUM(AK428:AM428)+AF428","v":51.5},null,null,{"$f":"ROUND(AD428/(1-VLOOKUP(AG428,Group,2,FALSE)),2)","v":51.5},{"$f":"IF(VLOOKUP(AG428,Group,5,FALSE)=\"YES\",VLOOKUP(ROUND(ROUND(AK428,1)-AK428,2),Round,2,FALSE)+VLOOKUP(AG428,Group,6,FALSE),0)","v":0},{"$f":"IF(VLOOKUP(AG428,Group,7,FALSE)=\"\",0,ROUND(AK428-0.04999,1)-AK428+AN428)","v":0},{"$f":"IF(VLOOKUP(AG428,Group,7,FALSE)=\"\",\"\",VLOOKUP(AG428,Group,7,FALSE))","v":""},null,"X"]
[]
[null,null,null,"Color:","Taxos",null,null,null,null,null,null,null,null,null,null,null,null,null,null,null,null,null,null,null,null,null,null,null,null,null,null,null,null,null,null,null,null,null,null,null,null,"X"]
[]
[null,"Stock - Field Tile",null,null,"40\" x 40\" x 6mm",null,"Field",null,null,"Honed",null,null,null,null,null,"21.53 SF/CTN",null,null,{"$f":"IF(Suggested=\"Yes\",AB432,AH432)","v":33},"SF",{"$f":"+Instructions!$B$3","v":"D"},null,null,{"$f":"+Instructions!$C$22","v":0},{"$f":"ROUND($AB432*(1-X432)+0.004999,2)","v":33},null,"",33,{"$f":"+X432","v":0},33,{"$f":"(AH432-AD432)/AH432","v":0},null,4,{"$f":"SUM(AK432:AM432)+AF432","v":33},null,null,{"$f":"ROUND(AD432/(1-VLOOKUP(AG432,Group,2,FALSE)),2)","v":33},{"$f":"IF(VLOOKUP(AG432,Group,5,FALSE)=\"YES\",VLOOKUP(ROUND(ROUND(AK432,1)-AK432,2),Round,2,FALSE)+VLOOKUP(AG432,Group,6,FALSE),0)","v":0},{"$f":"IF(VLOOKUP(AG432,Group,7,FALSE)=\"\",0,ROUND(AK432-0.04999,1)-AK432+AN432)","v":0},{"$f":"IF(VLOOKUP(AG432,Group,7,FALSE)=\"\",\"\",VLOOKUP(AG432,Group,7,FALSE))","v":""},null,"X"]
[null,"Stock - Field Tile",null,null,"60\" x 40\" x 6mm",null,"Field",null,null,"Honed",null,null,null,null,null,"16.15 SF/CTN",null,null,{"$f":"IF(Suggested=\"Yes\",AB433,AH433)","v":37.6},"SF",{"$f":"+Instructions!$B$3","v":"D"},null,null,{"$f":"+Instructions!$C$22","v":0},{"$f":"ROUND($AB433*(1-X433)+0.004999,2)","v":37.6},null,"",37.6,0,37.6,{"$f":"(AH433-AD433)/AH433","v":0},null,4,{"$f":"SUM(AK433:AM433)+AF433","v":37.6},null,null,{"$f":"ROUND(AD433/(1-VLOOKUP(AG433,Group,2,FALSE)),2)","v":37.6},{"$f":"IF(VLOOKUP(AG433,Group,5,FALSE)=\"YES\",VLOOKUP(ROUND(ROUND(AK433,1)-AK433,2),Round,2,FALSE)+VLOOKUP(AG433,Group,6,FALSE),0)","v":0},{"$f":"IF(VLOOKUP(AG433,Group,7,FALSE)=\"\",0,ROUND(AK433-0.04999,1)-AK433+AN433)","v":0},{"$f":"IF(VLOOKUP(AG433,Group,7,FALSE)=\"\",\"\",VLOOKUP(AG433,Group,7,FALSE))","v":""},null,"X"]
[null,"Stock - Field Tile",null,null,"120\" x 40\" x 6mm",null,"Field",null,null,"Honed",null," ",null,null,null,"32.29 SF/CTN",null,null,{"$f":"IF(Suggested=\"Yes\",AB434,AH434)","v":36.75},"SF",{"$f":"+Instructions!$B$3","v":"D"},null,null,{"$f":"+Instructions!$C$22","v":0},{"$f":"ROUND($AB434*(1-X434)+0.004999,2)","v":36.75},null,"",36.75,0,36.75,{"$f":"(AH434-AD434)/AH434","v":0},null,4,{"$f":"SUM(AK434:AM434)+AF434","v":36.75},null,null,{"$f":"ROUND(AD434/(1-VLOOKUP(AG434,Group,2,FALSE)),2)","v":36.75},{"$f":"IF(VLOOKUP(AG434,Group,5,FALSE)=\"YES\",VLOOKUP(ROUND(ROUND(AK434,1)-AK434,2),Round,2,FALSE)+VLOOKUP(AG434,Group,6,FALSE),0)","v":0},{"$f":"IF(VLOOKUP(AG434,Group,7,FALSE)=\"\",0,ROUND(AK434-0.04999,1)-AK434+AN434)","v":0},{"$f":"IF(VLOOKUP(AG434,Group,7,FALSE)=\"\",\"\",VLOOKUP(AG434,Group,7,FALSE))","v":""},null,"X"]
[]
[null,"Stock - Field Tile",null,null,"40\" x 40\" x 6mm",null,"Field",null,null,"Polished (Bright)",null,null,null,null,null,"21.53 SF/CTN",null,null,{"$f":"IF(Suggested=\"Yes\",AB436,AH436)","v":37.700000000000003},"SF",{"$f":"+Instructions!$B$3","v":"D"},null,null,{"$f":"+Instructions!$C$22","v":0},{"$f":"ROUND($AB436*(1-X436)+0.004999,2)","v":37.700000000000003},null,"",37.700000000000003,{"$f":"+X436","v":0},37.700000000000003,{"$f":"(AH436-AD436)/AH436","v":0},null,4,{"$f":"SUM(AK436:AM436)+AF436","v":37.700000000000003},null,null,{"$f":"ROUND(AD436/(1-VLOOKUP(AG436,Group,2,FALSE)),2)","v":37.700000000000003},{"$f":"IF(VLOOKUP(AG436,Group,5,FALSE)=\"YES\",VLOOKUP(ROUND(ROUND(AK436,1)-AK436,2),Round,2,FALSE)+VLOOKUP(AG436,Group,6,FALSE),0)","v":0},{"$f":"IF(VLOOKUP(AG436,Group,7,FALSE)=\"\",0,ROUND(AK436-0.04999,1)-AK436+AN436)","v":0},{"$f":"IF(VLOOKUP(AG436,Group,7,FALSE)=\"\",\"\",VLOOKUP(AG436,Group,7,FALSE))","v":""},null,"X"]
[null,"Stock - Field Tile",null,null,"60\" x 40\" x 6mm",null,"Field",null,null,"Polished (Bright)",null,null,null,null,null,"16.15 SF/CTN",null,null,{"$f":"IF(Suggested=\"Yes\",AB437,AH437)","v":42.55},"SF",{"$f":"+Instructions!$B$3","v":"D"},null,null,{"$f":"+Instructions!$C$22","v":0},{"$f":"ROUND($AB437*(1-X437)+0.004999,2)","v":42.55},null,"",42.55,0,42.55,{"$f":"(AH437-AD437)/AH437","v":0},null,4,{"$f":"SUM(AK437:AM437)+AF437","v":42.55},null,null,{"$f":"ROUND(AD437/(1-VLOOKUP(AG437,Group,2,FALSE)),2)","v":42.55},{"$f":"IF(VLOOKUP(AG437,Group,5,FALSE)=\"YES\",VLOOKUP(ROUND(ROUND(AK437,1)-AK437,2),Round,2,FALSE)+VLOOKUP(AG437,Group,6,FALSE),0)","v":0},{"$f":"IF(VLOOKUP(AG437,Group,7,FALSE)=\"\",0,ROUND(AK437-0.04999,1)-AK437+AN437)","v":0},{"$f":"IF(VLOOKUP(AG437,Group,7,FALSE)=\"\",\"\",VLOOKUP(AG437,Group,7,FALSE))","v":""},null,"X"]
[null,"Stock - Field Tile",null,null,"120\" x 40\" x 6mm",null,"Field",null,null,"Polished (Bright)",null," ",null,null,null,"32.29 SF/CTN",null,null,{"$f":"IF(Suggested=\"Yes\",AB438,AH438)","v":41.75},"SF",{"$f":"+Instructions!$B$3","v":"D"},null,null,{"$f":"+Instructions!$C$22","v":0},{"$f":"ROUND($AB438*(1-X438)+0.004999,2)","v":41.75},null,"",41.75,0,41.75,{"$f":"(AH438-AD438)/AH438","v":0},null,4,{"$f":"SUM(AK438:AM438)+AF438","v":41.75},null,null,{"$f":"ROUND(AD438/(1-VLOOKUP(AG438,Group,2,FALSE)),2)","v":41.75},{"$f":"IF(VLOOKUP(AG438,Group,5,FALSE)=\"YES\",VLOOKUP(ROUND(ROUND(AK438,1)-AK438,2),Round,2,FALSE)+VLOOKUP(AG438,Group,6,FALSE),0)","v":0},{"$f":"IF(VLOOKUP(AG438,Group,7,FALSE)=\"\",0,ROUND(AK438-0.04999,1)-AK438+AN438)","v":0},{"$f":"IF(VLOOKUP(AG438,Group,7,FALSE)=\"\",\"\",VLOOKUP(AG438,Group,7,FALSE))","v":""},null,"X"]
[]
[null,null,"    MEGALITH MAXIMUM",null,null,null,null,null,null,null,null,null,null,null,null,null,null,"Item # Lookup:","FIMAME"]
[]
[null,null,null,"Colors:","Megablack          Megabrown          Megagreige          Megagrey          Megawhite",null,null,null,null,null,null,null,null,null,null,null,null,null,null,null,null,null,null,null,null,null,null,null,null,null,null,null,null,null,null,null,null,null,null,null,null,"X"]
[]
[null,"Stock - Field Tile",null,null,"40\" x 40\" x 6mm",null,"Field",null,null,"Honed",null,null,null,null,null,"21.53 SF/CTN",null,null,{"$f":"IF(Suggested=\"Yes\",AB444,AH444)","v":22.2},"SF",{"$f":"+Instructions!$B$3","v":"D"},null,null,{"$f":"+Instructions!$C$22","v":0},{"$f":"ROUND($AB444*(1-X444)+0.004999,2)","v":22.2},null,"",22.2,{"$f":"+X444","v":0},22.2,{"$f":"(AH444-AD444)/AH444","v":0},null,4,{"$f":"SUM(AK444:AM444)+AF444","v":22.2},null,null,{"$f":"ROUND(AD444/(1-VLOOKUP(AG444,Group,2,FALSE)),2)","v":22.2},{"$f":"IF(VLOOKUP(AG444,Group,5,FALSE)=\"YES\",VLOOKUP(ROUND(ROUND(AK444,1)-AK444,2),Round,2,FALSE)+VLOOKUP(AG444,Group,6,FALSE),0)","v":0},{"$f":"IF(VLOOKUP(AG444,Group,7,FALSE)=\"\",0,ROUND(AK444-0.04999,1)-AK444+AN444)","v":0},{"$f":"IF(VLOOKUP(AG444,Group,7,FALSE)=\"\",\"\",VLOOKUP(AG444,Group,7,FALSE))","v":""},null,"X"]
[null,"Stock - Field Tile",null,null,"60\" x 40\" x 6mm",null,"Field",null,null,"Honed",null,null,null,null,null,"16.15 SF/CTN",null,null,{"$f":"IF(Suggested=\"Yes\",AB445,AH445)","v":23.05},"SF",{"$f":"+Instructions!$B$3","v":"D"},null,null,{"$f":"+Instructions!$C$22","v":0},{"$f":"ROUND($AB445*(1-X445)+0.004999,2)","v":23.05},null,"",23.05,0,23.05,{"$f":"(AH445-AD445)/AH445","v":0},null,4,{"$f":"SUM(AK445:AM445)+AF445","v":23.05},null,null,{"$f":"ROUND(AD445/(1-VLOOKUP(AG445,Group,2,FALSE)),2)","v":23.05},{"$f":"IF(VLOOKUP(AG445,Group,5,FALSE)=\"YES\",VLOOKUP(ROUND(ROUND(AK445,1)-AK445,2),Round,2,FALSE)+VLOOKUP(AG445,Group,6,FALSE),0)","v":0},{"$f":"IF(VLOOKUP(AG445,Group,7,FALSE)=\"\",0,ROUND(AK445-0.04999,1)-AK445+AN445)","v":0},{"$f":"IF(VLOOKUP(AG445,Group,7,FALSE)=\"\",\"\",VLOOKUP(AG445,Group,7,FALSE))","v":""},null,"X"]
[null,"Stock - Field Tile",null,null,"120\" x 40\" x 6mm",null,"Field",null,null,"Honed",null,null,null,null,null,"32.29 SF/CTN",null,null,{"$f":"IF(Suggested=\"Yes\",AB446,AH446)","v":23.9},"SF",{"$f":"+Instructions!$B$3","v":"D"},null,null,{"$f":"+Instructions!$C$22","v":0},{"$f":"ROUND($AB446*(1-X446)+0.004999,2)","v":23.9},null,"",23.9,0,23.9,{"$f":"(AH446-AD446)/AH446","v":0},null,4,{"$f":"SUM(AK446:AM446)+AF446","v":23.9},null,null,{"$f":"ROUND(AD446/(1-VLOOKUP(AG446,Group,2,FALSE)),2)","v":23.9},{"$f":"IF(VLOOKUP(AG446,Group,5,FALSE)=\"YES\",VLOOKUP(ROUND(ROUND(AK446,1)-AK446,2),Round,2,FALSE)+VLOOKUP(AG446,Group,6,FALSE),0)","v":0},{"$f":"IF(VLOOKUP(AG446,Group,7,FALSE)=\"\",0,ROUND(AK446-0.04999,1)-AK446+AN446)","v":0},{"$f":"IF(VLOOKUP(AG446,Group,7,FALSE)=\"\",\"\",VLOOKUP(AG446,Group,7,FALSE))","v":""},null,"X"]
[]
[null,"Stock - Field Tile",null,null,"40\" x 40\" x 6mm",null,"Field",null,null,"Pre-Polished",null,null,null,null,null,"21.53 SF/CTN",null,null,{"$f":"IF(Suggested=\"Yes\",AB448,AH448)","v":25},"SF",{"$f":"+Instructions!$B$3","v":"D"},null,null,{"$f":"+Instructions!$C$22","v":0},{"$f":"ROUND($AB448*(1-X448)+0.004999,2)","v":25},null,"",25,{"$f":"+X448","v":0},{"$f":"+Y448","v":25},{"$f":"(AH448-AD448)/AH448","v":0},null,4,{"$f":"SUM(AK448:AM448)+AF448","v":25},null,null,{"$f":"ROUND(AD448/(1-VLOOKUP(AG448,Group,2,FALSE)),2)","v":25},{"$f":"IF(VLOOKUP(AG448,Group,5,FALSE)=\"YES\",VLOOKUP(ROUND(ROUND(AK448,1)-AK448,2),Round,2,FALSE)+VLOOKUP(AG448,Group,6,FALSE),0)","v":0},{"$f":"IF(VLOOKUP(AG448,Group,7,FALSE)=\"\",0,ROUND(AK448-0.04999,1)-AK448+AN448)","v":0},{"$f":"IF(VLOOKUP(AG448,Group,7,FALSE)=\"\",\"\",VLOOKUP(AG448,Group,7,FALSE))","v":""},null,"X"]
[null,"Stock - Field Tile",null,null,"120\" x 40\" x 6mm",null,"Field",null,null,"Pre-Polished",null,null,null,null,null,"32.29 SF/CTN",null,null,{"$f":"IF(Suggested=\"Yes\",AB449,AH449)","v":26.35},"SF",{"$f":"+Instructions!$B$3","v":"D"},null,null,{"$f":"+Instructions!$C$22","v":0},{"$f":"ROUND($AB449*(1-X449)+0.004999,2)","v":26.35},null,"",26.35,{"$f":"+X449","v":0},{"$f":"+Y449","v":26.35},{"$f":"(AH449-AD449)/AH449","v":0},null,4,{"$f":"SUM(AK449:AM449)+AF449","v":26.35},null,null,{"$f":"ROUND(AD449/(1-VLOOKUP(AG449,Group,2,FALSE)),2)","v":26.35},{"$f":"IF(VLOOKUP(AG449,Group,5,FALSE)=\"YES\",VLOOKUP(ROUND(ROUND(AK449,1)-AK449,2),Round,2,FALSE)+VLOOKUP(AG449,Group,6,FALSE),0)","v":0},{"$f":"IF(VLOOKUP(AG449,Group,7,FALSE)=\"\",0,ROUND(AK449-0.04999,1)-AK449+AN449)","v":0},{"$f":"IF(VLOOKUP(AG449,Group,7,FALSE)=\"\",\"\",VLOOKUP(AG449,Group,7,FALSE))","v":""},null,"X"]
[]
[null,null,"continued on next page",null,null,null,null,null,null," "]
[null,null,"MAXIMUM - Large Panel Porcelain - continued",null,null,null,null,null,null,null,null," ",null,null,null,null,null,null,null,null,null,null,null,null,null,null,null,null,null,null,null,null,null,null,null,null,null,null,null,null,null,"X"]
[]
[null,null,null,"Large Panel Porcelain will also involve additional packaging & freight charges depending on sizes and quantities.  See Page 2 for these additional charges.  120\" panels are always subject to additional freight charges based on project quantity."]
[]
[null,null,"    PIETRE MAXIMUM",null,null,null,null,null,null,null,null,null,null,null,null,null,null,"Item # Lookup:","FIMAPI"]
[]
[null,null,null,"Colors:","Luna Limestone          Quarzite Vals          Roccia Di Lucca",null,null,null,null,null,null,null,null,null,null,null,null,null,null,null,null,null,null,null,null,null,null,null,null,null,null,null,null,null,null,null,null,null,null,null,null,"X"]
[]
[null,"Stock - Field Tile",null,null,"40\" x 40\" x 6mm",null,"Field",null,null,"Slate",null,null,null,null,null,"21.53 SF/CTN",null,null,{"$f":"IF(Suggested=\"Yes\",AB460,AH460)","v":22.2},"SF",{"$f":"+Instructions!$B$3","v":"D"},null,null,{"$f":"+Instructions!$C$22","v":0},{"$f":"ROUND($AB460*(1-X460)+0.004999,2)","v":22.2},null,"",22.2,{"$f":"+X460","v":0},22.2,{"$f":"(AH460-AD460)/AH460","v":0},null,4,{"$f":"SUM(AK460:AM460)+AF460","v":22.2},null,null,{"$f":"ROUND(AD460/(1-VLOOKUP(AG460,Group,2,FALSE)),2)","v":22.2},{"$f":"IF(VLOOKUP(AG460,Group,5,FALSE)=\"YES\",VLOOKUP(ROUND(ROUND(AK460,1)-AK460,2),Round,2,FALSE)+VLOOKUP(AG460,Group,6,FALSE),0)","v":0},{"$f":"IF(VLOOKUP(AG460,Group,7,FALSE)=\"\",0,ROUND(AK460-0.04999,1)-AK460+AN460)","v":0},{"$f":"IF(VLOOKUP(AG460,Group,7,FALSE)=\"\",\"\",VLOOKUP(AG460,Group,7,FALSE))","v":""},null,"X"]
[null,"Stock - Field Tile",null,null,"120\" x 40\" x 6mm",null,"Field",null,null,"Slate",null," ",null,null,null,"32.29 SF/CTN",null,null,{"$f":"IF(Suggested=\"Yes\",AB461,AH461)","v":23.9},"SF",{"$f":"+Instructions!$B$3","v":"D"},null,null,{"$f":"+Instructions!$C$22","v":0},{"$f":"ROUND($AB461*(1-X461)+0.004999,2)","v":23.9},null,"",23.9,0,23.9,{"$f":"(AH461-AD461)/AH461","v":0},null,4,{"$f":"SUM(AK461:AM461)+AF461","v":23.9},null,null,{"$f":"ROUND(AD461/(1-VLOOKUP(AG461,Group,2,FALSE)),2)","v":23.9},{"$f":"IF(VLOOKUP(AG461,Group,5,FALSE)=\"YES\",VLOOKUP(ROUND(ROUND(AK461,1)-AK461,2),Round,2,FALSE)+VLOOKUP(AG461,Group,6,FALSE),0)","v":0},{"$f":"IF(VLOOKUP(AG461,Group,7,FALSE)=\"\",0,ROUND(AK461-0.04999,1)-AK461+AN461)","v":0},{"$f":"IF(VLOOKUP(AG461,Group,7,FALSE)=\"\",\"\",VLOOKUP(AG461,Group,7,FALSE))","v":""},null,"X"]
[null,"Stock - Field Tile",null,null,"48\" x 48\" x 6mm",null,"Field",null,null,"Slate",null,null,null,null,null,"31.00 SF/CTN",null,null,{"$f":"IF(Suggested=\"Yes\",AB462,AH462)","v":22.2},"SF",{"$f":"+Instructions!$B$3","v":"D"},null,null,{"$f":"+Instructions!$C$22","v":0},{"$f":"ROUND($AB462*(1-X462)+0.004999,2)","v":22.2},null,"",22.2,0,22.2,{"$f":"(AH462-AD462)/AH462","v":0},null,4,{"$f":"SUM(AK462:AM462)+AF462","v":22.2},null,null,{"$f":"ROUND(AD462/(1-VLOOKUP(AG462,Group,2,FALSE)),2)","v":22.2},{"$f":"IF(VLOOKUP(AG462,Group,5,FALSE)=\"YES\",VLOOKUP(ROUND(ROUND(AK462,1)-AK462,2),Round,2,FALSE)+VLOOKUP(AG462,Group,6,FALSE),0)","v":0},{"$f":"IF(VLOOKUP(AG462,Group,7,FALSE)=\"\",0,ROUND(AK462-0.04999,1)-AK462+AN462)","v":0},{"$f":"IF(VLOOKUP(AG462,Group,7,FALSE)=\"\",\"\",VLOOKUP(AG462,Group,7,FALSE))","v":""},null,"X"]
[null,"Stock - Field Tile",null,null,"108\" x 48\" x 6mm",null,"Field",null,null,"Slate",null,null,null,null,null,"34.88 SF/CTN",null,null,{"$f":"IF(Suggested=\"Yes\",AB463,AH463)","v":23.9},"SF",{"$f":"+Instructions!$B$3","v":"D"},null,null,{"$f":"+Instructions!$C$22","v":0},{"$f":"ROUND($AB463*(1-X463)+0.004999,2)","v":23.9},null,"",23.9,0,23.9,{"$f":"(AH463-AD463)/AH463","v":0},null,4,{"$f":"SUM(AK463:AM463)+AF463","v":23.9},null,null,{"$f":"ROUND(AD463/(1-VLOOKUP(AG463,Group,2,FALSE)),2)","v":23.9},{"$f":"IF(VLOOKUP(AG463,Group,5,FALSE)=\"YES\",VLOOKUP(ROUND(ROUND(AK463,1)-AK463,2),Round,2,FALSE)+VLOOKUP(AG463,Group,6,FALSE),0)","v":0},{"$f":"IF(VLOOKUP(AG463,Group,7,FALSE)=\"\",0,ROUND(AK463-0.04999,1)-AK463+AN463)","v":0},{"$f":"IF(VLOOKUP(AG463,Group,7,FALSE)=\"\",\"\",VLOOKUP(AG463,Group,7,FALSE))","v":""},null,"X"]
[]
[null,null,"    QUIETSTONES MAXIMUM",null,null,null,null,null,null,null,null,null,null,null,null,null,null,"Item # Lookup:","FIMAQU"]
[]
[null,null,null,"Colors:","Quiet Numb          Quiet Rock          Quiet Sand",null,null,null,null,null,null,null,null,null,null,null,null,null,null,null,null,null,null,null,null,null,null,null,null,null,null,null,null,null,null,null,null,null,null,null,null,"X"]
[]
[null,"Stock - Field Tile",null,null,"40\" x 40\" x 6mm",null,"Field",null,null,"Slate",null,null,null,null,null,"21.53 SF/CTN",null,null,{"$f":"IF(Suggested=\"Yes\",AB469,AH469)","v":22.2},"SF",{"$f":"+Instructions!$B$3","v":"D"},null,null,{"$f":"+Instructions!$C$22","v":0},{"$f":"ROUND($AB469*(1-X469)+0.004999,2)","v":22.2},null,"",22.2,{"$f":"+X469","v":0},22.2,{"$f":"(AH469-AD469)/AH469","v":0},null,4,{"$f":"SUM(AK469:AM469)+AF469","v":22.2},null,null,{"$f":"ROUND(AD469/(1-VLOOKUP(AG469,Group,2,FALSE)),2)","v":22.2},{"$f":"IF(VLOOKUP(AG469,Group,5,FALSE)=\"YES\",VLOOKUP(ROUND(ROUND(AK469,1)-AK469,2),Round,2,FALSE)+VLOOKUP(AG469,Group,6,FALSE),0)","v":0},{"$f":"IF(VLOOKUP(AG469,Group,7,FALSE)=\"\",0,ROUND(AK469-0.04999,1)-AK469+AN469)","v":0},{"$f":"IF(VLOOKUP(AG469,Group,7,FALSE)=\"\",\"\",VLOOKUP(AG469,Group,7,FALSE))","v":""},null,"X"]
[null,"Stock - Field Tile",null,null,"60\" x 40\" x 6mm",null,"Field",null,null,"Slate",null,null,null,null,null,"16.15 SF/CTN",null,null,{"$f":"IF(Suggested=\"Yes\",AB470,AH470)","v":23.05},"SF",{"$f":"+Instructions!$B$3","v":"D"},null,null,{"$f":"+Instructions!$C$22","v":0},{"$f":"ROUND($AB470*(1-X470)+0.004999,2)","v":23.05},null,"",23.05,0,23.05,{"$f":"(AH470-AD470)/AH470","v":0},null,4,{"$f":"SUM(AK470:AM470)+AF470","v":23.05},null,null,{"$f":"ROUND(AD470/(1-VLOOKUP(AG470,Group,2,FALSE)),2)","v":23.05},{"$f":"IF(VLOOKUP(AG470,Group,5,FALSE)=\"YES\",VLOOKUP(ROUND(ROUND(AK470,1)-AK470,2),Round,2,FALSE)+VLOOKUP(AG470,Group,6,FALSE),0)","v":0},{"$f":"IF(VLOOKUP(AG470,Group,7,FALSE)=\"\",0,ROUND(AK470-0.04999,1)-AK470+AN470)","v":0},{"$f":"IF(VLOOKUP(AG470,Group,7,FALSE)=\"\",\"\",VLOOKUP(AG470,Group,7,FALSE))","v":""},null,"X"]
[null,"Stock - Field Tile",null,null,"120\" x 40\" x 6mm",null,"Field",null,null,"Slate",null," ",null,null,null,"32.29 SF/CTN",null,null,{"$f":"IF(Suggested=\"Yes\",AB471,AH471)","v":23.9},"SF",{"$f":"+Instructions!$B$3","v":"D"},null,null,{"$f":"+Instructions!$C$22","v":0},{"$f":"ROUND($AB471*(1-X471)+0.004999,2)","v":23.9},null,"",23.9,0,23.9,{"$f":"(AH471-AD471)/AH471","v":0},null,4,{"$f":"SUM(AK471:AM471)+AF471","v":23.9},null,null,{"$f":"ROUND(AD471/(1-VLOOKUP(AG471,Group,2,FALSE)),2)","v":23.9},{"$f":"IF(VLOOKUP(AG471,Group,5,FALSE)=\"YES\",VLOOKUP(ROUND(ROUND(AK471,1)-AK471,2),Round,2,FALSE)+VLOOKUP(AG471,Group,6,FALSE),0)","v":0},{"$f":"IF(VLOOKUP(AG471,Group,7,FALSE)=\"\",0,ROUND(AK471-0.04999,1)-AK471+AN471)","v":0},{"$f":"IF(VLOOKUP(AG471,Group,7,FALSE)=\"\",\"\",VLOOKUP(AG471,Group,7,FALSE))","v":""},null,"X"]
[]
[null,null,"MAY - Glazed Ceramic Wall",null,null,null,null,null,null,null,null,null,null," ",null,null,null,"Item # Lookup:","FIMY",null,null,null,null,null,null,null,null,null,null,null,null,null,null,null,null,null,null,null,null,null,null,"X"]
[]
[null,null,null,"Colors:","Amber          Bordeaux          Fern          Graphite          Olive          Red",null,null,null,null,null,null,null,null,null,null,null,null,null,null,null,null,null,null,null,null,null,null,null,null,null,null,null,null,null,null,null,null,null,null,null,null,"X"]
[]
[null,"Field Tile",null,null,"4\" x 8\"",null,"Field",null,null,null,null,null,null,null,null,"6.89 SF/CTN",null,null,{"$f":"IF(Suggested=\"Yes\",AB477,AH477)","v":13.95},"SF",{"$f":"+Instructions!$B$3","v":"D"},null,null,{"$f":"+Instructions!$C$22","v":0},{"$f":"ROUND($AB477*(1-X477)+0.004999,2)","v":13.95},null,"",13.95,{"$f":"+X477","v":0},{"$f":"+Y477","v":13.95},{"$f":"(AH477-AD477)/AH477","v":0},null,1,{"$f":"SUM(AK477:AM477)+AF477","v":13.95},null,null,{"$f":"ROUND(AD477/(1-VLOOKUP(AG477,Group,2,FALSE)),2)","v":13.95},{"$f":"IF(VLOOKUP(AG477,Group,5,FALSE)=\"YES\",VLOOKUP(ROUND(ROUND(AK477,1)-AK477,2),Round,2,FALSE)+VLOOKUP(AG477,Group,6,FALSE),0)","v":0},{"$f":"IF(VLOOKUP(AG477,Group,7,FALSE)=\"\",0,ROUND(AK477-0.04999,1)-AK477+AN477)","v":0},{"$f":"IF(VLOOKUP(AG477,Group,7,FALSE)=\"\",\"\",VLOOKUP(AG477,Group,7,FALSE))","v":""},null,"X"]
[]
[null,null,null,"Colors:","Azure          Beige          Brown          Grey          White",null,null,null,null,null,null,null,null,null,null,null,null,null,null,null,null,null,null,null,null,null,null,null,null,null,null,null,null,null,null,null,null,null,null,null,null,"X"]
[]
[null,"Field Tile",null,null,"4\" x 8\"",null,"Field",null,null,null,null,null,null,null,null,"6.89 SF/CTN",null,null,{"$f":"IF(Suggested=\"Yes\",AB481,AH481)","v":13.45},"SF",{"$f":"+Instructions!$B$3","v":"D"},null,null,{"$f":"+Instructions!$C$22","v":0},{"$f":"ROUND($AB481*(1-X481)+0.004999,2)","v":13.45},null,"",13.45,{"$f":"+X481","v":0},{"$f":"+Y481","v":13.45},{"$f":"(AH481-AD481)/AH481","v":0},null,1,{"$f":"SUM(AK481:AM481)+AF481","v":13.45},null,null,{"$f":"ROUND(AD481/(1-VLOOKUP(AG481,Group,2,FALSE)),2)","v":13.45},{"$f":"IF(VLOOKUP(AG481,Group,5,FALSE)=\"YES\",VLOOKUP(ROUND(ROUND(AK481,1)-AK481,2),Round,2,FALSE)+VLOOKUP(AG481,Group,6,FALSE),0)","v":0},{"$f":"IF(VLOOKUP(AG481,Group,7,FALSE)=\"\",0,ROUND(AK481-0.04999,1)-AK481+AN481)","v":0},{"$f":"IF(VLOOKUP(AG481,Group,7,FALSE)=\"\",\"\",VLOOKUP(AG481,Group,7,FALSE))","v":""},null,"X"]
[]
[null,null,null,"Colors:","Amber          Brown          Graphite          Red",null,null,null,null,null,null,null,null,null,null,null,null,null,null,null,null,null,null,null,null,null,null,null,null,null,null,null,null,null,null,null,null,null,null,null,null,"X"]
[]
[null,"Decos",null,null,"4\" x 8\"",null,"Deco - May",null,null,null,null,null,null,null,null,"6.89 SF/CTN",null,"a,b",{"$f":"IF(Suggested=\"Yes\",AB485,AH485)","v":14.45},"SF",{"$f":"+Instructions!$B$3","v":"D"},null,null,{"$f":"+Instructions!$C$22","v":0},{"$f":"ROUND($AB485*(1-X485)+0.004999,2)","v":14.45},null,"",14.45,{"$f":"+X485","v":0},{"$f":"+Y485","v":14.45},{"$f":"(AH485-AD485)/AH485","v":0},null,3,{"$f":"SUM(AK485:AM485)+AF485","v":14.45},null,null,{"$f":"ROUND(AD485/(1-VLOOKUP(AG485,Group,2,FALSE)),2)","v":14.45},{"$f":"IF(VLOOKUP(AG485,Group,5,FALSE)=\"YES\",VLOOKUP(ROUND(ROUND(AK485,1)-AK485,2),Round,2,FALSE)+VLOOKUP(AG485,Group,6,FALSE),0)","v":0},{"$f":"IF(VLOOKUP(AG485,Group,7,FALSE)=\"\",0,ROUND(AK485-0.04999,1)-AK485+AN485)","v":0},{"$f":"IF(VLOOKUP(AG485,Group,7,FALSE)=\"\",\"\",VLOOKUP(AG485,Group,7,FALSE))","v":""},null,"X"]
[]
[null,null,null,null,"More Deco's:","Band Beige",null,null,null,"Box White",null,"   Frame Beige",null,"         Key White",null,null,null,null,null,null,null,null,null,null,null,null,null,null,null,null,null,null,null,null,null,null,null,null,null,null,null,"X"]
[null,null,null,null,null,"Band White",null,null,null,"Flo Beige",null,"   Frame White",null,"         Wave Beige",null,null,null,null,null,null,null,null,null,null,null,null,null,null,null,null,null,null,null,null,null,null,null,null,null,null,null,"X"]
[null,null,null,null,null,"Box Beige",null,null,null,"Flo White",null,"   Key Beige",null,"         Wave White",null,null,null,null,null,null,null,null,null,null,null,null,null,null,null,null,null,null,null,null,null,null,null,null,null,null,null,"X"]
[]
[null,"Decos",null,null,"4\" x 8\"",null,"Deco - More",null,null,null,null,null,null,null,null,"6.89 SF/CTN",null,"b",{"$f":"IF(Suggested=\"Yes\",AB491,AH491)","v":14.45},"SF",{"$f":"+Instructions!$B$3","v":"D"},null,null,{"$f":"+Instructions!$C$22","v":0},{"$f":"ROUND($AB491*(1-X491)+0.004999,2)","v":14.45},null,"",14.45,{"$f":"+X491","v":0},{"$f":"+Y491","v":14.45},{"$f":"(AH491-AD491)/AH491","v":0},null,3,{"$f":"SUM(AK491:AM491)+AF491","v":14.45},null,null,{"$f":"ROUND(AD491/(1-VLOOKUP(AG491,Group,2,FALSE)),2)","v":14.45},{"$f":"IF(VLOOKUP(AG491,Group,5,FALSE)=\"YES\",VLOOKUP(ROUND(ROUND(AK491,1)-AK491,2),Round,2,FALSE)+VLOOKUP(AG491,Group,6,FALSE),0)","v":0},{"$f":"IF(VLOOKUP(AG491,Group,7,FALSE)=\"\",0,ROUND(AK491-0.04999,1)-AK491+AN491)","v":0},{"$f":"IF(VLOOKUP(AG491,Group,7,FALSE)=\"\",\"\",VLOOKUP(AG491,Group,7,FALSE))","v":""},null,"X"]
[]
[null,null,null,null,"Sleek Deco's:","Aida Beige",null,null,null,"Dao White",null,"      Lace Beige",null,"           Less White",null,null,null,null,null,null,null,null,null,null,null,null,null,null,null,null,null,null,null,null,null,null,null,null,null,null,null,"X"]
[null,null,null,null,null,"Aida White",null,null,null,"Dash Beige",null,"      Lace White",null,"           Net Beige",null,null,null,null,null,null,null,null,null,null,null,null,null,null,null,null,null,null,null,null,null,null,null,null,null,null,null,"X"]
[null,null,null,null,null,"Dao Beige",null,null,null,"Dash White",null,"      Less Beige",null,"           Net White",null,null,null,null,null,null,null,null,null,null,null,null,null,null,null,null,null,null,null,null,null,null,null,null,null,null,null,"X"]
[]
[null,"Decos",null,null,"4\" x 8\"",null,"Deco - Sleek",null,null,null,null,null,null,null,null,"6.89 SF/CTN",null,"b",{"$f":"IF(Suggested=\"Yes\",AB497,AH497)","v":14.45},"SF",{"$f":"+Instructions!$B$3","v":"D"},null,null,{"$f":"+Instructions!$C$22","v":0},{"$f":"ROUND($AB497*(1-X497)+0.004999,2)","v":14.45},null,"",14.45,{"$f":"+X497","v":0},{"$f":"+Y497","v":14.45},{"$f":"(AH497-AD497)/AH497","v":0},null,3,{"$f":"SUM(AK497:AM497)+AF497","v":14.45},null,null,{"$f":"ROUND(AD497/(1-VLOOKUP(AG497,Group,2,FALSE)),2)","v":14.45},{"$f":"IF(VLOOKUP(AG497,Group,5,FALSE)=\"YES\",VLOOKUP(ROUND(ROUND(AK497,1)-AK497,2),Round,2,FALSE)+VLOOKUP(AG497,Group,6,FALSE),0)","v":0},{"$f":"IF(VLOOKUP(AG497,Group,7,FALSE)=\"\",0,ROUND(AK497-0.04999,1)-AK497+AN497)","v":0},{"$f":"IF(VLOOKUP(AG497,Group,7,FALSE)=\"\",\"\",VLOOKUP(AG497,Group,7,FALSE))","v":""},null,"X"]
[]
[null,null,null,"Notes:","a) Random packaging.",null,null,null,"b) Extended Lead Time - approximately 8-10 weeks."]
[]
[null,null,"ROYAL MARBLE - Rectified Glazed Porcelain",null,null,null,null,null,null,null,null,null," ",null,null,null,null,"Item # Lookup:","FIRM",null,null,null,null,null,null,null,null,null,null,null,null,null,null,null,null,null,null,null,null,null,null,"X"]
[]
[null,null,null,"Colors:","Royal Beige",null,"  Royal Charcoal",null,null,null,"    Royal Light",null,null,null,null,null,null,null,null,null,null,null,null,null,null,null,null,null,null,null,null,null,null,null,null,null,null,null,null,null,null,"X"]
[null,null,null,null,"Royal Black",null,"  Royal Grey Cross Cut",null,null,null,"    Royal White"]
[]
[null,"Stock - Field Tile",null,null,"30\" x 60\" x 6mm",null,"Field",null,null,null,"Polished",null,null,null,null,"36.33 SF/CTN",null,"a",{"$f":"IF(Suggested=\"Yes\",AB506,AH506)","v":23.5},"SF",{"$f":"+Instructions!$B$3","v":"D"},null,null,{"$f":"+Instructions!$C$22","v":0},{"$f":"ROUND($AB506*(1-X506)+0.004999,2)","v":23.5},null,"",23.5,{"$f":"+X506","v":0},23.5,{"$f":"(AH506-AD506)/AH506","v":0},null,4,{"$f":"SUM(AK506:AM506)+AF506","v":23.5},null,null,{"$f":"ROUND(AD506/(1-VLOOKUP(AG506,Group,2,FALSE)),2)","v":23.5},{"$f":"IF(VLOOKUP(AG506,Group,5,FALSE)=\"YES\",VLOOKUP(ROUND(ROUND(AK506,1)-AK506,2),Round,2,FALSE)+VLOOKUP(AG506,Group,6,FALSE),0)","v":0},{"$f":"IF(VLOOKUP(AG506,Group,7,FALSE)=\"\",0,ROUND(AK506-0.04999,1)-AK506+AN506)","v":0},{"$f":"IF(VLOOKUP(AG506,Group,7,FALSE)=\"\",\"\",VLOOKUP(AG506,Group,7,FALSE))","v":""},null,"X"]
[null,"Stock - Field Tile",null,null,"60\" x 60\" x 6mm",null,"Field",null,null,null,"Polished",null,null,null,null,"24.22 SF/CTN",null,"a",{"$f":"IF(Suggested=\"Yes\",AB507,AH507)","v":29.55},"SF",{"$f":"+Instructions!$B$3","v":"D"},null,null,{"$f":"+Instructions!$C$22","v":0},{"$f":"ROUND($AB507*(1-X507)+0.004999,2)","v":29.55},null,"",29.55,0,29.55,{"$f":"(AH507-AD507)/AH507","v":0},null,4,{"$f":"SUM(AK507:AM507)+AF507","v":29.55},null,null,{"$f":"ROUND(AD507/(1-VLOOKUP(AG507,Group,2,FALSE)),2)","v":29.55},{"$f":"IF(VLOOKUP(AG507,Group,5,FALSE)=\"YES\",VLOOKUP(ROUND(ROUND(AK507,1)-AK507,2),Round,2,FALSE)+VLOOKUP(AG507,Group,6,FALSE),0)","v":0},{"$f":"IF(VLOOKUP(AG507,Group,7,FALSE)=\"\",0,ROUND(AK507-0.04999,1)-AK507+AN507)","v":0},{"$f":"IF(VLOOKUP(AG507,Group,7,FALSE)=\"\",\"\",VLOOKUP(AG507,Group,7,FALSE))","v":""},null,"X"]
[null,"Stock - Field Tile",null,null,"60\" x 120\" x 6mm",null,"Field",null,null,null,"Polished",null,null,null,null,"48.44 SF/CTN",null,"a",{"$f":"IF(Suggested=\"Yes\",AB508,AH508)","v":30.8},"SF",{"$f":"+Instructions!$B$3","v":"D"},null,null,{"$f":"+Instructions!$C$22","v":0},{"$f":"ROUND($AB508*(1-X508)+0.004999,2)","v":30.8},null,"",30.8,0,30.8,{"$f":"(AH508-AD508)/AH508","v":0},null,4,{"$f":"SUM(AK508:AM508)+AF508","v":30.8},null,null,{"$f":"ROUND(AD508/(1-VLOOKUP(AG508,Group,2,FALSE)),2)","v":30.8},{"$f":"IF(VLOOKUP(AG508,Group,5,FALSE)=\"YES\",VLOOKUP(ROUND(ROUND(AK508,1)-AK508,2),Round,2,FALSE)+VLOOKUP(AG508,Group,6,FALSE),0)","v":0},{"$f":"IF(VLOOKUP(AG508,Group,7,FALSE)=\"\",0,ROUND(AK508-0.04999,1)-AK508+AN508)","v":0},{"$f":"IF(VLOOKUP(AG508,Group,7,FALSE)=\"\",\"\",VLOOKUP(AG508,Group,7,FALSE))","v":""},null,"X"]
[]
[null,"Stock - Field Tile",null,null,"12\" x 24\" x 8mm",null,"Field",null,null,null,"Honed",null,null,null,null,"15.50 SF/CTN",null,null,{"$f":"IF(Suggested=\"Yes\",AB510,AH510)","v":8.65},"SF",{"$f":"+Instructions!$B$3","v":"D"},null,null,{"$f":"+Instructions!$C$22","v":0},{"$f":"ROUND($AB510*(1-X510)+0.004999,2)","v":8.65},null,"",8.65,{"$f":"+X510","v":0},{"$f":"+Y510","v":8.65},{"$f":"(AH510-AD510)/AH510","v":0},null,4,{"$f":"SUM(AK510:AM510)+AF510","v":8.65},null,null,{"$f":"ROUND(AD510/(1-VLOOKUP(AG510,Group,2,FALSE)),2)","v":8.65},{"$f":"IF(VLOOKUP(AG510,Group,5,FALSE)=\"YES\",VLOOKUP(ROUND(ROUND(AK510,1)-AK510,2),Round,2,FALSE)+VLOOKUP(AG510,Group,6,FALSE),0)","v":0},{"$f":"IF(VLOOKUP(AG510,Group,7,FALSE)=\"\",0,ROUND(AK510-0.04999,1)-AK510+AN510)","v":0},{"$f":"IF(VLOOKUP(AG510,Group,7,FALSE)=\"\",\"\",VLOOKUP(AG510,Group,7,FALSE))","v":""},null,"X"]
[null,"Stock - Field Tile",null,null,"24\" x 48\" x 8mm",null,"Field",null,null,null,"Honed",null,null,null,null,"31.00 SF/CTN",null,null,{"$f":"IF(Suggested=\"Yes\",AB511,AH511)","v":9.5},"SF",{"$f":"+Instructions!$B$3","v":"D"},null,null,{"$f":"+Instructions!$C$22","v":0},{"$f":"ROUND($AB511*(1-X511)+0.004999,2)","v":9.5},null,"",9.5,{"$f":"+X511","v":0},{"$f":"+Y511","v":9.5},{"$f":"(AH511-AD511)/AH511","v":0},null,4,{"$f":"SUM(AK511:AM511)+AF511","v":9.5},null,null,{"$f":"ROUND(AD511/(1-VLOOKUP(AG511,Group,2,FALSE)),2)","v":9.5},{"$f":"IF(VLOOKUP(AG511,Group,5,FALSE)=\"YES\",VLOOKUP(ROUND(ROUND(AK511,1)-AK511,2),Round,2,FALSE)+VLOOKUP(AG511,Group,6,FALSE),0)","v":0},{"$f":"IF(VLOOKUP(AG511,Group,7,FALSE)=\"\",0,ROUND(AK511-0.04999,1)-AK511+AN511)","v":0},{"$f":"IF(VLOOKUP(AG511,Group,7,FALSE)=\"\",\"\",VLOOKUP(AG511,Group,7,FALSE))","v":""},null,"X"]
[]
[null,"Decos",null,null,"12\" x 12\" x 8mm",null,"Mosaic",null,"1\" x 2\" Brick",null,"Honed",null,null,null,null,"5 PCS/CTN",null,null,{"$f":"IF(Suggested=\"Yes\",AB513,AH513)","v":35.450000000000003},"EA",{"$f":"+Instructions!$B$3","v":"D"},null,null,{"$f":"+Instructions!$C$22","v":0},{"$f":"ROUND($AB513*(1-X513)+0.004999,2)","v":35.450000000000003},null,"",35.450000000000003,{"$f":"+X513","v":0},35.450000000000003,{"$f":"(AH513-AD513)/AH513","v":0},null,3,{"$f":"SUM(AK513:AM513)+AF513","v":35.450000000000003},null,null,{"$f":"ROUND(AD513/(1-VLOOKUP(AG513,Group,2,FALSE)),2)","v":35.450000000000003},{"$f":"IF(VLOOKUP(AG513,Group,5,FALSE)=\"YES\",VLOOKUP(ROUND(ROUND(AK513,1)-AK513,2),Round,2,FALSE)+VLOOKUP(AG513,Group,6,FALSE),0)","v":0},{"$f":"IF(VLOOKUP(AG513,Group,7,FALSE)=\"\",0,ROUND(AK513-0.04999,1)-AK513+AN513)","v":0},{"$f":"IF(VLOOKUP(AG513,Group,7,FALSE)=\"\",\"\",VLOOKUP(AG513,Group,7,FALSE))","v":""},null,"X"]
[null,"Decos",null,null,"10\" x 12\" x 8mm",null,"Mosaic",null,"2\" x 2\" Hexagon",null,"Honed",null," ",null,null,"5 PCS/CTN",null,null,{"$f":"IF(Suggested=\"Yes\",AB514,AH514)","v":58.1},"EA",{"$f":"+Instructions!$B$3","v":"D"},null,null,{"$f":"+Instructions!$C$22","v":0},{"$f":"ROUND($AB514*(1-X514)+0.004999,2)","v":58.1},null,"",58.1,0,58.1,{"$f":"(AH514-AD514)/AH514","v":0},null,3,{"$f":"SUM(AK514:AM514)+AF514","v":58.1},null,null,{"$f":"ROUND(AD514/(1-VLOOKUP(AG514,Group,2,FALSE)),2)","v":58.1},{"$f":"IF(VLOOKUP(AG514,Group,5,FALSE)=\"YES\",VLOOKUP(ROUND(ROUND(AK514,1)-AK514,2),Round,2,FALSE)+VLOOKUP(AG514,Group,6,FALSE),0)","v":0},{"$f":"IF(VLOOKUP(AG514,Group,7,FALSE)=\"\",0,ROUND(AK514-0.04999,1)-AK514+AN514)","v":0},{"$f":"IF(VLOOKUP(AG514,Group,7,FALSE)=\"\",\"\",VLOOKUP(AG514,Group,7,FALSE))","v":""},null,"X"]
[null,"Decos",null,null,"12\" x 12\" x 8mm",null,"Mosaic",null,"2\" x 2\"",null,"Honed",null,null,null,null,"5 PCS/CTN",null,null,{"$f":"IF(Suggested=\"Yes\",AB515,AH515)","v":29.15},"EA",{"$f":"+Instructions!$B$3","v":"D"},null,null,{"$f":"+Instructions!$C$22","v":0},{"$f":"ROUND($AB515*(1-X515)+0.004999,2)","v":29.15},null,"",29.15,0,29.15,{"$f":"(AH515-AD515)/AH515","v":0},null,3,{"$f":"SUM(AK515:AM515)+AF515","v":29.15},null,null,{"$f":"ROUND(AD515/(1-VLOOKUP(AG515,Group,2,FALSE)),2)","v":29.15},{"$f":"IF(VLOOKUP(AG515,Group,5,FALSE)=\"YES\",VLOOKUP(ROUND(ROUND(AK515,1)-AK515,2),Round,2,FALSE)+VLOOKUP(AG515,Group,6,FALSE),0)","v":0},{"$f":"IF(VLOOKUP(AG515,Group,7,FALSE)=\"\",0,ROUND(AK515-0.04999,1)-AK515+AN515)","v":0},{"$f":"IF(VLOOKUP(AG515,Group,7,FALSE)=\"\",\"\",VLOOKUP(AG515,Group,7,FALSE))","v":""},null,"X"]
[]
[null,"Trim",null,null,"4\" x 24\" x 8mm",null,"Bullnose",null,null,null,"Honed",null,null,null,null,"16 PCS/CTN",null,null,{"$f":"IF(Suggested=\"Yes\",AB517,AH517)","v":11.6},"EA",{"$f":"+Instructions!$B$3","v":"D"},null,null,{"$f":"+Instructions!$C$22","v":0},{"$f":"ROUND($AB517*(1-X517)+0.004999,2)","v":11.6},null,"",11.6,{"$f":"+X517","v":0},{"$f":"+Y517","v":11.6},{"$f":"(AH517-AD517)/AH517","v":0},null,2,{"$f":"SUM(AK517:AM517)+AF517","v":11.6},null,null,{"$f":"ROUND(AD517/(1-VLOOKUP(AG517,Group,2,FALSE)),2)","v":11.6},{"$f":"IF(VLOOKUP(AG517,Group,5,FALSE)=\"YES\",VLOOKUP(ROUND(ROUND(AK517,1)-AK517,2),Round,2,FALSE)+VLOOKUP(AG517,Group,6,FALSE),0)","v":0},{"$f":"IF(VLOOKUP(AG517,Group,7,FALSE)=\"\",0,ROUND(AK517-0.04999,1)-AK517+AN517)","v":0},{"$f":"IF(VLOOKUP(AG517,Group,7,FALSE)=\"\",\"\",VLOOKUP(AG517,Group,7,FALSE))","v":""},null,"X"]
[null,"Trim",null,null,"6\" x 12\" x 8mm",null,"Cove Base",null,null,null,"Honed",null,null,null,null,"8 PCS/CTN",null,null,{"$f":"IF(Suggested=\"Yes\",AB518,AH518)","v":21},"EA",{"$f":"+Instructions!$B$3","v":"D"},null,null,{"$f":"+Instructions!$C$22","v":0},{"$f":"ROUND($AB518*(1-X518)+0.004999,2)","v":21},null,"",21,{"$f":"+X518","v":0},{"$f":"+Y518","v":21},{"$f":"(AH518-AD518)/AH518","v":0},null,2,{"$f":"SUM(AK518:AM518)+AF518","v":21},null,null,{"$f":"ROUND(AD518/(1-VLOOKUP(AG518,Group,2,FALSE)),2)","v":21},{"$f":"IF(VLOOKUP(AG518,Group,5,FALSE)=\"YES\",VLOOKUP(ROUND(ROUND(AK518,1)-AK518,2),Round,2,FALSE)+VLOOKUP(AG518,Group,6,FALSE),0)","v":0},{"$f":"IF(VLOOKUP(AG518,Group,7,FALSE)=\"\",0,ROUND(AK518-0.04999,1)-AK518+AN518)","v":0},{"$f":"IF(VLOOKUP(AG518,Group,7,FALSE)=\"\",\"\",VLOOKUP(AG518,Group,7,FALSE))","v":""},null,"X"]
[]
[null,"Stock - Field Tile",null,null,"12\" x 24\" x 8mm",null,"Field",null,null,null,"Polished",null,null,null,null,"15.50 SF/CTN",null,null,{"$f":"IF(Suggested=\"Yes\",AB520,AH520)","v":12.95},"SF",{"$f":"+Instructions!$B$3","v":"D"},null,null,{"$f":"+Instructions!$C$22","v":0},{"$f":"ROUND($AB520*(1-X520)+0.004999,2)","v":12.95},null,"",12.95,{"$f":"+X520","v":0},{"$f":"+Y520","v":12.95},{"$f":"(AH520-AD520)/AH520","v":0},null,4,{"$f":"SUM(AK520:AM520)+AF520","v":12.95},null,null,{"$f":"ROUND(AD520/(1-VLOOKUP(AG520,Group,2,FALSE)),2)","v":12.95},{"$f":"IF(VLOOKUP(AG520,Group,5,FALSE)=\"YES\",VLOOKUP(ROUND(ROUND(AK520,1)-AK520,2),Round,2,FALSE)+VLOOKUP(AG520,Group,6,FALSE),0)","v":0},{"$f":"IF(VLOOKUP(AG520,Group,7,FALSE)=\"\",0,ROUND(AK520-0.04999,1)-AK520+AN520)","v":0},{"$f":"IF(VLOOKUP(AG520,Group,7,FALSE)=\"\",\"\",VLOOKUP(AG520,Group,7,FALSE))","v":""},null,"X"]
[null,"Stock - Field Tile",null,null,"24\" x 48\" x 8mm",null,"Field",null,null,null,"Polished",null,null,null,null,"31.00 SF/CTN",null,null,{"$f":"IF(Suggested=\"Yes\",AB521,AH521)","v":13.45},"SF",{"$f":"+Instructions!$B$3","v":"D"},null,null,{"$f":"+Instructions!$C$22","v":0},{"$f":"ROUND($AB521*(1-X521)+0.004999,2)","v":13.45},null,"",13.45,{"$f":"+X521","v":0},{"$f":"+Y521","v":13.45},{"$f":"(AH521-AD521)/AH521","v":0},null,4,{"$f":"SUM(AK521:AM521)+AF521","v":13.45},null,null,{"$f":"ROUND(AD521/(1-VLOOKUP(AG521,Group,2,FALSE)),2)","v":13.45},{"$f":"IF(VLOOKUP(AG521,Group,5,FALSE)=\"YES\",VLOOKUP(ROUND(ROUND(AK521,1)-AK521,2),Round,2,FALSE)+VLOOKUP(AG521,Group,6,FALSE),0)","v":0},{"$f":"IF(VLOOKUP(AG521,Group,7,FALSE)=\"\",0,ROUND(AK521-0.04999,1)-AK521+AN521)","v":0},{"$f":"IF(VLOOKUP(AG521,Group,7,FALSE)=\"\",\"\",VLOOKUP(AG521,Group,7,FALSE))","v":""},null,"X"]
[]
[null,"Decos",null,null,"12\" x 12\" x 8mm",null,"Mosaic",null,"1\" x 2\" Brick",null,"Polished",null,null,null,null,"5 PCS/CTN",null,null,{"$f":"IF(Suggested=\"Yes\",AB523,AH523)","v":38},"EA",{"$f":"+Instructions!$B$3","v":"D"},null,null,{"$f":"+Instructions!$C$22","v":0},{"$f":"ROUND($AB523*(1-X523)+0.004999,2)","v":38},null,"",38,{"$f":"+X523","v":0},38,{"$f":"(AH523-AD523)/AH523","v":0},null,3,{"$f":"SUM(AK523:AM523)+AF523","v":38},null,null,{"$f":"ROUND(AD523/(1-VLOOKUP(AG523,Group,2,FALSE)),2)","v":38},{"$f":"IF(VLOOKUP(AG523,Group,5,FALSE)=\"YES\",VLOOKUP(ROUND(ROUND(AK523,1)-AK523,2),Round,2,FALSE)+VLOOKUP(AG523,Group,6,FALSE),0)","v":0},{"$f":"IF(VLOOKUP(AG523,Group,7,FALSE)=\"\",0,ROUND(AK523-0.04999,1)-AK523+AN523)","v":0},{"$f":"IF(VLOOKUP(AG523,Group,7,FALSE)=\"\",\"\",VLOOKUP(AG523,Group,7,FALSE))","v":""},null,"X"]
[null,"Decos",null,null,"10\" x 12\" x 8mm",null,"Mosaic",null,"2\" x 2\" Hexagon",null,"Polished",null,null,null,null,"5 PCS/CTN",null,null,{"$f":"IF(Suggested=\"Yes\",AB524,AH524)","v":63.15},"EA",{"$f":"+Instructions!$B$3","v":"D"},null,null,{"$f":"+Instructions!$C$22","v":0},{"$f":"ROUND($AB524*(1-X524)+0.004999,2)","v":63.15},null,"",63.15,0,63.15,{"$f":"(AH524-AD524)/AH524","v":0},null,3,{"$f":"SUM(AK524:AM524)+AF524","v":63.15},null,null,{"$f":"ROUND(AD524/(1-VLOOKUP(AG524,Group,2,FALSE)),2)","v":63.15},{"$f":"IF(VLOOKUP(AG524,Group,5,FALSE)=\"YES\",VLOOKUP(ROUND(ROUND(AK524,1)-AK524,2),Round,2,FALSE)+VLOOKUP(AG524,Group,6,FALSE),0)","v":0},{"$f":"IF(VLOOKUP(AG524,Group,7,FALSE)=\"\",0,ROUND(AK524-0.04999,1)-AK524+AN524)","v":0},{"$f":"IF(VLOOKUP(AG524,Group,7,FALSE)=\"\",\"\",VLOOKUP(AG524,Group,7,FALSE))","v":""},null,"X"]
[null,"Decos",null,null,"12\" x 12\" x 8mm",null,"Mosaic",null,"2\" x 2\"",null,"Polished",null,null,null,null,"5 PCS/CTN",null,null,{"$f":"IF(Suggested=\"Yes\",AB525,AH525)","v":31.65},"EA",{"$f":"+Instructions!$B$3","v":"D"},null,null,{"$f":"+Instructions!$C$22","v":0},{"$f":"ROUND($AB525*(1-X525)+0.004999,2)","v":31.65},null,"",31.65,0,31.65,{"$f":"(AH525-AD525)/AH525","v":0},null,3,{"$f":"SUM(AK525:AM525)+AF525","v":31.65},null,null,{"$f":"ROUND(AD525/(1-VLOOKUP(AG525,Group,2,FALSE)),2)","v":31.65},{"$f":"IF(VLOOKUP(AG525,Group,5,FALSE)=\"YES\",VLOOKUP(ROUND(ROUND(AK525,1)-AK525,2),Round,2,FALSE)+VLOOKUP(AG525,Group,6,FALSE),0)","v":0},{"$f":"IF(VLOOKUP(AG525,Group,7,FALSE)=\"\",0,ROUND(AK525-0.04999,1)-AK525+AN525)","v":0},{"$f":"IF(VLOOKUP(AG525,Group,7,FALSE)=\"\",\"\",VLOOKUP(AG525,Group,7,FALSE))","v":""},null,"X"]
[]
[null,"Trim",null,null,"4\" x 24\" x 8mm",null,"Bullnose",null,null,null,"Polished",null,null,null,null,"16 PCS/CTN",null,null,{"$f":"IF(Suggested=\"Yes\",AB527,AH527)","v":14.15},"EA",{"$f":"+Instructions!$B$3","v":"D"},null,null,{"$f":"+Instructions!$C$22","v":0},{"$f":"ROUND($AB527*(1-X527)+0.004999,2)","v":14.15},null,"",14.15,{"$f":"+X527","v":0},{"$f":"+Y527","v":14.15},{"$f":"(AH527-AD527)/AH527","v":0},null,2,{"$f":"SUM(AK527:AM527)+AF527","v":14.15},null,null,{"$f":"ROUND(AD527/(1-VLOOKUP(AG527,Group,2,FALSE)),2)","v":14.15},{"$f":"IF(VLOOKUP(AG527,Group,5,FALSE)=\"YES\",VLOOKUP(ROUND(ROUND(AK527,1)-AK527,2),Round,2,FALSE)+VLOOKUP(AG527,Group,6,FALSE),0)","v":0},{"$f":"IF(VLOOKUP(AG527,Group,7,FALSE)=\"\",0,ROUND(AK527-0.04999,1)-AK527+AN527)","v":0},{"$f":"IF(VLOOKUP(AG527,Group,7,FALSE)=\"\",\"\",VLOOKUP(AG527,Group,7,FALSE))","v":""},null,"X"]
[]
[null,null,null,"Notes:","a) Large Panel Porcelain will also involve additional packaging & freight charges depending on sizes and quantities."]
[null,null,null,null,"See Page 2 for these additional charges.  120\" panels are always subject to additional freight charges based on project quantity."]
[]
[null,null,"SHELLSTONE - Glazed Porcelain",null,null,null,null,null,null,null,null,null,null,null,null,null,null,"Item # Lookup:","FISH",null,null,null,null,null,null,null,null,null,null,null,null,null,null,null,null,null,null,null,null,null,null,"X"]
[]
[null,null,null,"Colors:","Shellamber",null,"   Shellbone",null,null,"   Shellgrey",null,null,null,null,null,null,null,null,null,null,null,null,null,null,null,null,null,null,null,null,null,null,null,null,null,null,null,null,null,null,null,"X"]
[null,null,null,null,"Shellblue",null,"   Shellgreen",null,null,"   Shellearth"]
[]
[null,"Stock - Field Tile",null,null,"12\" x 24\"",null,"Field",null,null,"Honed",null,null,null,null,null,"15.75 SF/CTN",null,null,{"$f":"IF(Suggested=\"Yes\",AB537,AH537)","v":8.5500000000000007},"SF",{"$f":"+Instructions!$B$3","v":"D"},null,null,{"$f":"+Instructions!$C$22","v":0},{"$f":"ROUND($AB537*(1-X537)+0.004999,2)","v":8.5500000000000007},null,"",8.5500000000000007,{"$f":"+X537","v":0},{"$f":"+Y537","v":8.5500000000000007},{"$f":"(AH537-AD537)/AH537","v":0},null,4,{"$f":"SUM(AK537:AM537)+AF537","v":8.5500000000000007},null,null,{"$f":"ROUND(AD537/(1-VLOOKUP(AG537,Group,2,FALSE)),2)","v":8.5500000000000007},{"$f":"IF(VLOOKUP(AG537,Group,5,FALSE)=\"YES\",VLOOKUP(ROUND(ROUND(AK537,1)-AK537,2),Round,2,FALSE)+VLOOKUP(AG537,Group,6,FALSE),0)","v":0},{"$f":"IF(VLOOKUP(AG537,Group,7,FALSE)=\"\",0,ROUND(AK537-0.04999,1)-AK537+AN537)","v":0},{"$f":"IF(VLOOKUP(AG537,Group,7,FALSE)=\"\",\"\",VLOOKUP(AG537,Group,7,FALSE))","v":""},null,"X"]
[]
[null,"Decos",null,null,"12\" x 12\"",null,"Mosaic",null,"Multicolor 1\" x 2\" Brick Random Mix",null,null,null,null,"Honed",null,"5 PCS/CTN",null,null,{"$f":"IF(Suggested=\"Yes\",AB539,AH539)","v":50},"EA",{"$f":"+Instructions!$B$3","v":"D"},null,null,{"$f":"+Instructions!$C$22","v":0},{"$f":"ROUND($AB539*(1-X539)+0.004999,2)","v":50},null,"",50,{"$f":"+X539","v":0},{"$f":"+Y539","v":50},{"$f":"(AH539-AD539)/AH539","v":0},null,3,{"$f":"SUM(AK539:AM539)+AF539","v":50},null,null,{"$f":"ROUND(AD539/(1-VLOOKUP(AG539,Group,2,FALSE)),2)","v":50},{"$f":"IF(VLOOKUP(AG539,Group,5,FALSE)=\"YES\",VLOOKUP(ROUND(ROUND(AK539,1)-AK539,2),Round,2,FALSE)+VLOOKUP(AG539,Group,6,FALSE),0)","v":0},{"$f":"IF(VLOOKUP(AG539,Group,7,FALSE)=\"\",0,ROUND(AK539-0.04999,1)-AK539+AN539)","v":0},{"$f":"IF(VLOOKUP(AG539,Group,7,FALSE)=\"\",\"\",VLOOKUP(AG539,Group,7,FALSE))","v":""},null,"X"]
[null,"Decos",null,null,"12\" x 12\"",null,"Mosaic",null,"2\" x 2\"","Honed",null,null,null,null,null,"5 PCS/CTN",null,null,{"$f":"IF(Suggested=\"Yes\",AB540,AH540)","v":33.65},"EA",{"$f":"+Instructions!$B$3","v":"D"},null,null,{"$f":"+Instructions!$C$22","v":0},{"$f":"ROUND($AB540*(1-X540)+0.004999,2)","v":33.65},null,"",33.65,{"$f":"+X540","v":0},{"$f":"+Y540","v":33.65},{"$f":"(AH540-AD540)/AH540","v":0},null,3,{"$f":"SUM(AK540:AM540)+AF540","v":33.65},null,null,{"$f":"ROUND(AD540/(1-VLOOKUP(AG540,Group,2,FALSE)),2)","v":33.65},{"$f":"IF(VLOOKUP(AG540,Group,5,FALSE)=\"YES\",VLOOKUP(ROUND(ROUND(AK540,1)-AK540,2),Round,2,FALSE)+VLOOKUP(AG540,Group,6,FALSE),0)","v":0},{"$f":"IF(VLOOKUP(AG540,Group,7,FALSE)=\"\",0,ROUND(AK540-0.04999,1)-AK540+AN540)","v":0},{"$f":"IF(VLOOKUP(AG540,Group,7,FALSE)=\"\",\"\",VLOOKUP(AG540,Group,7,FALSE))","v":""},null,"X"]
[]
[null,"Trim",null,null,"3\" x 12\"",null,"Bullnose",null,null,"Honed",null,null,null,null,null,"15 PCS/CTN",null,null,{"$f":"IF(Suggested=\"Yes\",AB542,AH542)","v":7.45},"EA",{"$f":"+Instructions!$B$3","v":"D"},null,null,{"$f":"+Instructions!$C$22","v":0},{"$f":"ROUND($AB542*(1-X542)+0.004999,2)","v":7.45},null,"",7.45,{"$f":"+X542","v":0},{"$f":"+Y542","v":7.45},{"$f":"(AH542-AD542)/AH542","v":0},null,2,{"$f":"SUM(AK542:AM542)+AF542","v":7.45},null,null,{"$f":"ROUND(AD542/(1-VLOOKUP(AG542,Group,2,FALSE)),2)","v":7.45},{"$f":"IF(VLOOKUP(AG542,Group,5,FALSE)=\"YES\",VLOOKUP(ROUND(ROUND(AK542,1)-AK542,2),Round,2,FALSE)+VLOOKUP(AG542,Group,6,FALSE),0)","v":0},{"$f":"IF(VLOOKUP(AG542,Group,7,FALSE)=\"\",0,ROUND(AK542-0.04999,1)-AK542+AN542)","v":0},{"$f":"IF(VLOOKUP(AG542,Group,7,FALSE)=\"\",\"\",VLOOKUP(AG542,Group,7,FALSE))","v":""},null,"X"]
[null,"Trim",null,null,"6\" x 12\"",null,"Cove Base",null,null,"Honed",null,null,null,null,null,"8 PCS/CTN",null,null,{"$f":"IF(Suggested=\"Yes\",AB543,AH543)","v":25.1},"EA",{"$f":"+Instructions!$B$3","v":"D"},null,null,{"$f":"+Instructions!$C$22","v":0},{"$f":"ROUND($AB543*(1-X543)+0.004999,2)","v":25.1},null,"",25.1,{"$f":"+X543","v":0},{"$f":"+Y543","v":25.1},{"$f":"(AH543-AD543)/AH543","v":0},null,2,{"$f":"SUM(AK543:AM543)+AF543","v":25.1},null,null,{"$f":"ROUND(AD543/(1-VLOOKUP(AG543,Group,2,FALSE)),2)","v":25.1},{"$f":"IF(VLOOKUP(AG543,Group,5,FALSE)=\"YES\",VLOOKUP(ROUND(ROUND(AK543,1)-AK543,2),Round,2,FALSE)+VLOOKUP(AG543,Group,6,FALSE),0)","v":0},{"$f":"IF(VLOOKUP(AG543,Group,7,FALSE)=\"\",0,ROUND(AK543-0.04999,1)-AK543+AN543)","v":0},{"$f":"IF(VLOOKUP(AG543,Group,7,FALSE)=\"\",\"\",VLOOKUP(AG543,Group,7,FALSE))","v":""},null,"X"]
[]
[null,null,"SHEN - Glazed Porcelain (formally known as HARMONY)",null,null,null,null,null,null,null,null,null,null,null,null,null,null,"Item # Lookup:","FISN",null,null,null,null,null,null,null,null,null,null,null,null,null,null,null,null,null,null,null,null,null,null,"X"]
[]
[null,null,null,"Colors:","Balance Grey",null,"      Essence",null,null,"    Natural",null,null,null,null,null,null,null,null,null,null,null,null,null,null,null,null,null,null,null,null,null,null,null,null,null,null,null,null,null,null,null,"X"]
[null,null,null,null,"Bamboo",null,"      Graylake",null,null,"    White Shades",null,null,null,null,null,null,null,null,null,null,null,null,null,null,null,null,null,null,null,null,null,null,null,null,null,null,null,null,null,null,null,"X"]
[]
[null,"Field Tile",null,null,"12\" x 24\"",null,"Field",null,null,"Rectified",null,null,null,null,null,"15.75 SF/CTN",null,null,{"$f":"IF(Suggested=\"Yes\",AB550,AH550)","v":8.5500000000000007},"SF",{"$f":"+Instructions!$B$3","v":"D"},null,null,{"$f":"+Instructions!$C$22","v":0},{"$f":"ROUND($AB550*(1-X550)+0.004999,2)","v":8.5500000000000007},null,"",8.5500000000000007,{"$f":"+X550","v":0},8.5500000000000007,{"$f":"(AH550-AD550)/AH550","v":0},null,1,{"$f":"SUM(AK550:AM550)+AF550","v":8.5500000000000007},null,null,{"$f":"ROUND(AD550/(1-VLOOKUP(AG550,Group,2,FALSE)),2)","v":8.5500000000000007},{"$f":"IF(VLOOKUP(AG550,Group,5,FALSE)=\"YES\",VLOOKUP(ROUND(ROUND(AK550,1)-AK550,2),Round,2,FALSE)+VLOOKUP(AG550,Group,6,FALSE),0)","v":0},{"$f":"IF(VLOOKUP(AG550,Group,7,FALSE)=\"\",0,ROUND(AK550-0.04999,1)-AK550+AN550)","v":0},{"$f":"IF(VLOOKUP(AG550,Group,7,FALSE)=\"\",\"\",VLOOKUP(AG550,Group,7,FALSE))","v":""},null,"X"]
[null,"Field Tile",null,null,"8\" x 48\"",null,"Field",null,null,"Rectified",null,null,null,null,null,"15.59 SF/CTN",null,null,{"$f":"IF(Suggested=\"Yes\",AB551,AH551)","v":8.9499999999999993},"SF",{"$f":"+Instructions!$B$3","v":"D"},null,null,{"$f":"+Instructions!$C$22","v":0},{"$f":"ROUND($AB551*(1-X551)+0.004999,2)","v":8.9499999999999993},null,"",8.9499999999999993,0,8.9499999999999993,{"$f":"(AH551-AD551)/AH551","v":0},null,1,{"$f":"SUM(AK551:AM551)+AF551","v":8.9499999999999993},null,null,{"$f":"ROUND(AD551/(1-VLOOKUP(AG551,Group,2,FALSE)),2)","v":8.9499999999999993},{"$f":"IF(VLOOKUP(AG551,Group,5,FALSE)=\"YES\",VLOOKUP(ROUND(ROUND(AK551,1)-AK551,2),Round,2,FALSE)+VLOOKUP(AG551,Group,6,FALSE),0)","v":0},{"$f":"IF(VLOOKUP(AG551,Group,7,FALSE)=\"\",0,ROUND(AK551-0.04999,1)-AK551+AN551)","v":0},{"$f":"IF(VLOOKUP(AG551,Group,7,FALSE)=\"\",\"\",VLOOKUP(AG551,Group,7,FALSE))","v":""},null,"X"]
[null,"Field Tile",null,null,"24\" x 48\"",null,"Field",null,null,"Rectified",null,null,null,null,null,"31.67 SF/CTN",null,null,{"$f":"IF(Suggested=\"Yes\",AB552,AH552)","v":10.199999999999999},"SF",{"$f":"+Instructions!$B$3","v":"D"},null,null,{"$f":"+Instructions!$C$22","v":0},{"$f":"ROUND($AB552*(1-X552)+0.004999,2)","v":10.199999999999999},null,"",10.199999999999999,0,10.199999999999999,{"$f":"(AH552-AD552)/AH552","v":0},null,1,{"$f":"SUM(AK552:AM552)+AF552","v":10.199999999999999},null,null,{"$f":"ROUND(AD552/(1-VLOOKUP(AG552,Group,2,FALSE)),2)","v":10.199999999999999},{"$f":"IF(VLOOKUP(AG552,Group,5,FALSE)=\"YES\",VLOOKUP(ROUND(ROUND(AK552,1)-AK552,2),Round,2,FALSE)+VLOOKUP(AG552,Group,6,FALSE),0)","v":0},{"$f":"IF(VLOOKUP(AG552,Group,7,FALSE)=\"\",0,ROUND(AK552-0.04999,1)-AK552+AN552)","v":0},{"$f":"IF(VLOOKUP(AG552,Group,7,FALSE)=\"\",\"\",VLOOKUP(AG552,Group,7,FALSE))","v":""},null,"X"]
[]
[null,"Decos",null,null,"12\" x 12\"",null,"Mosaic",null,"2\" x 2\"",null,null,null,null,null,null,"5 PCS/CTN",null,null,{"$f":"IF(Suggested=\"Yes\",AB554,AH554)","v":34},"EA",{"$f":"+Instructions!$B$3","v":"D"},null,null,{"$f":"+Instructions!$C$22","v":0},{"$f":"ROUND($AB554*(1-X554)+0.004999,2)","v":34},null,"",34,{"$f":"+X554","v":0},{"$f":"+Y554","v":34},{"$f":"(AH554-AD554)/AH554","v":0},null,3,{"$f":"SUM(AK554:AM554)+AF554","v":34},null,null,{"$f":"ROUND(AD554/(1-VLOOKUP(AG554,Group,2,FALSE)),2)","v":34},{"$f":"IF(VLOOKUP(AG554,Group,5,FALSE)=\"YES\",VLOOKUP(ROUND(ROUND(AK554,1)-AK554,2),Round,2,FALSE)+VLOOKUP(AG554,Group,6,FALSE),0)","v":0},{"$f":"IF(VLOOKUP(AG554,Group,7,FALSE)=\"\",0,ROUND(AK554-0.04999,1)-AK554+AN554)","v":0},{"$f":"IF(VLOOKUP(AG554,Group,7,FALSE)=\"\",\"\",VLOOKUP(AG554,Group,7,FALSE))","v":""},null,"X"]
[]
[null,"Trim",null,null,"4\" x 24\"",null,"Bullnose",null,null,null,null,null,null,null,null,"16 PCS/CTN",null,null,{"$f":"IF(Suggested=\"Yes\",AB556,AH556)","v":15.7},"EA",{"$f":"+Instructions!$B$3","v":"D"},null,null,{"$f":"+Instructions!$C$22","v":0},{"$f":"ROUND($AB556*(1-X556)+0.004999,2)","v":15.7},null,"",15.7,{"$f":"+X556","v":0},{"$f":"+Y556","v":15.7},{"$f":"(AH556-AD556)/AH556","v":0},null,2,{"$f":"SUM(AK556:AM556)+AF556","v":15.7},null,null,{"$f":"ROUND(AD556/(1-VLOOKUP(AG556,Group,2,FALSE)),2)","v":15.7},{"$f":"IF(VLOOKUP(AG556,Group,5,FALSE)=\"YES\",VLOOKUP(ROUND(ROUND(AK556,1)-AK556,2),Round,2,FALSE)+VLOOKUP(AG556,Group,6,FALSE),0)","v":0},{"$f":"IF(VLOOKUP(AG556,Group,7,FALSE)=\"\",0,ROUND(AK556-0.04999,1)-AK556+AN556)","v":0},{"$f":"IF(VLOOKUP(AG556,Group,7,FALSE)=\"\",\"\",VLOOKUP(AG556,Group,7,FALSE))","v":""},null,"X"]
[null,"Trim",null,null,"6\" x 12\"",null,"Cove Base",null,null,null,null,null,null,null,null,"8 PCS/CTN",null,null,{"$f":"IF(Suggested=\"Yes\",AB557,AH557)","v":25.1},"EA",{"$f":"+Instructions!$B$3","v":"D"},null,null,{"$f":"+Instructions!$C$22","v":0},{"$f":"ROUND($AB557*(1-X557)+0.004999,2)","v":25.1},null,"",25.1,{"$f":"+X557","v":0},{"$f":"+Y557","v":25.1},{"$f":"(AH557-AD557)/AH557","v":0},null,2,{"$f":"SUM(AK557:AM557)+AF557","v":25.1},null,null,{"$f":"ROUND(AD557/(1-VLOOKUP(AG557,Group,2,FALSE)),2)","v":25.1},{"$f":"IF(VLOOKUP(AG557,Group,5,FALSE)=\"YES\",VLOOKUP(ROUND(ROUND(AK557,1)-AK557,2),Round,2,FALSE)+VLOOKUP(AG557,Group,6,FALSE),0)","v":0},{"$f":"IF(VLOOKUP(AG557,Group,7,FALSE)=\"\",0,ROUND(AK557-0.04999,1)-AK557+AN557)","v":0},{"$f":"IF(VLOOKUP(AG557,Group,7,FALSE)=\"\",\"\",VLOOKUP(AG557,Group,7,FALSE))","v":""},null,"X"]
[]
[null,null,"UNICOLOR - Glazed Porcelain",null,null,null,null,null,null,null,"DISCONTINUED 1/17/23",null,null,null,null,null,null,"Item # Lookup:","FIUN",null,null,null,null,null,null,null,null,null,null,null,null,null,null,null,null,null,null,null,null,null,null,"X"]
[]
[null,null,null,"Colors:","Uni Bianco          Uni Grigio          Uni Nero",null,null,null,null,null,null,null,null,null,null,null,null,null,null,null,null,null,null,null,null,null,null,null,null,null,null,null,null,null,null,null,null,null,null,null,null,"X"]
[]
[null,"Field Tile",null,null,"12\" x 24\"",null,"Field",null,null,"Rectified",null,null,null,null,null,"15.75 SF/CTN",null,null,{"$f":"IF(Suggested=\"Yes\",AB563,AH563)","v":9.25},"SF",{"$f":"+Instructions!$B$3","v":"D"},null,null,{"$f":"+Instructions!$C$22","v":0},{"$f":"ROUND($AB563*(1-X563)+0.004999,2)","v":9.25},null,"",9.25,{"$f":"+X563","v":0},{"$f":"+Y563","v":9.25},{"$f":"(AH563-AD563)/AH563","v":0},null,1,{"$f":"SUM(AK563:AM563)+AF563","v":9.25},null,null,{"$f":"ROUND(AD563/(1-VLOOKUP(AG563,Group,2,FALSE)),2)","v":9.25},{"$f":"IF(VLOOKUP(AG563,Group,5,FALSE)=\"YES\",VLOOKUP(ROUND(ROUND(AK563,1)-AK563,2),Round,2,FALSE)+VLOOKUP(AG563,Group,6,FALSE),0)","v":0},{"$f":"IF(VLOOKUP(AG563,Group,7,FALSE)=\"\",0,ROUND(AK563-0.04999,1)-AK563+AN563)","v":0},{"$f":"IF(VLOOKUP(AG563,Group,7,FALSE)=\"\",\"\",VLOOKUP(AG563,Group,7,FALSE))","v":""},null,"X"]
[]
[null,"Decos",null,null,"12\" x 12\"",null,"Mosaic",null,"2\" x 2\"",null,null,null,null,null,null,"5 PCS/CTN",null,null,{"$f":"IF(Suggested=\"Yes\",AB565,AH565)","v":44.55},"EA",{"$f":"+Instructions!$B$3","v":"D"},null,null,{"$f":"+Instructions!$C$22","v":0},{"$f":"ROUND($AB565*(1-X565)+0.004999,2)","v":44.55},null,"",44.55,{"$f":"+X565","v":0},{"$f":"+Y565","v":44.55},{"$f":"(AH565-AD565)/AH565","v":0},null,3,{"$f":"SUM(AK565:AM565)+AF565","v":44.55},null,null,{"$f":"ROUND(AD565/(1-VLOOKUP(AG565,Group,2,FALSE)),2)","v":44.55},{"$f":"IF(VLOOKUP(AG565,Group,5,FALSE)=\"YES\",VLOOKUP(ROUND(ROUND(AK565,1)-AK565,2),Round,2,FALSE)+VLOOKUP(AG565,Group,6,FALSE),0)","v":0},{"$f":"IF(VLOOKUP(AG565,Group,7,FALSE)=\"\",0,ROUND(AK565-0.04999,1)-AK565+AN565)","v":0},{"$f":"IF(VLOOKUP(AG565,Group,7,FALSE)=\"\",\"\",VLOOKUP(AG565,Group,7,FALSE))","v":""},null,"X"]
[]
[null,"Trim",null,null,"3\" x 12\"",null,"Bullnose",null,null,null,null,null,null,null,null,"33 PCS/CTN",null,null,{"$f":"IF(Suggested=\"Yes\",AB567,AH567)","v":7.8},"EA",{"$f":"+Instructions!$B$3","v":"D"},null,null,{"$f":"+Instructions!$C$22","v":0},{"$f":"ROUND($AB567*(1-X567)+0.004999,2)","v":7.8},null,"",7.8,{"$f":"+X567","v":0},{"$f":"+Y567","v":7.8},{"$f":"(AH567-AD567)/AH567","v":0},null,2,{"$f":"SUM(AK567:AM567)+AF567","v":7.8},null,null,{"$f":"ROUND(AD567/(1-VLOOKUP(AG567,Group,2,FALSE)),2)","v":7.8},{"$f":"IF(VLOOKUP(AG567,Group,5,FALSE)=\"YES\",VLOOKUP(ROUND(ROUND(AK567,1)-AK567,2),Round,2,FALSE)+VLOOKUP(AG567,Group,6,FALSE),0)","v":0},{"$f":"IF(VLOOKUP(AG567,Group,7,FALSE)=\"\",0,ROUND(AK567-0.04999,1)-AK567+AN567)","v":0},{"$f":"IF(VLOOKUP(AG567,Group,7,FALSE)=\"\",\"\",VLOOKUP(AG567,Group,7,FALSE))","v":""},null,"X"]
[]
[]
[]
[]
[]
[]
[]
[]
[]
[]
[]
[]
[]
[]
[]
[]
[]
[]
[]
[]
[]
[]
[]
[]
[]
[]
[]
[]
[]
[]
[]
[]
[]
[]
[]
[]
[]
[]
[]
[]
[]
[]
[]
[]
[]
[]
[null,null,"This price list is available electronically on an Excel spreadsheet at www.conestogatile.com/pricelists."]
[null,null,null," "]
[null,null,"The spreadsheet has many special features to assist you.  Apply your discount to generate your net costs for your purchasing department.  Apply your standard gross margin percentage or custom prices to generate your own custom price list for your showroom.  Print out individual price list for each series that can be attached to the back of your sample boards for easy reference."]
["X","X","X","X","X","X","X","X","X","X","X","X","X","X","X","X","X","X","X","X","X","X","X","X","X","X","X","X","X","X","X","X","X","X","X","X","X","X","X","X","X","X"]
[]
[null,null,null,"$.05 Round Matrix"]
[null,null,null,-0.04,0.01,null,null,null,null,null," "]
[null,null,null,-0.03,0.02]
[null,null,null,-0.02,0.03]
[null,null,null,-0.01,-0.01]
[null,null,null,0,0]
[null,null,null,0.01,1.0000000000005116E-2]
[null,null,null,0.02,2.0000000000003126E-2]
[null,null,null,0.03,3.0000000000001137E-2]
[null,null,null,0.04,-0.01]
[null,null,null,0.05,0]

{"sheet":"Websites","index":3,"n_rows":19,"n_cols":4,"rows_kept":19,"cut":false,"hidden":false,"merged":[]}
["Easy Access Website links"]
[]
["ConestogaTile's Website","www.conestogatile.com"]
[]
["Manufacturer's Home Page","http://www.granitifiandre.com/"]
[]
[]
["Product","Direct Website Link"]
["Core Shade","https://www.granitifiandre.com/porcelain-tile/core-shade"]
["Fahrenheit","https://www.granitifiandre.com/porcelain-tile/fahrenheit"]
["French Clay","http://www.granitifiandre.com/porcelain-tile/made-in-usa/french-clay/"]
["LOL"]
["Marble Lab","http://www.granitifiandre.com/porcelain-tile/marble-lab"]
["Maximum","http://www.granitifiandre.com/porcelain-tile/maximum/"]
["May"]
["Royal Marble","https://www.granitifiandre.com/porcelain-tile/royal-marble"]
["Shellstone","http://www.granitifiandre.com/porcelain-tile/made-in-usa/shellstone/",null,"  "]
["Shen","http://www.granitifiandre.com/porcelain-tile/made-in-usa/shen/"]
["Unicolor","http://www.granitifiandre.com/porcelain-tile/made-in-usa/uni-color/"]

{"sheet":"Changes","index":4,"n_rows":110,"n_cols":4,"rows_kept":110,"cut":false,"hidden":false,"merged":[]}
["Date"]
["Announced","Series","Description"]
[]
["New Products"]
["2014-12-24","Butcher Block","Glazed Porcelain"]
["2014-12-24","French Clay","Glazed Porcelain Floor"]
["2014-12-24","French Clay","Glazed Ceramic Wall"]
["2014-12-24","Link","Unglazed Porcelain"]
["2014-12-24","Metropolis","Glazed Porcelain"]
["2014-12-24","New Marmi","Unglazed Porcelain"]
["2014-12-24","New Stone","Unglazed Porcelain"]
["2014-12-24","Nihon","Glazed Porcelain"]
["2014-12-24","Origins","Unglazed Porcelain"]
["2014-12-24","Shellstone","Glazed Porcelain"]
["2014-12-24","Silk Road","Glazed Porcelain"]
["2014-12-24","Unicolor","Glazed Porcelain"]
["2015-06-29","Harmony","Glazed Porcelain"]
["2015-06-29","Maximum","Thin Porcelain"]
["2016-08-08","Designer Woods","Glazed Porcelain"]
["2016-08-08","G Stone","Unglazed Porcelain"]
["2016-08-08","Maze","Glazed Porcelain"]
["2016-08-08","New Marmi","12\" x 24\" Honed Brick Mosaic and 12\" x 12\" Honed Stair Tread added to series."]
["2016-08-08","Shellstone","Multicolor 1\" x 2\" Brick Random Mix Mosaic added to series."]
["2016-08-08","Silk Road","2\" x 2\" Mosaic added and is available in color Wild Silk only.  6\" x 12\" Cove Base added and is available in both Soft Silk and Wild Silk colors. "]
["2017-05-31","Approach","Glazed Porcelain"]
["2017-05-31","Desire","Glazed Porcelain Floor & Glazed Ceramic Wall"]
["2017-05-31","LOL","Glazed Ceramic Wall"]
["2017-05-31","Marble Lab","Glazed Porcelain"]
["2017-05-31","Maximum","New Marmi colors added and are available in select formats:  Marmi Calacatta Elite, Marmi Calacatta Light, Marmi Glam Bronze, Marmi Pietra Grey, Marmi Premium White, Marmi Premium White A, Marmi Premium White B and Marmi Quarzo Greige.  Pre-polished finish added to Mega and HG. Resin colors in select formats.  Colors Agata Azzurra B, C, E & G and Frapuccino A, B, C & D added to the Precious Stones Colors."]
["2017-05-31","MAY","Glazed Ceramic Wall"]
["2017-05-31","Tao","Glazed Porcelain"]
["2017-05-31","Westloop","Glazed Porcelain"]
["2018-06-07","Dwood 2.0","Glazed Porcelain"]
["2018-06-07","Maximum","Colors Eminent Wood Brown, Eminent Wood Grey and Dark Marquina added."]
["2018-06-07","Tao","9\" x 36\" and 18\" x 36\" Field Tile formats added in both Honed and Semi-Polished finishes.  (Replacing the 8\" x 48\" and 24\" x 48\" Field Tile formats.)  Color Black added and is available in all formats."]
["2019-06-27","Maximum","Colors Eminent Wood Brown, Eminent Wood Grey, Marmi Glam Bronze and Marmi Pietra Grey now available in the Satin finish."]
["2019-06-27","Royal Marble","Glazed Porcelain, available in both 6mm and 8mm thicknesses."]
["2020-09-11","Core Shade","Glazed Porcelain."]
["2020-09-11","Fahrenheit","Glazed Porcelain."]
["2020-09-11","Marble Lab","Colors Atlantic Grey and Nero Marquina added to series."]
["2020-09-11","Maximum","Several Colors and Field Tile formats added."]
["2021-08-27","Maximum","New Marmi color added and is available in select formats:  Marmi Marbre De Savoie."]
["2021-10-01","Marble Lab","Colors Arabescato Orobico and Calacatta Bellissimo added to the collection.  Matte Field Tile and Stair Tread formats added."]
["2021-10-01","Maximum","Colors Aster Rusty, Il Veneziano Seminato Beige, Il Veneziano Seminato Candido, Il Veneziano Seminato Nero, Marmi Calacatta Dorato, Marmi Deep Emperador, Marmi Ethereal Travertino, Marmi Finest Estremoz, Marmi Pure Calacatta, Pietre Luna Limestone, Pietre Quarzite Vals and Pietre Roccia Di Lucca added to the collection."]
[]
[]
[]
["Discontinued Products"]
["2016-08-08","Butcher Block","4\" x 12\" Bullnose format."]
["2016-08-08","Link","Entire Series."]
["2016-08-08","Metropolis","24\" x 24\" Field Tile format in all colors."]
["2016-08-08","New Marmi","Colors Dark Gray, Partenon, Taupe Gray and Toros Black in all formats."]
["2016-08-08","New Stone","Color Carbone in all formats, 6\" x 24\" Field Tile and 6\" x 12\" Bullnose formats in all colors."]
["2016-08-08","Nihon","2\" x 24\" Field Tile format in all colors."]
["2016-08-08","Origins","12\" x 12\" Polished Field Tile format in all colors."]
["2016-08-08","Silk Road","Colors Natural Silk and Raw Silk in all formats."]
["2017-05-31","Maximum","Color Marmi Michelangelo Statuario in all formats. Colors Natura Bistro, Natura Castagno, Natura Cenere, Natura Frassino and Natura Magnolia in all formats. "]
["2017-11-17","Nihon","Color Goma in all formats.  24\" x 24\" Field Tile format in all colors."]
["2017-12-15","Butcher Block","Entire Series."]
["2017-12-15","French Clay","24\" x 24\" Brilliant finish Field Tile format in all colors."]
["2017-12-15","Metropolis","Color Noir in all formats."]
["2017-12-15","Nihon","Color Tatami in all formats."]
["2017-12-15","Origins","Entire Series."]
["2017-12-15","Shellstone","18\" x 36\" Field Tile format in all colors."]
["2017-12-15","Silk Road","24\" x 24\" Field Tile format in all colors."]
["2018-03-29","Nihon","2\" x 2\" and Bamboo Mosaic in all colors and the Multicolor 1\" x 2\" Brick Random Mix Mosaic."]
["2018-06-07","Approach","Colors Light Gray and Sand in all formats."]
["2018-06-07","Designer Woods","Entire Series."]
["2018-06-07","Maximum","Colors Aster Uranus and Marmi Quarzo Greige in all formats.  Colors Marmi Premium White/A Honed and Marmi Premium White/B Honed in the 120\" x 60\" x 6mm format.  Color Marmi Royal Marfil in the 40\" x 40\" x 6mm, 60\" x 40\" x 6mm & 120\" x 40\" x 6mm Field Tile formats in both the Honed and Polished finishes."]
["2018-06-07","Tao","8\" x 48\" and 24\" x 48\" Field Tile formats in all colors & finishes.  (Replaced with the 9\" x 36\" and 18\" x 36\" Field Tile formats.)  Colors Dark Grey and Taupe in all formats and finishes.  12\" x 24\" Multisize Honed Mosaic in all colors."]
["2019-03-08","Maze","Entire Series."]
["2019-03-08","Nihon","Entire Series."]
["2019-06-27","Maximum","Colors HQ.Resin Cinder Resin, HQ.Resin Dark Resin,HQ.Resin Grey Resin & HQ.Resin White Resin in the Pre-polished surface only in all formats."]
["2019-06-27","New Stone","Entire Series."]
["2019-06-27","Shellstone","All colors and formats in the Flamed surface only."]
["2020-06-12","Approach","Entire Series.","Discontinued by Fiandre"]
["2020-06-12","DWood 2.0","Entire Series.","Discontinued by Fiandre"]
["2020-06-12","Silk Road","Entire Series.","Discontinued by Fiandre"]
["2020-06-12","Tao","Entire Series.","Discontinued by Fiandre"]
["2020-06-12","West Loop","Entire Series.","Discontinued by Fiandre"]
["2020-09-11","Desire","8\" x 48\" and 12\" x 48\" Field Tile formats only in all colors & finishes.","Discontinued by Fiandre"]
["2020-09-11","G Stone","Entire Series.","Discontinued by Fiandre"]
["2020-09-11","Maximum Aster","30\" x 15\" x 6mm, 30\" x 30\" x 6mm, 60\" x 30\" x 6mm, 60\" x 60\" x 6mm & 120\" x 60\" x 6mm Field Tile formats in all Aster colors; Aster Mercury, Aster Moon & Aster Venus.","Discontinued by Fiandre"]
["2020-09-11","Maximum Marmi","Color Marmi Nero Supremo in all fomats.","Discontinued by Fiandre"]
["2021-08-27","Desire","All Glazed Ceramic Wall Tile formats; 8\" x 8\", 4\" x 12\" and 8\" x 24\" Field Tile and all Deco's in these sizes.","Discontinued by Fiandre"]
["2021-09-08","Desire","Entire Series.  (All remaining Glazed Porcelain Floor formats.)","Discontinued by CCTD"]
["2021-10-01","Maximum","Colors Marmi Atlantic Grey, Marmi Calacatta Elite, Marmi Grey Beauty, Marmi Soft Onyx and Rock Salt Pink Rock Salt in all fomats.  All Precious Stones colors and formats.  40\" x 40\" x 6mm and 100\" x 40\" x 6mm formats in colors Marmi Calacatta Bellissimo, Marmi Pietra Grey and Marmi Premium White in both Honed and Polished formats.","Discontinued by Fiandre"]
["2021-10-01","Marble Lab","Colors Bianco Striato and Nero Portoro only in all formats.","Discontinued by Fiandre"]
["2021-10-01","Royal Marble","30\" x 60\" x 6mm, 60\" x 60\" x 6mm and 60\" x 120\" x 6mm Honed Finish only in all colors.","Discontinued by Fiandre"]
["2022-04-11","Marble Lab","Colors Atlantic Grey, Calacatta Elite, Noble Ecru and Quarzo Greige only in all formats.","Discontinued by Fiandre"]
["(3/16/2022","Desire","Entire Series.","Discontinued by Fiandre)"]
["2022-07-25","French Clay","24\" x 24\" Field Tile format only in all colors.","Discontinued by Fiandre"]
["2022-07-25","Royal Marble","24\" x 24\" Field Tile format only in all colors & finishes.","Discontinued by Fiandre"]
["2022-08-24","French Clay","12\" x 24\" Brilliant finish Field Tile, 3\" x 6\" Mosaic Brilliant finish & 3\" x 24\" Bullnose Brilliant finish formats only in all colors.","Discontinued by Fiandre"]
["2022-08-24","Metropolis","Entire Series.","Discontinued by Fiandre"]
["2022-08-24","New Marmi","Entire Series.","Discontinued by Fiandre"]
["2022-08-24","Shen","12\" x 48\" Field Tile format only in all colors.","Discontinued by Fiandre"]
["2022-08-24","Unicolor","12\" x 12\" Field Tile format only in all colors.","Discontinued by Fiandre"]
["2022-08-24","Maximum (Aster)","Color Aster Rusty only in all formats.","Discontinued by Fiandre"]
["2022-08-24","Maximum (Eminent Wood)","All colors, formats and finishes.","Discontinued by Fiandre"]
["2022-08-24","Maximum (Marmi)","Colors Azul Macaubus, Finest Estremoz and Royal Marfil only in all formats and finishes.","Discontinued by Fiandre"]
["2022-08-24","Maximum (Rock Salt)","All colors, formats and finishes.","Discontinued by Fiandre"]
["2023-01-17","French Clay","4\" x 12\" Wall Field Tile and 4\" x 12\" Wall Bullnose formats only in all colors.","Discontinued by Fiandre"]
["2023-01-17","Unicolor","Entire Series.","Discontinued by Fiandre"]
[]
[]
[]
["Changes:"]
["2016-04-08","Harmony","Name of series has changed to Shen."]
["2017-06-08","Nihon","Packaging will be changing for the 4\" x 24\" Field Tile format from 9.09 SF/CTN to 11.68 SF/CTN as inventory with old packaging is depleted.  "]